Workbook

Sheet Реестр (2) (hidden)
A1: Реестр операций ООО "Ромашка"
A3: № | B3: Дата операции | C3: Сумма операции | D3: Расчётный счёт | E3: Статья ДДС | F3: Наименование контрагента | G3: Комментарии | H3: Мес.
A4: 1 | B4: 2014-01-09 | C4: -150200 | D4: Счёт в ВТБ 24 | E4: Аренда офиса | F4: ИТ-Парк ООО | G4: аренда за январь | H4: =MONTH(B4) -> 1
A5: 2 | B5: 2014-01-15 | C5: 30560 | D5: Счёт в Сбербанке | E5: Поступления от продаж | F5: Майндшер Интерэкшн ООО | G5: выручка | H5: =MONTH(B5) -> 1
A6: 3 | B6: 2014-01-25 | C6: 15770 | D6: Счёт в Сбербанке | E6: Поступления от продаж | F6: РеалВеб ЗАО | G6: выручка | H6: 1
A7: 4 | B7: 2014-02-02 | C7: -45000 | D7: Счёт в Сбербанке | E7: Услуги по размещению | F7: Унихост.Ру ООО | G7: оплата трафика | H7: 2
A8: 5 | B8: 2014-02-20 | C8: -15310 | D8: Счёт в ВТБ 24 | E8: Налог на добавленную стоимость | F8: УФК СПб | G8: НДС за 4 квартал 2013 | H8: 2
A9: 6 | B9: 2014-02-28 | C9: -50400 | D9: Счёт в Сбербанке | E9: Основная заработная плата | F9: Сбербанк | G9: з/п на карточки | H9: 2

Sheet Сводный бюджет
A1: Сводный бюджет на 2015 год
A3: Сценарий: | C3: Пессимистичный | E3: Версия: | F3: 2015-01-01 | I3: Столбец сценария: | K3: =IF(C3="Пессимистичный","$C:$C",IF(C3="Реалистичный","$D:$D","$E:$E")) -> $C:$C
D4: 1 | E4: 2 | F4: 3 | G4: 4 | H4: 5 | I4: 6 | J4: 7 | K4: 8 | L4: 9 | M4: 10 | N4: 11 | O4: 12
A5: +/- | B5: Код | C5: Наименование статей | D5: 2014-01-01 | E5: 2014-02-01 | F5: 2014-03-01 | G5: 2014-04-01 | H5: 2014-05-01 | I5: 2014-06-01 | J5: 2014-07-01 | K5: 2014-08-01 | L5: 2014-09-01 | M5: 2014-10-01 | N5: 2014-11-01 | O5: 2014-12-01 | P5: итого
B6: 11000 | C6: Поступления от операционной деятельности | D6: =SUM(D7:D8) -> 2515240.38 | E6: =SUM(E7:E8) -> 2392119.69 | F6: 3419345.28 | G6: 1805999.5 | H6: 2285514.8 | I6: 3914083.5 | J6: 3275810.43 | K6: 2234757.75 | L6: 4218638 | M6: 1921497.44 | N6: 2376825.24 | O6: 2981664.56 | P6: 33341496.57
A7: + | B7: 11001 | C7: Поступления от продаж | D7: =IF(ISBLANK($F$3),SUMIFS(INDIRECT("Реестр!"&$K$3),Реестр!$F:$F,$C7,Реестр!$I:$I,D$4),SUMIFS(INDIRECT("Реестр!"&$K$3),Реестр!$F:$F,$C7,Реестр!$I:$I,D$4,Реестр!$A:$A,"<="&Версия))*IF($A7="-",-1,1) -> 2515240.38 | E7: =IF(ISBLANK($F$3),SUMIFS(INDIRECT("Реестр!"&$K$3),Реестр!$F:$F,$C7,Реестр!$I:$I,E$4),SUMIFS(INDIRECT("Реестр!"&$K$3),Реестр!$F:$F,$C7,Реестр!$I:$I,E$4,Реестр!$A:$A,"<="&Версия))*IF($A7="-",-1,1) -> 2392119.69 | F7: =IF(ISBLANK($F$3),SUMIFS(INDIRECT("Реестр!"&$K$3),Реестр!$F:$F,$C7,Реестр!$I:$I,F$4),SUMIFS(INDIRECT("Реестр!"&$K$3),Реестр!$F:$F,$C7,Реестр!$I:$I,F$4,Реестр!$A:$A,"<="&Версия))*IF($A7="-",-1,1) -> 3419345.28 | G7: =IF(ISBLANK($F$3),SUMIFS(INDIRECT("Реестр!"&$K$3),Реестр!$F:$F,$C7,Реестр!$I:$I,G$4),SUMIFS(INDIRECT("Реестр!"&$K$3),Реестр!$F:$F,$C7,Реестр!$I:$I,G$4,Реестр!$A:$A,"<="&Версия))*IF($A7="-",-1,1) -> 1805999.5 | H7: =IF(ISBLANK($F$3),SUMIFS(INDIRECT("Реестр!"&$K$3),Реестр!$F:$F,$C7,Реестр!$I:$I,H$4),SUMIFS(INDIRECT("Реестр!"&$K$3),Реестр!$F:$F,$C7,Реестр!$I:$I,H$4,Реестр!$A:$A,"<="&Версия))*IF($A7="-",-1,1) -> 2285514.8 | I7: =IF(ISBLANK($F$3),SUMIFS(INDIRECT("Реестр!"&$K$3),Реестр!$F:$F,$C7,Реестр!$I:$I,I$4),SUMIFS(INDIRECT("Реестр!"&$K$3),Реестр!$F:$F,$C7,Реестр!$I:$I,I$4,Реестр!$A:$A,"<="&Версия))*IF($A7="-",-1,1) -> 3914083.5 | J7: =IF(ISBLANK($F$3),SUMIFS(INDIRECT("Реестр!"&$K$3),Реестр!$F:$F,$C7,Реестр!$I:$I,J$4),SUMIFS(INDIRECT("Реестр!"&$K$3),Реестр!$F:$F,$C7,Реестр!$I:$I,J$4,Реестр!$A:$A,"<="&Версия))*IF($A7="-",-1,1) -> 3275810.43 | K7: =IF(ISBLANK($F$3),SUMIFS(INDIRECT("Реестр!"&$K$3),Реестр!$F:$F,$C7,Реестр!$I:$I,K$4),SUMIFS(INDIRECT("Реестр!"&$K$3),Реестр!$F:$F,$C7,Реестр!$I:$I,K$4,Реестр!$A:$A,"<="&Версия))*IF($A7="-",-1,1) -> 2234757.75 | L7: =IF(ISBLANK($F$3),SUMIFS(INDIRECT("Реестр!"&$K$3),Реестр!$F:$F,$C7,Реестр!$I:$I,L$4),SUMIFS(INDIRECT("Реестр!"&$K$3),Реестр!$F:$F,$C7,Реестр!$I:$I,L$4,Реестр!$A:$A,"<="&Версия))*IF($A7="-",-1,1) -> 4218638 | M7: =IF(ISBLANK($F$3),SUMIFS(INDIRECT("Реестр!"&$K$3),Реестр!$F:$F,$C7,Реестр!$I:$I,M$4),SUMIFS(INDIRECT("Реестр!"&$K$3),Реестр!$F:$F,$C7,Реестр!$I:$I,M$4,Реестр!$A:$A,"<="&Версия))*IF($A7="-",-1,1) -> 1921497.44 | N7: =IF(ISBLANK($F$3),SUMIFS(INDIRECT("Реестр!"&$K$3),Реестр!$F:$F,$C7,Реестр!$I:$I,N$4),SUMIFS(INDIRECT("Реестр!"&$K$3),Реестр!$F:$F,$C7,Реестр!$I:$I,N$4,Реестр!$A:$A,"<="&Версия))*IF($A7="-",-1,1) -> 2376825.24 | O7: =IF(ISBLANK($F$3),SUMIFS(INDIRECT("Реестр!"&$K$3),Реестр!$F:$F,$C7,Реестр!$I:$I,O$4),SUMIFS(INDIRECT("Реестр!"&$K$3),Реестр!$F:$F,$C7,Реестр!$I:$I,O$4,Реестр!$A:$A,"<="&Версия))*IF($A7="-",-1,1) -> 2981664.56 | P7: =SUM(D7:O7) -> 33341496.57
A8: + | B8: 11002 | C8: Прочие поступления | D8: =IF(ISBLANK($F$3),SUMIFS(INDIRECT("Реестр!"&$K$3),Реестр!$F:$F,$C8,Реестр!$I:$I,D$4),SUMIFS(INDIRECT("Реестр!"&$K$3),Реестр!$F:$F,$C8,Реестр!$I:$I,D$4,Реестр!$A:$A,"<="&Версия))*IF($A8="-",-1,1) -> 0 | E8: =IF(ISBLANK($F$3),SUMIFS(INDIRECT("Реестр!"&$K$3),Реестр!$F:$F,$C8,Реестр!$I:$I,E$4),SUMIFS(INDIRECT("Реестр!"&$K$3),Реестр!$F:$F,$C8,Реестр!$I:$I,E$4,Реестр!$A:$A,"<="&Версия))*IF($A8="-",-1,1) -> 0 | F8: =IF(ISBLANK($F$3),SUMIFS(INDIRECT("Реестр!"&$K$3),Реестр!$F:$F,$C8,Реестр!$I:$I,F$4),SUMIFS(INDIRECT("Реестр!"&$K$3),Реестр!$F:$F,$C8,Реестр!$I:$I,F$4,Реестр!$A:$A,"<="&Версия))*IF($A8="-",-1,1) -> 0 | G8: =IF(ISBLANK($F$3),SUMIFS(INDIRECT("Реестр!"&$K$3),Реестр!$F:$F,$C8,Реестр!$I:$I,G$4),SUMIFS(INDIRECT("Реестр!"&$K$3),Реестр!$F:$F,$C8,Реестр!$I:$I,G$4,Реестр!$A:$A,"<="&Версия))*IF($A8="-",-1,1) -> 0 | H8: =IF(ISBLANK($F$3),SUMIFS(INDIRECT("Реестр!"&$K$3),Реестр!$F:$F,$C8,Реестр!$I:$I,H$4),SUMIFS(INDIRECT("Реестр!"&$K$3),Реестр!$F:$F,$C8,Реестр!$I:$I,H$4,Реестр!$A:$A,"<="&Версия))*IF($A8="-",-1,1) -> 0 | I8: =IF(ISBLANK($F$3),SUMIFS(INDIRECT("Реестр!"&$K$3),Реестр!$F:$F,$C8,Реестр!$I:$I,I$4),SUMIFS(INDIRECT("Реестр!"&$K$3),Реестр!$F:$F,$C8,Реестр!$I:$I,I$4,Реестр!$A:$A,"<="&Версия))*IF($A8="-",-1,1) -> 0 | J8: =IF(ISBLANK($F$3),SUMIFS(INDIRECT("Реестр!"&$K$3),Реестр!$F:$F,$C8,Реестр!$I:$I,J$4),SUMIFS(INDIRECT("Реестр!"&$K$3),Реестр!$F:$F,$C8,Реестр!$I:$I,J$4,Реестр!$A:$A,"<="&Версия))*IF($A8="-",-1,1) -> 0 | K8: =IF(ISBLANK($F$3),SUMIFS(INDIRECT("Реестр!"&$K$3),Реестр!$F:$F,$C8,Реестр!$I:$I,K$4),SUMIFS(INDIRECT("Реестр!"&$K$3),Реестр!$F:$F,$C8,Реестр!$I:$I,K$4,Реестр!$A:$A,"<="&Версия))*IF($A8="-",-1,1) -> 0 | L8: =IF(ISBLANK($F$3),SUMIFS(INDIRECT("Реестр!"&$K$3),Реестр!$F:$F,$C8,Реестр!$I:$I,L$4),SUMIFS(INDIRECT("Реестр!"&$K$3),Реестр!$F:$F,$C8,Реестр!$I:$I,L$4,Реестр!$A:$A,"<="&Версия))*IF($A8="-",-1,1) -> 0 | M8: =IF(ISBLANK($F$3),SUMIFS(INDIRECT("Реестр!"&$K$3),Реестр!$F:$F,$C8,Реестр!$I:$I,M$4),SUMIFS(INDIRECT("Реестр!"&$K$3),Реестр!$F:$F,$C8,Реестр!$I:$I,M$4,Реестр!$A:$A,"<="&Версия))*IF($A8="-",-1,1) -> 0 | N8: =IF(ISBLANK($F$3),SUMIFS(INDIRECT("Реестр!"&$K$3),Реестр!$F:$F,$C8,Реестр!$I:$I,N$4),SUMIFS(INDIRECT("Реестр!"&$K$3),Реестр!$F:$F,$C8,Реестр!$I:$I,N$4,Реестр!$A:$A,"<="&Версия))*IF($A8="-",-1,1) -> 0 | O8: =IF(ISBLANK($F$3),SUMIFS(INDIRECT("Реестр!"&$K$3),Реестр!$F:$F,$C8,Реестр!$I:$I,O$4),SUMIFS(INDIRECT("Реестр!"&$K$3),Реестр!$F:$F,$C8,Реестр!$I:$I,O$4,Реестр!$A:$A,"<="&Версия))*IF($A8="-",-1,1) -> 0 | P8: =SUM(D8:O8) -> 0
B9: 12000 | C9: Платежи по операционной деятельности | D9: =D10+D13+D17+D22+D28+D34 -> 5641074.513 | E9: 5474861.582 | F9: 6861616.128 | G9: 4788599.325 | H9: 4895944.98 | I9: 7634512.725 | J9: 6914094.08 | K9: 5508672.963 | L9: 8186911.3 | M9: 5090771.544 | N9: 5705464.074 | O9: 6521997.156 | P9: =P10+P13+P17+P22+P28+P34 -> 73224520.37
B10: 12100 | C10: Расчёты с площадками и клиентами | D10: =SUM(D11:D12) -> 3395574.513 | E10: 3229361.582 | F10: 4616116.128 | G10: 2438099.325 | H10: 2545444.98 | I10: 5284012.725 | J10: 4422344.08 | K10: 3016922.963 | L10: 5695161.3 | M10: 2594021.544 | N10: 3208714.074 | O10: 4025247.156 | P10: =SUM(D10:O10) -> 44471020.37
A11: - | B11: 12101 | C11: Услуги по размещению | D11: =IF(ISBLANK($F$3),SUMIFS(INDIRECT("Реестр!"&$K$3),Реестр!$F:$F,$C11,Реестр!$I:$I,D$4),SUMIFS(INDIRECT("Реестр!"&$K$3),Реестр!$F:$F,$C11,Реестр!$I:$I,D$4,Реестр!$A:$A,"<="&Версия))*IF($A11="-",-1,1) -> 3395574.513 | E11: =IF(ISBLANK($F$3),SUMIFS(INDIRECT("Реестр!"&$K$3),Реестр!$F:$F,$C11,Реестр!$I:$I,E$4),SUMIFS(INDIRECT("Реестр!"&$K$3),Реестр!$F:$F,$C11,Реестр!$I:$I,E$4,Реестр!$A:$A,"<="&Версия))*IF($A11="-",-1,1) -> 3229361.582 | F11: =IF(ISBLANK($F$3),SUMIFS(INDIRECT("Реестр!"&$K$3),Реестр!$F:$F,$C11,Реестр!$I:$I,F$4),SUMIFS(INDIRECT("Реестр!"&$K$3),Реестр!$F:$F,$C11,Реестр!$I:$I,F$4,Реестр!$A:$A,"<="&Версия))*IF($A11="-",-1,1) -> 4616116.128 | G11: =IF(ISBLANK($F$3),SUMIFS(INDIRECT("Реестр!"&$K$3),Реестр!$F:$F,$C11,Реестр!$I:$I,G$4),SUMIFS(INDIRECT("Реестр!"&$K$3),Реестр!$F:$F,$C11,Реестр!$I:$I,G$4,Реестр!$A:$A,"<="&Версия))*IF($A11="-",-1,1) -> 2438099.325 | H11: =IF(ISBLANK($F$3),SUMIFS(INDIRECT("Реестр!"&$K$3),Реестр!$F:$F,$C11,Реестр!$I:$I,H$4),SUMIFS(INDIRECT("Реестр!"&$K$3),Реестр!$F:$F,$C11,Реестр!$I:$I,H$4,Реестр!$A:$A,"<="&Версия))*IF($A11="-",-1,1) -> 2545444.98 | I11: =IF(ISBLANK($F$3),SUMIFS(INDIRECT("Реестр!"&$K$3),Реестр!$F:$F,$C11,Реестр!$I:$I,I$4),SUMIFS(INDIRECT("Реестр!"&$K$3),Реестр!$F:$F,$C11,Реестр!$I:$I,I$4,Реестр!$A:$A,"<="&Версия))*IF($A11="-",-1,1) -> 5284012.725 | J11: =IF(ISBLANK($F$3),SUMIFS(INDIRECT("Реестр!"&$K$3),Реестр!$F:$F,$C11,Реестр!$I:$I,J$4),SUMIFS(INDIRECT("Реестр!"&$K$3),Реестр!$F:$F,$C11,Реестр!$I:$I,J$4,Реестр!$A:$A,"<="&Версия))*IF($A11="-",-1,1) -> 4422344.08 | K11: =IF(ISBLANK($F$3),SUMIFS(INDIRECT("Реестр!"&$K$3),Реестр!$F:$F,$C11,Реестр!$I:$I,K$4),SUMIFS(INDIRECT("Реестр!"&$K$3),Реестр!$F:$F,$C11,Реестр!$I:$I,K$4,Реестр!$A:$A,"<="&Версия))*IF($A11="-",-1,1) -> 3016922.963 | L11: =IF(ISBLANK($F$3),SUMIFS(INDIRECT("Реестр!"&$K$3),Реестр!$F:$F,$C11,Реестр!$I:$I,L$4),SUMIFS(INDIRECT("Реестр!"&$K$3),Реестр!$F:$F,$C11,Реестр!$I:$I,L$4,Реестр!$A:$A,"<="&Версия))*IF($A11="-",-1,1) -> 5695161.3 | M11: =IF(ISBLANK($F$3),SUMIFS(INDIRECT("Реестр!"&$K$3),Реестр!$F:$F,$C11,Реестр!$I:$I,M$4),SUMIFS(INDIRECT("Реестр!"&$K$3),Реестр!$F:$F,$C11,Реестр!$I:$I,M$4,Реестр!$A:$A,"<="&Версия))*IF($A11="-",-1,1) -> 2594021.544 | N11: =IF(ISBLANK($F$3),SUMIFS(INDIRECT("Реестр!"&$K$3),Реестр!$F:$F,$C11,Реестр!$I:$I,N$4),SUMIFS(INDIRECT("Реестр!"&$K$3),Реестр!$F:$F,$C11,Реестр!$I:$I,N$4,Реестр!$A:$A,"<="&Версия))*IF($A11="-",-1,1) -> 3208714.074 | O11: =IF(ISBLANK($F$3),SUMIFS(INDIRECT("Реестр!"&$K$3),Реестр!$F:$F,$C11,Реестр!$I:$I,O$4),SUMIFS(INDIRECT("Реестр!"&$K$3),Реестр!$F:$F,$C11,Реестр!$I:$I,O$4,Реестр!$A:$A,"<="&Версия))*IF($A11="-",-1,1) -> 4025247.156 | P11: 44471020.37
A12: - | B12: 12102 | C12: Прочие прямые затраты | D12: =IF(ISBLANK($F$3),SUMIFS(INDIRECT("Реестр!"&$K$3),Реестр!$F:$F,$C12,Реестр!$I:$I,D$4),SUMIFS(INDIRECT("Реестр!"&$K$3),Реестр!$F:$F,$C12,Реестр!$I:$I,D$4,Реестр!$A:$A,"<="&Версия))*IF($A12="-",-1,1) -> 0 | E12: =IF(ISBLANK($F$3),SUMIFS(INDIRECT("Реестр!"&$K$3),Реестр!$F:$F,$C12,Реестр!$I:$I,E$4),SUMIFS(INDIRECT("Реестр!"&$K$3),Реестр!$F:$F,$C12,Реестр!$I:$I,E$4,Реестр!$A:$A,"<="&Версия))*IF($A12="-",-1,1) -> 0 | F12: =IF(ISBLANK($F$3),SUMIFS(INDIRECT("Реестр!"&$K$3),Реестр!$F:$F,$C12,Реестр!$I:$I,F$4),SUMIFS(INDIRECT("Реестр!"&$K$3),Реестр!$F:$F,$C12,Реестр!$I:$I,F$4,Реестр!$A:$A,"<="&Версия))*IF($A12="-",-1,1) -> 0 | G12: =IF(ISBLANK($F$3),SUMIFS(INDIRECT("Реестр!"&$K$3),Реестр!$F:$F,$C12,Реестр!$I:$I,G$4),SUMIFS(INDIRECT("Реестр!"&$K$3),Реестр!$F:$F,$C12,Реестр!$I:$I,G$4,Реестр!$A:$A,"<="&Версия))*IF($A12="-",-1,1) -> 0 | H12: =IF(ISBLANK($F$3),SUMIFS(INDIRECT("Реестр!"&$K$3),Реестр!$F:$F,$C12,Реестр!$I:$I,H$4),SUMIFS(INDIRECT("Реестр!"&$K$3),Реестр!$F:$F,$C12,Реестр!$I:$I,H$4,Реестр!$A:$A,"<="&Версия))*IF($A12="-",-1,1) -> 0 | I12: =IF(ISBLANK($F$3),SUMIFS(INDIRECT("Реестр!"&$K$3),Реестр!$F:$F,$C12,Реестр!$I:$I,I$4),SUMIFS(INDIRECT("Реестр!"&$K$3),Реестр!$F:$F,$C12,Реестр!$I:$I,I$4,Реестр!$A:$A,"<="&Версия))*IF($A12="-",-1,1) -> 0 | J12: =IF(ISBLANK($F$3),SUMIFS(INDIRECT("Реестр!"&$K$3),Реестр!$F:$F,$C12,Реестр!$I:$I,J$4),SUMIFS(INDIRECT("Реестр!"&$K$3),Реестр!$F:$F,$C12,Реестр!$I:$I,J$4,Реестр!$A:$A,"<="&Версия))*IF($A12="-",-1,1) -> 0 | K12: =IF(ISBLANK($F$3),SUMIFS(INDIRECT("Реестр!"&$K$3),Реестр!$F:$F,$C12,Реестр!$I:$I,K$4),SUMIFS(INDIRECT("Реестр!"&$K$3),Реестр!$F:$F,$C12,Реестр!$I:$I,K$4,Реестр!$A:$A,"<="&Версия))*IF($A12="-",-1,1) -> 0 | L12: =IF(ISBLANK($F$3),SUMIFS(INDIRECT("Реестр!"&$K$3),Реестр!$F:$F,$C12,Реестр!$I:$I,L$4),SUMIFS(INDIRECT("Реестр!"&$K$3),Реестр!$F:$F,$C12,Реестр!$I:$I,L$4,Реестр!$A:$A,"<="&Версия))*IF($A12="-",-1,1) -> 0 | M12: =IF(ISBLANK($F$3),SUMIFS(INDIRECT("Реестр!"&$K$3),Реестр!$F:$F,$C12,Реестр!$I:$I,M$4),SUMIFS(INDIRECT("Реестр!"&$K$3),Реестр!$F:$F,$C12,Реестр!$I:$I,M$4,Реестр!$A:$A,"<="&Версия))*IF($A12="-",-1,1) -> 0 | N12: =IF(ISBLANK($F$3),SUMIFS(INDIRECT("Реестр!"&$K$3),Реестр!$F:$F,$C12,Реестр!$I:$I,N$4),SUMIFS(INDIRECT("Реестр!"&$K$3),Реестр!$F:$F,$C12,Реестр!$I:$I,N$4,Реестр!$A:$A,"<="&Версия))*IF($A12="-",-1,1) -> 0 | O12: =IF(ISBLANK($F$3),SUMIFS(INDIRECT("Реестр!"&$K$3),Реестр!$F:$F,$C12,Реестр!$I:$I,O$4),SUMIFS(INDIRECT("Реестр!"&$K$3),Реестр!$F:$F,$C12,Реестр!$I:$I,O$4,Реестр!$A:$A,"<="&Версия))*IF($A12="-",-1,1) -> 0 | P12: 0
B13: 12200 | C13: Расчёты с персоналом | D13: =SUM(D14:D16) -> 785000 | E13: =SUM(E14:E16) -> 785000 | F13: 785000 | G13: 890000 | H13: 890000 | I13: 890000 | J13: 1031250 | K13: 1031250 | L13: 1031250 | M13: 1036250 | N13: 1036250 | O13: 1036250 | P13: 11227500
A14: - | B14: 12201 | C14: Основная заработная плата | D14: =IF(ISBLANK($F$3),SUMIFS(INDIRECT("Реестр!"&$K$3),Реестр!$F:$F,$C14,Реестр!$I:$I,D$4),SUMIFS(INDIRECT("Реестр!"&$K$3),Реестр!$F:$F,$C14,Реестр!$I:$I,D$4,Реестр!$A:$A,"<="&Версия))*IF($A14="-",-1,1) -> 775000 | E14: =IF(ISBLANK($F$3),SUMIFS(INDIRECT("Реестр!"&$K$3),Реестр!$F:$F,$C14,Реестр!$I:$I,E$4),SUMIFS(INDIRECT("Реестр!"&$K$3),Реестр!$F:$F,$C14,Реестр!$I:$I,E$4,Реестр!$A:$A,"<="&Версия))*IF($A14="-",-1,1) -> 775000 | F14: =IF(ISBLANK($F$3),SUMIFS(INDIRECT("Реестр!"&$K$3),Реестр!$F:$F,$C14,Реестр!$I:$I,F$4),SUMIFS(INDIRECT("Реестр!"&$K$3),Реестр!$F:$F,$C14,Реестр!$I:$I,F$4,Реестр!$A:$A,"<="&Версия))*IF($A14="-",-1,1) -> 775000 | G14: =IF(ISBLANK($F$3),SUMIFS(INDIRECT("Реестр!"&$K$3),Реестр!$F:$F,$C14,Реестр!$I:$I,G$4),SUMIFS(INDIRECT("Реестр!"&$K$3),Реестр!$F:$F,$C14,Реестр!$I:$I,G$4,Реестр!$A:$A,"<="&Версия))*IF($A14="-",-1,1) -> 775000 | H14: =IF(ISBLANK($F$3),SUMIFS(INDIRECT("Реестр!"&$K$3),Реестр!$F:$F,$C14,Реестр!$I:$I,H$4),SUMIFS(INDIRECT("Реестр!"&$K$3),Реестр!$F:$F,$C14,Реестр!$I:$I,H$4,Реестр!$A:$A,"<="&Версия))*IF($A14="-",-1,1) -> 775000 | I14: =IF(ISBLANK($F$3),SUMIFS(INDIRECT("Реестр!"&$K$3),Реестр!$F:$F,$C14,Реестр!$I:$I,I$4),SUMIFS(INDIRECT("Реестр!"&$K$3),Реестр!$F:$F,$C14,Реестр!$I:$I,I$4,Реестр!$A:$A,"<="&Версия))*IF($A14="-",-1,1) -> 775000 | J14: =IF(ISBLANK($F$3),SUMIFS(INDIRECT("Реестр!"&$K$3),Реестр!$F:$F,$C14,Реестр!$I:$I,J$4),SUMIFS(INDIRECT("Реестр!"&$K$3),Реестр!$F:$F,$C14,Реестр!$I:$I,J$4,Реестр!$A:$A,"<="&Версия))*IF($A14="-",-1,1) -> 891250 | K14: =IF(ISBLANK($F$3),SUMIFS(INDIRECT("Реестр!"&$K$3),Реестр!$F:$F,$C14,Реестр!$I:$I,K$4),SUMIFS(INDIRECT("Реестр!"&$K$3),Реестр!$F:$F,$C14,Реестр!$I:$I,K$4,Реестр!$A:$A,"<="&Версия))*IF($A14="-",-1,1) -> 891250 | L14: =IF(ISBLANK($F$3),SUMIFS(INDIRECT("Реестр!"&$K$3),Реестр!$F:$F,$C14,Реестр!$I:$I,L$4),SUMIFS(INDIRECT("Реестр!"&$K$3),Реестр!$F:$F,$C14,Реестр!$I:$I,L$4,Реестр!$A:$A,"<="&Версия))*IF($A14="-",-1,1) -> 891250 | M14: =IF(ISBLANK($F$3),SUMIFS(INDIRECT("Реестр!"&$K$3),Реестр!$F:$F,$C14,Реестр!$I:$I,M$4),SUMIFS(INDIRECT("Реестр!"&$K$3),Реестр!$F:$F,$C14,Реестр!$I:$I,M$4,Реестр!$A:$A,"<="&Версия))*IF($A14="-",-1,1) -> 891250 | N14: =IF(ISBLANK($F$3),SUMIFS(INDIRECT("Реестр!"&$K$3),Реестр!$F:$F,$C14,Реестр!$I:$I,N$4),SUMIFS(INDIRECT("Реестр!"&$K$3),Реестр!$F:$F,$C14,Реестр!$I:$I,N$4,Реестр!$A:$A,"<="&Версия))*IF($A14="-",-1,1) -> 891250 | O14: =IF(ISBLANK($F$3),SUMIFS(INDIRECT("Реестр!"&$K$3),Реестр!$F:$F,$C14,Реестр!$I:$I,O$4),SUMIFS(INDIRECT("Реестр!"&$K$3),Реестр!$F:$F,$C14,Реестр!$I:$I,O$4,Реестр!$A:$A,"<="&Версия))*IF($A14="-",-1,1) -> 891250 | P14: 9997500
A15: - | B15: 12202 | C15: Премии, бонусы | D15: =IF(ISBLANK($F$3),SUMIFS(INDIRECT("Реестр!"&$K$3),Реестр!$F:$F,$C15,Реестр!$I:$I,D$4),SUMIFS(INDIRECT("Реестр!"&$K$3),Реестр!$F:$F,$C15,Реестр!$I:$I,D$4,Реестр!$A:$A,"<="&Версия))*IF($A15="-",-1,1) -> 0 | E15: =IF(ISBLANK($F$3),SUMIFS(INDIRECT("Реестр!"&$K$3),Реестр!$F:$F,$C15,Реестр!$I:$I,E$4),SUMIFS(INDIRECT("Реестр!"&$K$3),Реестр!$F:$F,$C15,Реестр!$I:$I,E$4,Реестр!$A:$A,"<="&Версия))*IF($A15="-",-1,1) -> 0 | F15: =IF(ISBLANK($F$3),SUMIFS(INDIRECT("Реестр!"&$K$3),Реестр!$F:$F,$C15,Реестр!$I:$I,F$4),SUMIFS(INDIRECT("Реестр!"&$K$3),Реестр!$F:$F,$C15,Реестр!$I:$I,F$4,Реестр!$A:$A,"<="&Версия))*IF($A15="-",-1,1) -> 0 | G15: =IF(ISBLANK($F$3),SUMIFS(INDIRECT("Реестр!"&$K$3),Реестр!$F:$F,$C15,Реестр!$I:$I,G$4),SUMIFS(INDIRECT("Реестр!"&$K$3),Реестр!$F:$F,$C15,Реестр!$I:$I,G$4,Реестр!$A:$A,"<="&Версия))*IF($A15="-",-1,1) -> 100000 | H15: =IF(ISBLANK($F$3),SUMIFS(INDIRECT("Реестр!"&$K$3),Реестр!$F:$F,$C15,Реестр!$I:$I,H$4),SUMIFS(INDIRECT("Реестр!"&$K$3),Реестр!$F:$F,$C15,Реестр!$I:$I,H$4,Реестр!$A:$A,"<="&Версия))*IF($A15="-",-1,1) -> 100000 | I15: =IF(ISBLANK($F$3),SUMIFS(INDIRECT("Реестр!"&$K$3),Реестр!$F:$F,$C15,Реестр!$I:$I,I$4),SUMIFS(INDIRECT("Реестр!"&$K$3),Реестр!$F:$F,$C15,Реестр!$I:$I,I$4,Реестр!$A:$A,"<="&Версия))*IF($A15="-",-1,1) -> 100000 | J15: =IF(ISBLANK($F$3),SUMIFS(INDIRECT("Реестр!"&$K$3),Реестр!$F:$F,$C15,Реестр!$I:$I,J$4),SUMIFS(INDIRECT("Реестр!"&$K$3),Реестр!$F:$F,$C15,Реестр!$I:$I,J$4,Реестр!$A:$A,"<="&Версия))*IF($A15="-",-1,1) -> 120000 | K15: =IF(ISBLANK($F$3),SUMIFS(INDIRECT("Реестр!"&$K$3),Реестр!$F:$F,$C15,Реестр!$I:$I,K$4),SUMIFS(INDIRECT("Реестр!"&$K$3),Реестр!$F:$F,$C15,Реестр!$I:$I,K$4,Реестр!$A:$A,"<="&Версия))*IF($A15="-",-1,1) -> 120000 | L15: =IF(ISBLANK($F$3),SUMIFS(INDIRECT("Реестр!"&$K$3),Реестр!$F:$F,$C15,Реестр!$I:$I,L$4),SUMIFS(INDIRECT("Реестр!"&$K$3),Реестр!$F:$F,$C15,Реестр!$I:$I,L$4,Реестр!$A:$A,"<="&Версия))*IF($A15="-",-1,1) -> 120000 | M15: =IF(ISBLANK($F$3),SUMIFS(INDIRECT("Реестр!"&$K$3),Реестр!$F:$F,$C15,Реестр!$I:$I,M$4),SUMIFS(INDIRECT("Реестр!"&$K$3),Реестр!$F:$F,$C15,Реестр!$I:$I,M$4,Реестр!$A:$A,"<="&Версия))*IF($A15="-",-1,1) -> 120000 | N15: =IF(ISBLANK($F$3),SUMIFS(INDIRECT("Реестр!"&$K$3),Реестр!$F:$F,$C15,Реестр!$I:$I,N$4),SUMIFS(INDIRECT("Реестр!"&$K$3),Реестр!$F:$F,$C15,Реестр!$I:$I,N$4,Реестр!$A:$A,"<="&Версия))*IF($A15="-",-1,1) -> 120000 | O15: =IF(ISBLANK($F$3),SUMIFS(INDIRECT("Реестр!"&$K$3),Реестр!$F:$F,$C15,Реестр!$I:$I,O$4),SUMIFS(INDIRECT("Реестр!"&$K$3),Реестр!$F:$F,$C15,Реестр!$I:$I,O$4,Реестр!$A:$A,"<="&Версия))*IF($A15="-",-1,1) -> 120000 | P15: 1020000
A16: - | B16: 12203 | C16: Прочие затраты на оплату труда | D16: =IF(ISBLANK($F$3),SUMIFS(INDIRECT("Реестр!"&$K$3),Реестр!$F:$F,$C16,Реестр!$I:$I,D$4),SUMIFS(INDIRECT("Реестр!"&$K$3),Реестр!$F:$F,$C16,Реестр!$I:$I,D$4,Реестр!$A:$A,"<="&Версия))*IF($A16="-",-1,1) -> 10000 | E16: =IF(ISBLANK($F$3),SUMIFS(INDIRECT("Реестр!"&$K$3),Реестр!$F:$F,$C16,Реестр!$I:$I,E$4),SUMIFS(INDIRECT("Реестр!"&$K$3),Реестр!$F:$F,$C16,Реестр!$I:$I,E$4,Реестр!$A:$A,"<="&Версия))*IF($A16="-",-1,1) -> 10000 | F16: =IF(ISBLANK($F$3),SUMIFS(INDIRECT("Реестр!"&$K$3),Реестр!$F:$F,$C16,Реестр!$I:$I,F$4),SUMIFS(INDIRECT("Реестр!"&$K$3),Реестр!$F:$F,$C16,Реестр!$I:$I,F$4,Реестр!$A:$A,"<="&Версия))*IF($A16="-",-1,1) -> 10000 | G16: =IF(ISBLANK($F$3),SUMIFS(INDIRECT("Реестр!"&$K$3),Реестр!$F:$F,$C16,Реестр!$I:$I,G$4),SUMIFS(INDIRECT("Реестр!"&$K$3),Реестр!$F:$F,$C16,Реестр!$I:$I,G$4,Реестр!$A:$A,"<="&Версия))*IF($A16="-",-1,1) -> 15000 | H16: =IF(ISBLANK($F$3),SUMIFS(INDIRECT("Реестр!"&$K$3),Реестр!$F:$F,$C16,Реестр!$I:$I,H$4),SUMIFS(INDIRECT("Реестр!"&$K$3),Реестр!$F:$F,$C16,Реестр!$I:$I,H$4,Реестр!$A:$A,"<="&Версия))*IF($A16="-",-1,1) -> 15000 | I16: =IF(ISBLANK($F$3),SUMIFS(INDIRECT("Реестр!"&$K$3),Реестр!$F:$F,$C16,Реестр!$I:$I,I$4),SUMIFS(INDIRECT("Реестр!"&$K$3),Реестр!$F:$F,$C16,Реестр!$I:$I,I$4,Реестр!$A:$A,"<="&Версия))*IF($A16="-",-1,1) -> 15000 | J16: =IF(ISBLANK($F$3),SUMIFS(INDIRECT("Реестр!"&$K$3),Реестр!$F:$F,$C16,Реестр!$I:$I,J$4),SUMIFS(INDIRECT("Реестр!"&$K$3),Реестр!$F:$F,$C16,Реестр!$I:$I,J$4,Реестр!$A:$A,"<="&Версия))*IF($A16="-",-1,1) -> 20000 | K16: =IF(ISBLANK($F$3),SUMIFS(INDIRECT("Реестр!"&$K$3),Реестр!$F:$F,$C16,Реестр!$I:$I,K$4),SUMIFS(INDIRECT("Реестр!"&$K$3),Реестр!$F:$F,$C16,Реестр!$I:$I,K$4,Реестр!$A:$A,"<="&Версия))*IF($A16="-",-1,1) -> 20000 | L16: =IF(ISBLANK($F$3),SUMIFS(INDIRECT("Реестр!"&$K$3),Реестр!$F:$F,$C16,Реестр!$I:$I,L$4),SUMIFS(INDIRECT("Реестр!"&$K$3),Реестр!$F:$F,$C16,Реестр!$I:$I,L$4,Реестр!$A:$A,"<="&Версия))*IF($A16="-",-1,1) -> 20000 | M16: =IF(ISBLANK($F$3),SUMIFS(INDIRECT("Реестр!"&$K$3),Реестр!$F:$F,$C16,Реестр!$I:$I,M$4),SUMIFS(INDIRECT("Реестр!"&$K$3),Реестр!$F:$F,$C16,Реестр!$I:$I,M$4,Реестр!$A:$A,"<="&Версия))*IF($A16="-",-1,1) -> 25000 | N16: =IF(ISBLANK($F$3),SUMIFS(INDIRECT("Реестр!"&$K$3),Реестр!$F:$F,$C16,Реестр!$I:$I,N$4),SUMIFS(INDIRECT("Реестр!"&$K$3),Реестр!$F:$F,$C16,Реестр!$I:$I,N$4,Реестр!$A:$A,"<="&Версия))*IF($A16="-",-1,1) -> 25000 | O16: =IF(ISBLANK($F$3),SUMIFS(INDIRECT("Реестр!"&$K$3),Реестр!$F:$F,$C16,Реестр!$I:$I,O$4),SUMIFS(INDIRECT("Реестр!"&$K$3),Реестр!$F:$F,$C16,Реестр!$I:$I,O$4,Реестр!$A:$A,"<="&Версия))*IF($A16="-",-1,1) -> 25000 | P16: 210000
B17: 12300 | C17: Расчёты с бюджетом | D17: =SUM(D18:D21) -> 1080000 | E17: =SUM(E18:E21) -> 1080000 | F17: 1080000 | G17: 1080000 | H17: 1080000 | I17: 1080000 | J17: 1080000 | K17: 1080000 | L17: 1080000 | M17: 1080000 | N17: 1080000 | O17: 1080000 | P17: 12960000
A18: - | B18: 12301 | C18: Налоги на фонд оплаты труда | D18: =IF(ISBLANK($F$3),SUMIFS(INDIRECT("Реестр!"&$K$3),Реестр!$F:$F,$C18,Реестр!$I:$I,D$4),SUMIFS(INDIRECT("Реестр!"&$K$3),Реестр!$F:$F,$C18,Реестр!$I:$I,D$4,Реестр!$A:$A,"<="&Версия))*IF($A18="-",-1,1) -> 90000 | E18: =IF(ISBLANK($F$3),SUMIFS(INDIRECT("Реестр!"&$K$3),Реестр!$F:$F,$C18,Реестр!$I:$I,E$4),SUMIFS(INDIRECT("Реестр!"&$K$3),Реестр!$F:$F,$C18,Реестр!$I:$I,E$4,Реестр!$A:$A,"<="&Версия))*IF($A18="-",-1,1) -> 90000 | F18: =IF(ISBLANK($F$3),SUMIFS(INDIRECT("Реестр!"&$K$3),Реестр!$F:$F,$C18,Реестр!$I:$I,F$4),SUMIFS(INDIRECT("Реестр!"&$K$3),Реестр!$F:$F,$C18,Реестр!$I:$I,F$4,Реестр!$A:$A,"<="&Версия))*IF($A18="-",-1,1) -> 90000 | G18: =IF(ISBLANK($F$3),SUMIFS(INDIRECT("Реестр!"&$K$3),Реестр!$F:$F,$C18,Реестр!$I:$I,G$4),SUMIFS(INDIRECT("Реестр!"&$K$3),Реестр!$F:$F,$C18,Реестр!$I:$I,G$4,Реестр!$A:$A,"<="&Версия))*IF($A18="-",-1,1) -> 90000 | H18: =IF(ISBLANK($F$3),SUMIFS(INDIRECT("Реестр!"&$K$3),Реестр!$F:$F,$C18,Реестр!$I:$I,H$4),SUMIFS(INDIRECT("Реестр!"&$K$3),Реестр!$F:$F,$C18,Реестр!$I:$I,H$4,Реестр!$A:$A,"<="&Версия))*IF($A18="-",-1,1) -> 90000 | I18: =IF(ISBLANK($F$3),SUMIFS(INDIRECT("Реестр!"&$K$3),Реестр!$F:$F,$C18,Реестр!$I:$I,I$4),SUMIFS(INDIRECT("Реестр!"&$K$3),Реестр!$F:$F,$C18,Реестр!$I:$I,I$4,Реестр!$A:$A,"<="&Версия))*IF($A18="-",-1,1) -> 90000 | J18: =IF(ISBLANK($F$3),SUMIFS(INDIRECT("Реестр!"&$K$3),Реестр!$F:$F,$C18,Реестр!$I:$I,J$4),SUMIFS(INDIRECT("Реестр!"&$K$3),Реестр!$F:$F,$C18,Реестр!$I:$I,J$4,Реестр!$A:$A,"<="&Версия))*IF($A18="-",-1,1) -> 90000 | K18: =IF(ISBLANK($F$3),SUMIFS(INDIRECT("Реестр!"&$K$3),Реестр!$F:$F,$C18,Реестр!$I:$I,K$4),SUMIFS(INDIRECT("Реестр!"&$K$3),Реестр!$F:$F,$C18,Реестр!$I:$I,K$4,Реестр!$A:$A,"<="&Версия))*IF($A18="-",-1,1) -> 90000 | L18: =IF(ISBLANK($F$3),SUMIFS(INDIRECT("Реестр!"&$K$3),Реестр!$F:$F,$C18,Реестр!$I:$I,L$4),SUMIFS(INDIRECT("Реестр!"&$K$3),Реестр!$F:$F,$C18,Реестр!$I:$I,L$4,Реестр!$A:$A,"<="&Версия))*IF($A18="-",-1,1) -> 90000 | M18: =IF(ISBLANK($F$3),SUMIFS(INDIRECT("Реестр!"&$K$3),Реестр!$F:$F,$C18,Реестр!$I:$I,M$4),SUMIFS(INDIRECT("Реестр!"&$K$3),Реестр!$F:$F,$C18,Реестр!$I:$I,M$4,Реестр!$A:$A,"<="&Версия))*IF($A18="-",-1,1) -> 90000 | N18: =IF(ISBLANK($F$3),SUMIFS(INDIRECT("Реестр!"&$K$3),Реестр!$F:$F,$C18,Реестр!$I:$I,N$4),SUMIFS(INDIRECT("Реестр!"&$K$3),Реестр!$F:$F,$C18,Реестр!$I:$I,N$4,Реестр!$A:$A,"<="&Версия))*IF($A18="-",-1,1) -> 90000 | O18: =IF(ISBLANK($F$3),SUMIFS(INDIRECT("Реестр!"&$K$3),Реестр!$F:$F,$C18,Реестр!$I:$I,O$4),SUMIFS(INDIRECT("Реестр!"&$K$3),Реестр!$F:$F,$C18,Реестр!$I:$I,O$4,Реестр!$A:$A,"<="&Версия))*IF($A18="-",-1,1) -> 90000 | P18: 1080000
A19: - | B19: 12302 | C19: Налог на добавленную стоимость | D19: =IF(ISBLANK($F$3),SUMIFS(INDIRECT("Реестр!"&$K$3),Реестр!$F:$F,$C19,Реестр!$I:$I,D$4),SUMIFS(INDIRECT("Реестр!"&$K$3),Реестр!$F:$F,$C19,Реестр!$I:$I,D$4,Реестр!$A:$A,"<="&Версия))*IF($A19="-",-1,1) -> 450000 | E19: =IF(ISBLANK($F$3),SUMIFS(INDIRECT("Реестр!"&$K$3),Реестр!$F:$F,$C19,Реестр!$I:$I,E$4),SUMIFS(INDIRECT("Реестр!"&$K$3),Реестр!$F:$F,$C19,Реестр!$I:$I,E$4,Реестр!$A:$A,"<="&Версия))*IF($A19="-",-1,1) -> 450000 | F19: =IF(ISBLANK($F$3),SUMIFS(INDIRECT("Реестр!"&$K$3),Реестр!$F:$F,$C19,Реестр!$I:$I,F$4),SUMIFS(INDIRECT("Реестр!"&$K$3),Реестр!$F:$F,$C19,Реестр!$I:$I,F$4,Реестр!$A:$A,"<="&Версия))*IF($A19="-",-1,1) -> 450000 | G19: =IF(ISBLANK($F$3),SUMIFS(INDIRECT("Реестр!"&$K$3),Реестр!$F:$F,$C19,Реестр!$I:$I,G$4),SUMIFS(INDIRECT("Реестр!"&$K$3),Реестр!$F:$F,$C19,Реестр!$I:$I,G$4,Реестр!$A:$A,"<="&Версия))*IF($A19="-",-1,1) -> 450000 | H19: =IF(ISBLANK($F$3),SUMIFS(INDIRECT("Реестр!"&$K$3),Реестр!$F:$F,$C19,Реестр!$I:$I,H$4),SUMIFS(INDIRECT("Реестр!"&$K$3),Реестр!$F:$F,$C19,Реестр!$I:$I,H$4,Реестр!$A:$A,"<="&Версия))*IF($A19="-",-1,1) -> 450000 | I19: =IF(ISBLANK($F$3),SUMIFS(INDIRECT("Реестр!"&$K$3),Реестр!$F:$F,$C19,Реестр!$I:$I,I$4),SUMIFS(INDIRECT("Реестр!"&$K$3),Реестр!$F:$F,$C19,Реестр!$I:$I,I$4,Реестр!$A:$A,"<="&Версия))*IF($A19="-",-1,1) -> 450000 | J19: =IF(ISBLANK($F$3),SUMIFS(INDIRECT("Реестр!"&$K$3),Реестр!$F:$F,$C19,Реестр!$I:$I,J$4),SUMIFS(INDIRECT("Реестр!"&$K$3),Реестр!$F:$F,$C19,Реестр!$I:$I,J$4,Реестр!$A:$A,"<="&Версия))*IF($A19="-",-1,1) -> 450000 | K19: =IF(ISBLANK($F$3),SUMIFS(INDIRECT("Реестр!"&$K$3),Реестр!$F:$F,$C19,Реестр!$I:$I,K$4),SUMIFS(INDIRECT("Реестр!"&$K$3),Реестр!$F:$F,$C19,Реестр!$I:$I,K$4,Реестр!$A:$A,"<="&Версия))*IF($A19="-",-1,1) -> 450000 | L19: =IF(ISBLANK($F$3),SUMIFS(INDIRECT("Реестр!"&$K$3),Реестр!$F:$F,$C19,Реестр!$I:$I,L$4),SUMIFS(INDIRECT("Реестр!"&$K$3),Реестр!$F:$F,$C19,Реестр!$I:$I,L$4,Реестр!$A:$A,"<="&Версия))*IF($A19="-",-1,1) -> 450000 | M19: =IF(ISBLANK($F$3),SUMIFS(INDIRECT("Реестр!"&$K$3),Реестр!$F:$F,$C19,Реестр!$I:$I,M$4),SUMIFS(INDIRECT("Реестр!"&$K$3),Реестр!$F:$F,$C19,Реестр!$I:$I,M$4,Реестр!$A:$A,"<="&Версия))*IF($A19="-",-1,1) -> 450000 | N19: =IF(ISBLANK($F$3),SUMIFS(INDIRECT("Реестр!"&$K$3),Реестр!$F:$F,$C19,Реестр!$I:$I,N$4),SUMIFS(INDIRECT("Реестр!"&$K$3),Реестр!$F:$F,$C19,Реестр!$I:$I,N$4,Реестр!$A:$A,"<="&Версия))*IF($A19="-",-1,1) -> 450000 | O19: =IF(ISBLANK($F$3),SUMIFS(INDIRECT("Реестр!"&$K$3),Реестр!$F:$F,$C19,Реестр!$I:$I,O$4),SUMIFS(INDIRECT("Реестр!"&$K$3),Реестр!$F:$F,$C19,Реестр!$I:$I,O$4,Реестр!$A:$A,"<="&Версия))*IF($A19="-",-1,1) -> 450000 | P19: 5400000
A20: - | B20: 12303 | C20: Налог на прибыль | D20: =IF(ISBLANK($F$3),SUMIFS(INDIRECT("Реестр!"&$K$3),Реестр!$F:$F,$C20,Реестр!$I:$I,D$4),SUMIFS(INDIRECT("Реестр!"&$K$3),Реестр!$F:$F,$C20,Реестр!$I:$I,D$4,Реестр!$A:$A,"<="&Версия))*IF($A20="-",-1,1) -> 540000 | E20: =IF(ISBLANK($F$3),SUMIFS(INDIRECT("Реестр!"&$K$3),Реестр!$F:$F,$C20,Реестр!$I:$I,E$4),SUMIFS(INDIRECT("Реестр!"&$K$3),Реестр!$F:$F,$C20,Реестр!$I:$I,E$4,Реестр!$A:$A,"<="&Версия))*IF($A20="-",-1,1) -> 540000 | F20: =IF(ISBLANK($F$3),SUMIFS(INDIRECT("Реестр!"&$K$3),Реестр!$F:$F,$C20,Реестр!$I:$I,F$4),SUMIFS(INDIRECT("Реестр!"&$K$3),Реестр!$F:$F,$C20,Реестр!$I:$I,F$4,Реестр!$A:$A,"<="&Версия))*IF($A20="-",-1,1) -> 540000 | G20: =IF(ISBLANK($F$3),SUMIFS(INDIRECT("Реестр!"&$K$3),Реестр!$F:$F,$C20,Реестр!$I:$I,G$4),SUMIFS(INDIRECT("Реестр!"&$K$3),Реестр!$F:$F,$C20,Реестр!$I:$I,G$4,Реестр!$A:$A,"<="&Версия))*IF($A20="-",-1,1) -> 540000 | H20: =IF(ISBLANK($F$3),SUMIFS(INDIRECT("Реестр!"&$K$3),Реестр!$F:$F,$C20,Реестр!$I:$I,H$4),SUMIFS(INDIRECT("Реестр!"&$K$3),Реестр!$F:$F,$C20,Реестр!$I:$I,H$4,Реестр!$A:$A,"<="&Версия))*IF($A20="-",-1,1) -> 540000 | I20: =IF(ISBLANK($F$3),SUMIFS(INDIRECT("Реестр!"&$K$3),Реестр!$F:$F,$C20,Реестр!$I:$I,I$4),SUMIFS(INDIRECT("Реестр!"&$K$3),Реестр!$F:$F,$C20,Реестр!$I:$I,I$4,Реестр!$A:$A,"<="&Версия))*IF($A20="-",-1,1) -> 540000 | J20: =IF(ISBLANK($F$3),SUMIFS(INDIRECT("Реестр!"&$K$3),Реестр!$F:$F,$C20,Реестр!$I:$I,J$4),SUMIFS(INDIRECT("Реестр!"&$K$3),Реестр!$F:$F,$C20,Реестр!$I:$I,J$4,Реестр!$A:$A,"<="&Версия))*IF($A20="-",-1,1) -> 540000 | K20: =IF(ISBLANK($F$3),SUMIFS(INDIRECT("Реестр!"&$K$3),Реестр!$F:$F,$C20,Реестр!$I:$I,K$4),SUMIFS(INDIRECT("Реестр!"&$K$3),Реестр!$F:$F,$C20,Реестр!$I:$I,K$4,Реестр!$A:$A,"<="&Версия))*IF($A20="-",-1,1) -> 540000 | L20: =IF(ISBLANK($F$3),SUMIFS(INDIRECT("Реестр!"&$K$3),Реестр!$F:$F,$C20,Реестр!$I:$I,L$4),SUMIFS(INDIRECT("Реестр!"&$K$3),Реестр!$F:$F,$C20,Реестр!$I:$I,L$4,Реестр!$A:$A,"<="&Версия))*IF($A20="-",-1,1) -> 540000 | M20: =IF(ISBLANK($F$3),SUMIFS(INDIRECT("Реестр!"&$K$3),Реестр!$F:$F,$C20,Реестр!$I:$I,M$4),SUMIFS(INDIRECT("Реестр!"&$K$3),Реестр!$F:$F,$C20,Реестр!$I:$I,M$4,Реестр!$A:$A,"<="&Версия))*IF($A20="-",-1,1) -> 540000 | N20: =IF(ISBLANK($F$3),SUMIFS(INDIRECT("Реестр!"&$K$3),Реестр!$F:$F,$C20,Реестр!$I:$I,N$4),SUMIFS(INDIRECT("Реестр!"&$K$3),Реестр!$F:$F,$C20,Реестр!$I:$I,N$4,Реестр!$A:$A,"<="&Версия))*IF($A20="-",-1,1) -> 540000 | O20: =IF(ISBLANK($F$3),SUMIFS(INDIRECT("Реестр!"&$K$3),Реестр!$F:$F,$C20,Реестр!$I:$I,O$4),SUMIFS(INDIRECT("Реестр!"&$K$3),Реестр!$F:$F,$C20,Реестр!$I:$I,O$4,Реестр!$A:$A,"<="&Версия))*IF($A20="-",-1,1) -> 540000 | P20: 6480000
A21: - | B21: 12304 | C21: Прочие налоги и сборы | D21: =IF(ISBLANK($F$3),SUMIFS(INDIRECT("Реестр!"&$K$3),Реестр!$F:$F,$C21,Реестр!$I:$I,D$4),SUMIFS(INDIRECT("Реестр!"&$K$3),Реестр!$F:$F,$C21,Реестр!$I:$I,D$4,Реестр!$A:$A,"<="&Версия))*IF($A21="-",-1,1) -> 0 | E21: =IF(ISBLANK($F$3),SUMIFS(INDIRECT("Реестр!"&$K$3),Реестр!$F:$F,$C21,Реестр!$I:$I,E$4),SUMIFS(INDIRECT("Реестр!"&$K$3),Реестр!$F:$F,$C21,Реестр!$I:$I,E$4,Реестр!$A:$A,"<="&Версия))*IF($A21="-",-1,1) -> 0 | F21: =IF(ISBLANK($F$3),SUMIFS(INDIRECT("Реестр!"&$K$3),Реестр!$F:$F,$C21,Реестр!$I:$I,F$4),SUMIFS(INDIRECT("Реестр!"&$K$3),Реестр!$F:$F,$C21,Реестр!$I:$I,F$4,Реестр!$A:$A,"<="&Версия))*IF($A21="-",-1,1) -> 0 | G21: =IF(ISBLANK($F$3),SUMIFS(INDIRECT("Реестр!"&$K$3),Реестр!$F:$F,$C21,Реестр!$I:$I,G$4),SUMIFS(INDIRECT("Реестр!"&$K$3),Реестр!$F:$F,$C21,Реестр!$I:$I,G$4,Реестр!$A:$A,"<="&Версия))*IF($A21="-",-1,1) -> 0 | H21: =IF(ISBLANK($F$3),SUMIFS(INDIRECT("Реестр!"&$K$3),Реестр!$F:$F,$C21,Реестр!$I:$I,H$4),SUMIFS(INDIRECT("Реестр!"&$K$3),Реестр!$F:$F,$C21,Реестр!$I:$I,H$4,Реестр!$A:$A,"<="&Версия))*IF($A21="-",-1,1) -> 0 | I21: =IF(ISBLANK($F$3),SUMIFS(INDIRECT("Реестр!"&$K$3),Реестр!$F:$F,$C21,Реестр!$I:$I,I$4),SUMIFS(INDIRECT("Реестр!"&$K$3),Реестр!$F:$F,$C21,Реестр!$I:$I,I$4,Реестр!$A:$A,"<="&Версия))*IF($A21="-",-1,1) -> 0 | J21: =IF(ISBLANK($F$3),SUMIFS(INDIRECT("Реестр!"&$K$3),Реестр!$F:$F,$C21,Реестр!$I:$I,J$4),SUMIFS(INDIRECT("Реестр!"&$K$3),Реестр!$F:$F,$C21,Реестр!$I:$I,J$4,Реестр!$A:$A,"<="&Версия))*IF($A21="-",-1,1) -> 0 | K21: =IF(ISBLANK($F$3),SUMIFS(INDIRECT("Реестр!"&$K$3),Реестр!$F:$F,$C21,Реестр!$I:$I,K$4),SUMIFS(INDIRECT("Реестр!"&$K$3),Реестр!$F:$F,$C21,Реестр!$I:$I,K$4,Реестр!$A:$A,"<="&Версия))*IF($A21="-",-1,1) -> 0 | L21: =IF(ISBLANK($F$3),SUMIFS(INDIRECT("Реестр!"&$K$3),Реестр!$F:$F,$C21,Реестр!$I:$I,L$4),SUMIFS(INDIRECT("Реестр!"&$K$3),Реестр!$F:$F,$C21,Реестр!$I:$I,L$4,Реестр!$A:$A,"<="&Версия))*IF($A21="-",-1,1) -> 0 | M21: =IF(ISBLANK($F$3),SUMIFS(INDIRECT("Реестр!"&$K$3),Реестр!$F:$F,$C21,Реестр!$I:$I,M$4),SUMIFS(INDIRECT("Реестр!"&$K$3),Реестр!$F:$F,$C21,Реестр!$I:$I,M$4,Реестр!$A:$A,"<="&Версия))*IF($A21="-",-1,1) -> 0 | N21: =IF(ISBLANK($F$3),SUMIFS(INDIRECT("Реестр!"&$K$3),Реестр!$F:$F,$C21,Реестр!$I:$I,N$4),SUMIFS(INDIRECT("Реестр!"&$K$3),Реестр!$F:$F,$C21,Реестр!$I:$I,N$4,Реестр!$A:$A,"<="&Версия))*IF($A21="-",-1,1) -> 0 | O21: =IF(ISBLANK($F$3),SUMIFS(INDIRECT("Реестр!"&$K$3),Реестр!$F:$F,$C21,Реестр!$I:$I,O$4),SUMIFS(INDIRECT("Реестр!"&$K$3),Реестр!$F:$F,$C21,Реестр!$I:$I,O$4,Реестр!$A:$A,"<="&Версия))*IF($A21="-",-1,1) -> 0 | P21: 0
B22: 12400 | C22: Расходы на маркетинг | D22: =SUM(D23:D27) -> 0 | E22: =SUM(E23:E27) -> 0 | F22: 0 | G22: 0 | H22: 0 | I22: 0 | J22: 0 | K22: 0 | L22: 0 | M22: 0 | N22: 0 | O22: 0 | P22: 0
A23: - | B23: 12401 | C23: Участие в выставках | D23: =IF(ISBLANK($F$3),SUMIFS(INDIRECT("Реестр!"&$K$3),Реестр!$F:$F,$C23,Реестр!$I:$I,D$4),SUMIFS(INDIRECT("Реестр!"&$K$3),Реестр!$F:$F,$C23,Реестр!$I:$I,D$4,Реестр!$A:$A,"<="&Версия))*IF($A23="-",-1,1) -> 0 | E23: =IF(ISBLANK($F$3),SUMIFS(INDIRECT("Реестр!"&$K$3),Реестр!$F:$F,$C23,Реестр!$I:$I,E$4),SUMIFS(INDIRECT("Реестр!"&$K$3),Реестр!$F:$F,$C23,Реестр!$I:$I,E$4,Реестр!$A:$A,"<="&Версия))*IF($A23="-",-1,1) -> 0 | F23: =IF(ISBLANK($F$3),SUMIFS(INDIRECT("Реестр!"&$K$3),Реестр!$F:$F,$C23,Реестр!$I:$I,F$4),SUMIFS(INDIRECT("Реестр!"&$K$3),Реестр!$F:$F,$C23,Реестр!$I:$I,F$4,Реестр!$A:$A,"<="&Версия))*IF($A23="-",-1,1) -> 0 | G23: =IF(ISBLANK($F$3),SUMIFS(INDIRECT("Реестр!"&$K$3),Реестр!$F:$F,$C23,Реестр!$I:$I,G$4),SUMIFS(INDIRECT("Реестр!"&$K$3),Реестр!$F:$F,$C23,Реестр!$I:$I,G$4,Реестр!$A:$A,"<="&Версия))*IF($A23="-",-1,1) -> 0 | H23: =IF(ISBLANK($F$3),SUMIFS(INDIRECT("Реестр!"&$K$3),Реестр!$F:$F,$C23,Реестр!$I:$I,H$4),SUMIFS(INDIRECT("Реестр!"&$K$3),Реестр!$F:$F,$C23,Реестр!$I:$I,H$4,Реестр!$A:$A,"<="&Версия))*IF($A23="-",-1,1) -> 0 | I23: =IF(ISBLANK($F$3),SUMIFS(INDIRECT("Реестр!"&$K$3),Реестр!$F:$F,$C23,Реестр!$I:$I,I$4),SUMIFS(INDIRECT("Реестр!"&$K$3),Реестр!$F:$F,$C23,Реестр!$I:$I,I$4,Реестр!$A:$A,"<="&Версия))*IF($A23="-",-1,1) -> 0 | J23: =IF(ISBLANK($F$3),SUMIFS(INDIRECT("Реестр!"&$K$3),Реестр!$F:$F,$C23,Реестр!$I:$I,J$4),SUMIFS(INDIRECT("Реестр!"&$K$3),Реестр!$F:$F,$C23,Реестр!$I:$I,J$4,Реестр!$A:$A,"<="&Версия))*IF($A23="-",-1,1) -> 0 | K23: =IF(ISBLANK($F$3),SUMIFS(INDIRECT("Реестр!"&$K$3),Реестр!$F:$F,$C23,Реестр!$I:$I,K$4),SUMIFS(INDIRECT("Реестр!"&$K$3),Реестр!$F:$F,$C23,Реестр!$I:$I,K$4,Реестр!$A:$A,"<="&Версия))*IF($A23="-",-1,1) -> 0 | L23: =IF(ISBLANK($F$3),SUMIFS(INDIRECT("Реестр!"&$K$3),Реестр!$F:$F,$C23,Реестр!$I:$I,L$4),SUMIFS(INDIRECT("Реестр!"&$K$3),Реестр!$F:$F,$C23,Реестр!$I:$I,L$4,Реестр!$A:$A,"<="&Версия))*IF($A23="-",-1,1) -> 0 | M23: =IF(ISBLANK($F$3),SUMIFS(INDIRECT("Реестр!"&$K$3),Реестр!$F:$F,$C23,Реестр!$I:$I,M$4),SUMIFS(INDIRECT("Реестр!"&$K$3),Реестр!$F:$F,$C23,Реестр!$I:$I,M$4,Реестр!$A:$A,"<="&Версия))*IF($A23="-",-1,1) -> 0 | N23: =IF(ISBLANK($F$3),SUMIFS(INDIRECT("Реестр!"&$K$3),Реестр!$F:$F,$C23,Реестр!$I:$I,N$4),SUMIFS(INDIRECT("Реестр!"&$K$3),Реестр!$F:$F,$C23,Реестр!$I:$I,N$4,Реестр!$A:$A,"<="&Версия))*IF($A23="-",-1,1) -> 0 | O23: =IF(ISBLANK($F$3),SUMIFS(INDIRECT("Реестр!"&$K$3),Реестр!$F:$F,$C23,Реестр!$I:$I,O$4),SUMIFS(INDIRECT("Реестр!"&$K$3),Реестр!$F:$F,$C23,Реестр!$I:$I,O$4,Реестр!$A:$A,"<="&Версия))*IF($A23="-",-1,1) -> 0 | P23: 0
A24: - | B24: 12402 | C24: Сувениры, подарки | D24: =IF(ISBLANK($F$3),SUMIFS(INDIRECT("Реестр!"&$K$3),Реестр!$F:$F,$C24,Реестр!$I:$I,D$4),SUMIFS(INDIRECT("Реестр!"&$K$3),Реестр!$F:$F,$C24,Реестр!$I:$I,D$4,Реестр!$A:$A,"<="&Версия))*IF($A24="-",-1,1) -> 0 | E24: =IF(ISBLANK($F$3),SUMIFS(INDIRECT("Реестр!"&$K$3),Реестр!$F:$F,$C24,Реестр!$I:$I,E$4),SUMIFS(INDIRECT("Реестр!"&$K$3),Реестр!$F:$F,$C24,Реестр!$I:$I,E$4,Реестр!$A:$A,"<="&Версия))*IF($A24="-",-1,1) -> 0 | F24: =IF(ISBLANK($F$3),SUMIFS(INDIRECT("Реестр!"&$K$3),Реестр!$F:$F,$C24,Реестр!$I:$I,F$4),SUMIFS(INDIRECT("Реестр!"&$K$3),Реестр!$F:$F,$C24,Реестр!$I:$I,F$4,Реестр!$A:$A,"<="&Версия))*IF($A24="-",-1,1) -> 0 | G24: =IF(ISBLANK($F$3),SUMIFS(INDIRECT("Реестр!"&$K$3),Реестр!$F:$F,$C24,Реестр!$I:$I,G$4),SUMIFS(INDIRECT("Реестр!"&$K$3),Реестр!$F:$F,$C24,Реестр!$I:$I,G$4,Реестр!$A:$A,"<="&Версия))*IF($A24="-",-1,1) -> 0 | H24: =IF(ISBLANK($F$3),SUMIFS(INDIRECT("Реестр!"&$K$3),Реестр!$F:$F,$C24,Реестр!$I:$I,H$4),SUMIFS(INDIRECT("Реестр!"&$K$3),Реестр!$F:$F,$C24,Реестр!$I:$I,H$4,Реестр!$A:$A,"<="&Версия))*IF($A24="-",-1,1) -> 0 | I24: =IF(ISBLANK($F$3),SUMIFS(INDIRECT("Реестр!"&$K$3),Реестр!$F:$F,$C24,Реестр!$I:$I,I$4),SUMIFS(INDIRECT("Реестр!"&$K$3),Реестр!$F:$F,$C24,Реестр!$I:$I,I$4,Реестр!$A:$A,"<="&Версия))*IF($A24="-",-1,1) -> 0 | J24: =IF(ISBLANK($F$3),SUMIFS(INDIRECT("Реестр!"&$K$3),Реестр!$F:$F,$C24,Реестр!$I:$I,J$4),SUMIFS(INDIRECT("Реестр!"&$K$3),Реестр!$F:$F,$C24,Реестр!$I:$I,J$4,Реестр!$A:$A,"<="&Версия))*IF($A24="-",-1,1) -> 0 | K24: =IF(ISBLANK($F$3),SUMIFS(INDIRECT("Реестр!"&$K$3),Реестр!$F:$F,$C24,Реестр!$I:$I,K$4),SUMIFS(INDIRECT("Реестр!"&$K$3),Реестр!$F:$F,$C24,Реестр!$I:$I,K$4,Реестр!$A:$A,"<="&Версия))*IF($A24="-",-1,1) -> 0 | L24: =IF(ISBLANK($F$3),SUMIFS(INDIRECT("Реестр!"&$K$3),Реестр!$F:$F,$C24,Реестр!$I:$I,L$4),SUMIFS(INDIRECT("Реестр!"&$K$3),Реестр!$F:$F,$C24,Реестр!$I:$I,L$4,Реестр!$A:$A,"<="&Версия))*IF($A24="-",-1,1) -> 0 | M24: =IF(ISBLANK($F$3),SUMIFS(INDIRECT("Реестр!"&$K$3),Реестр!$F:$F,$C24,Реестр!$I:$I,M$4),SUMIFS(INDIRECT("Реестр!"&$K$3),Реестр!$F:$F,$C24,Реестр!$I:$I,M$4,Реестр!$A:$A,"<="&Версия))*IF($A24="-",-1,1) -> 0 | N24: =IF(ISBLANK($F$3),SUMIFS(INDIRECT("Реестр!"&$K$3),Реестр!$F:$F,$C24,Реестр!$I:$I,N$4),SUMIFS(INDIRECT("Реестр!"&$K$3),Реестр!$F:$F,$C24,Реестр!$I:$I,N$4,Реестр!$A:$A,"<="&Версия))*IF($A24="-",-1,1) -> 0 | O24: =IF(ISBLANK($F$3),SUMIFS(INDIRECT("Реестр!"&$K$3),Реестр!$F:$F,$C24,Реестр!$I:$I,O$4),SUMIFS(INDIRECT("Реестр!"&$K$3),Реестр!$F:$F,$C24,Реестр!$I:$I,O$4,Реестр!$A:$A,"<="&Версия))*IF($A24="-",-1,1) -> 0 | P24: 0
A25: - | B25: 12403 | C25: Реклама и PR | D25: =IF(ISBLANK($F$3),SUMIFS(INDIRECT("Реестр!"&$K$3),Реестр!$F:$F,$C25,Реестр!$I:$I,D$4),SUMIFS(INDIRECT("Реестр!"&$K$3),Реестр!$F:$F,$C25,Реестр!$I:$I,D$4,Реестр!$A:$A,"<="&Версия))*IF($A25="-",-1,1) -> 0 | E25: =IF(ISBLANK($F$3),SUMIFS(INDIRECT("Реестр!"&$K$3),Реестр!$F:$F,$C25,Реестр!$I:$I,E$4),SUMIFS(INDIRECT("Реестр!"&$K$3),Реестр!$F:$F,$C25,Реестр!$I:$I,E$4,Реестр!$A:$A,"<="&Версия))*IF($A25="-",-1,1) -> 0 | F25: =IF(ISBLANK($F$3),SUMIFS(INDIRECT("Реестр!"&$K$3),Реестр!$F:$F,$C25,Реестр!$I:$I,F$4),SUMIFS(INDIRECT("Реестр!"&$K$3),Реестр!$F:$F,$C25,Реестр!$I:$I,F$4,Реестр!$A:$A,"<="&Версия))*IF($A25="-",-1,1) -> 0 | G25: =IF(ISBLANK($F$3),SUMIFS(INDIRECT("Реестр!"&$K$3),Реестр!$F:$F,$C25,Реестр!$I:$I,G$4),SUMIFS(INDIRECT("Реестр!"&$K$3),Реестр!$F:$F,$C25,Реестр!$I:$I,G$4,Реестр!$A:$A,"<="&Версия))*IF($A25="-",-1,1) -> 0 | H25: =IF(ISBLANK($F$3),SUMIFS(INDIRECT("Реестр!"&$K$3),Реестр!$F:$F,$C25,Реестр!$I:$I,H$4),SUMIFS(INDIRECT("Реестр!"&$K$3),Реестр!$F:$F,$C25,Реестр!$I:$I,H$4,Реестр!$A:$A,"<="&Версия))*IF($A25="-",-1,1) -> 0 | I25: =IF(ISBLANK($F$3),SUMIFS(INDIRECT("Реестр!"&$K$3),Реестр!$F:$F,$C25,Реестр!$I:$I,I$4),SUMIFS(INDIRECT("Реестр!"&$K$3),Реестр!$F:$F,$C25,Реестр!$I:$I,I$4,Реестр!$A:$A,"<="&Версия))*IF($A25="-",-1,1) -> 0 | J25: =IF(ISBLANK($F$3),SUMIFS(INDIRECT("Реестр!"&$K$3),Реестр!$F:$F,$C25,Реестр!$I:$I,J$4),SUMIFS(INDIRECT("Реестр!"&$K$3),Реестр!$F:$F,$C25,Реестр!$I:$I,J$4,Реестр!$A:$A,"<="&Версия))*IF($A25="-",-1,1) -> 0 | K25: =IF(ISBLANK($F$3),SUMIFS(INDIRECT("Реестр!"&$K$3),Реестр!$F:$F,$C25,Реестр!$I:$I,K$4),SUMIFS(INDIRECT("Реестр!"&$K$3),Реестр!$F:$F,$C25,Реестр!$I:$I,K$4,Реестр!$A:$A,"<="&Версия))*IF($A25="-",-1,1) -> 0 | L25: =IF(ISBLANK($F$3),SUMIFS(INDIRECT("Реестр!"&$K$3),Реестр!$F:$F,$C25,Реестр!$I:$I,L$4),SUMIFS(INDIRECT("Реестр!"&$K$3),Реестр!$F:$F,$C25,Реестр!$I:$I,L$4,Реестр!$A:$A,"<="&Версия))*IF($A25="-",-1,1) -> 0 | M25: =IF(ISBLANK($F$3),SUMIFS(INDIRECT("Реестр!"&$K$3),Реестр!$F:$F,$C25,Реестр!$I:$I,M$4),SUMIFS(INDIRECT("Реестр!"&$K$3),Реестр!$F:$F,$C25,Реестр!$I:$I,M$4,Реестр!$A:$A,"<="&Версия))*IF($A25="-",-1,1) -> 0 | N25: =IF(ISBLANK($F$3),SUMIFS(INDIRECT("Реестр!"&$K$3),Реестр!$F:$F,$C25,Реестр!$I:$I,N$4),SUMIFS(INDIRECT("Реестр!"&$K$3),Реестр!$F:$F,$C25,Реестр!$I:$I,N$4,Реестр!$A:$A,"<="&Версия))*IF($A25="-",-1,1) -> 0 | O25: =IF(ISBLANK($F$3),SUMIFS(INDIRECT("Реестр!"&$K$3),Реестр!$F:$F,$C25,Реестр!$I:$I,O$4),SUMIFS(INDIRECT("Реестр!"&$K$3),Реестр!$F:$F,$C25,Реестр!$I:$I,O$4,Реестр!$A:$A,"<="&Версия))*IF($A25="-",-1,1) -> 0 | P25: 0
A26: - | B26: 12404 | C26: Креатив и концепции | D26: =IF(ISBLANK($F$3),SUMIFS(INDIRECT("Реестр!"&$K$3),Реестр!$F:$F,$C26,Реестр!$I:$I,D$4),SUMIFS(INDIRECT("Реестр!"&$K$3),Реестр!$F:$F,$C26,Реестр!$I:$I,D$4,Реестр!$A:$A,"<="&Версия))*IF($A26="-",-1,1) -> 0 | E26: =IF(ISBLANK($F$3),SUMIFS(INDIRECT("Реестр!"&$K$3),Реестр!$F:$F,$C26,Реестр!$I:$I,E$4),SUMIFS(INDIRECT("Реестр!"&$K$3),Реестр!$F:$F,$C26,Реестр!$I:$I,E$4,Реестр!$A:$A,"<="&Версия))*IF($A26="-",-1,1) -> 0 | F26: =IF(ISBLANK($F$3),SUMIFS(INDIRECT("Реестр!"&$K$3),Реестр!$F:$F,$C26,Реестр!$I:$I,F$4),SUMIFS(INDIRECT("Реестр!"&$K$3),Реестр!$F:$F,$C26,Реестр!$I:$I,F$4,Реестр!$A:$A,"<="&Версия))*IF($A26="-",-1,1) -> 0 | G26: =IF(ISBLANK($F$3),SUMIFS(INDIRECT("Реестр!"&$K$3),Реестр!$F:$F,$C26,Реестр!$I:$I,G$4),SUMIFS(INDIRECT("Реестр!"&$K$3),Реестр!$F:$F,$C26,Реестр!$I:$I,G$4,Реестр!$A:$A,"<="&Версия))*IF($A26="-",-1,1) -> 0 | H26: =IF(ISBLANK($F$3),SUMIFS(INDIRECT("Реестр!"&$K$3),Реестр!$F:$F,$C26,Реестр!$I:$I,H$4),SUMIFS(INDIRECT("Реестр!"&$K$3),Реестр!$F:$F,$C26,Реестр!$I:$I,H$4,Реестр!$A:$A,"<="&Версия))*IF($A26="-",-1,1) -> 0 | I26: =IF(ISBLANK($F$3),SUMIFS(INDIRECT("Реестр!"&$K$3),Реестр!$F:$F,$C26,Реестр!$I:$I,I$4),SUMIFS(INDIRECT("Реестр!"&$K$3),Реестр!$F:$F,$C26,Реестр!$I:$I,I$4,Реестр!$A:$A,"<="&Версия))*IF($A26="-",-1,1) -> 0 | J26: =IF(ISBLANK($F$3),SUMIFS(INDIRECT("Реестр!"&$K$3),Реестр!$F:$F,$C26,Реестр!$I:$I,J$4),SUMIFS(INDIRECT("Реестр!"&$K$3),Реестр!$F:$F,$C26,Реестр!$I:$I,J$4,Реестр!$A:$A,"<="&Версия))*IF($A26="-",-1,1) -> 0 | K26: =IF(ISBLANK($F$3),SUMIFS(INDIRECT("Реестр!"&$K$3),Реестр!$F:$F,$C26,Реестр!$I:$I,K$4),SUMIFS(INDIRECT("Реестр!"&$K$3),Реестр!$F:$F,$C26,Реестр!$I:$I,K$4,Реестр!$A:$A,"<="&Версия))*IF($A26="-",-1,1) -> 0 | L26: =IF(ISBLANK($F$3),SUMIFS(INDIRECT("Реестр!"&$K$3),Реестр!$F:$F,$C26,Реестр!$I:$I,L$4),SUMIFS(INDIRECT("Реестр!"&$K$3),Реестр!$F:$F,$C26,Реестр!$I:$I,L$4,Реестр!$A:$A,"<="&Версия))*IF($A26="-",-1,1) -> 0 | M26: =IF(ISBLANK($F$3),SUMIFS(INDIRECT("Реестр!"&$K$3),Реестр!$F:$F,$C26,Реестр!$I:$I,M$4),SUMIFS(INDIRECT("Реестр!"&$K$3),Реестр!$F:$F,$C26,Реестр!$I:$I,M$4,Реестр!$A:$A,"<="&Версия))*IF($A26="-",-1,1) -> 0 | N26: =IF(ISBLANK($F$3),SUMIFS(INDIRECT("Реестр!"&$K$3),Реестр!$F:$F,$C26,Реестр!$I:$I,N$4),SUMIFS(INDIRECT("Реестр!"&$K$3),Реестр!$F:$F,$C26,Реестр!$I:$I,N$4,Реестр!$A:$A,"<="&Версия))*IF($A26="-",-1,1) -> 0 | O26: =IF(ISBLANK($F$3),SUMIFS(INDIRECT("Реестр!"&$K$3),Реестр!$F:$F,$C26,Реестр!$I:$I,O$4),SUMIFS(INDIRECT("Реестр!"&$K$3),Реестр!$F:$F,$C26,Реестр!$I:$I,O$4,Реестр!$A:$A,"<="&Версия))*IF($A26="-",-1,1) -> 0 | P26: 0
A27: - | B27: 12405 | C27: Прочие расходы на маркетинг | D27: =IF(ISBLANK($F$3),SUMIFS(INDIRECT("Реестр!"&$K$3),Реестр!$F:$F,$C27,Реестр!$I:$I,D$4),SUMIFS(INDIRECT("Реестр!"&$K$3),Реестр!$F:$F,$C27,Реестр!$I:$I,D$4,Реестр!$A:$A,"<="&Версия))*IF($A27="-",-1,1) -> 0 | E27: =IF(ISBLANK($F$3),SUMIFS(INDIRECT("Реестр!"&$K$3),Реестр!$F:$F,$C27,Реестр!$I:$I,E$4),SUMIFS(INDIRECT("Реестр!"&$K$3),Реестр!$F:$F,$C27,Реестр!$I:$I,E$4,Реестр!$A:$A,"<="&Версия))*IF($A27="-",-1,1) -> 0 | F27: =IF(ISBLANK($F$3),SUMIFS(INDIRECT("Реестр!"&$K$3),Реестр!$F:$F,$C27,Реестр!$I:$I,F$4),SUMIFS(INDIRECT("Реестр!"&$K$3),Реестр!$F:$F,$C27,Реестр!$I:$I,F$4,Реестр!$A:$A,"<="&Версия))*IF($A27="-",-1,1) -> 0 | G27: =IF(ISBLANK($F$3),SUMIFS(INDIRECT("Реестр!"&$K$3),Реестр!$F:$F,$C27,Реестр!$I:$I,G$4),SUMIFS(INDIRECT("Реестр!"&$K$3),Реестр!$F:$F,$C27,Реестр!$I:$I,G$4,Реестр!$A:$A,"<="&Версия))*IF($A27="-",-1,1) -> 0 | H27: =IF(ISBLANK($F$3),SUMIFS(INDIRECT("Реестр!"&$K$3),Реестр!$F:$F,$C27,Реестр!$I:$I,H$4),SUMIFS(INDIRECT("Реестр!"&$K$3),Реестр!$F:$F,$C27,Реестр!$I:$I,H$4,Реестр!$A:$A,"<="&Версия))*IF($A27="-",-1,1) -> 0 | I27: =IF(ISBLANK($F$3),SUMIFS(INDIRECT("Реестр!"&$K$3),Реестр!$F:$F,$C27,Реестр!$I:$I,I$4),SUMIFS(INDIRECT("Реестр!"&$K$3),Реестр!$F:$F,$C27,Реестр!$I:$I,I$4,Реестр!$A:$A,"<="&Версия))*IF($A27="-",-1,1) -> 0 | J27: =IF(ISBLANK($F$3),SUMIFS(INDIRECT("Реестр!"&$K$3),Реестр!$F:$F,$C27,Реестр!$I:$I,J$4),SUMIFS(INDIRECT("Реестр!"&$K$3),Реестр!$F:$F,$C27,Реестр!$I:$I,J$4,Реестр!$A:$A,"<="&Версия))*IF($A27="-",-1,1) -> 0 | K27: =IF(ISBLANK($F$3),SUMIFS(INDIRECT("Реестр!"&$K$3),Реестр!$F:$F,$C27,Реестр!$I:$I,K$4),SUMIFS(INDIRECT("Реестр!"&$K$3),Реестр!$F:$F,$C27,Реестр!$I:$I,K$4,Реестр!$A:$A,"<="&Версия))*IF($A27="-",-1,1) -> 0 | L27: =IF(ISBLANK($F$3),SUMIFS(INDIRECT("Реестр!"&$K$3),Реестр!$F:$F,$C27,Реестр!$I:$I,L$4),SUMIFS(INDIRECT("Реестр!"&$K$3),Реестр!$F:$F,$C27,Реестр!$I:$I,L$4,Реестр!$A:$A,"<="&Версия))*IF($A27="-",-1,1) -> 0 | M27: =IF(ISBLANK($F$3),SUMIFS(INDIRECT("Реестр!"&$K$3),Реестр!$F:$F,$C27,Реестр!$I:$I,M$4),SUMIFS(INDIRECT("Реестр!"&$K$3),Реестр!$F:$F,$C27,Реестр!$I:$I,M$4,Реестр!$A:$A,"<="&Версия))*IF($A27="-",-1,1) -> 0 | N27: =IF(ISBLANK($F$3),SUMIFS(INDIRECT("Реестр!"&$K$3),Реестр!$F:$F,$C27,Реестр!$I:$I,N$4),SUMIFS(INDIRECT("Реестр!"&$K$3),Реестр!$F:$F,$C27,Реестр!$I:$I,N$4,Реестр!$A:$A,"<="&Версия))*IF($A27="-",-1,1) -> 0 | O27: =IF(ISBLANK($F$3),SUMIFS(INDIRECT("Реестр!"&$K$3),Реестр!$F:$F,$C27,Реестр!$I:$I,O$4),SUMIFS(INDIRECT("Реестр!"&$K$3),Реестр!$F:$F,$C27,Реестр!$I:$I,O$4,Реестр!$A:$A,"<="&Версия))*IF($A27="-",-1,1) -> 0 | P27: 0
B28: 12500 | C28: Производственные расходы | D28: =SUM(D29:D33) -> 115000 | E28: =SUM(E29:E33) -> 115000 | F28: 115000 | G28: 115000 | H28: 115000 | I28: 115000 | J28: 115000 | K28: 115000 | L28: 115000 | M28: 115000 | N28: 115000 | O28: 115000 | P28: 1380000
A29: - | B29: 12501 | C29: Хостинг серверов | D29: =IF(ISBLANK($F$3),SUMIFS(INDIRECT("Реестр!"&$K$3),Реестр!$F:$F,$C29,Реестр!$I:$I,D$4),SUMIFS(INDIRECT("Реестр!"&$K$3),Реестр!$F:$F,$C29,Реестр!$I:$I,D$4,Реестр!$A:$A,"<="&Версия))*IF($A29="-",-1,1) -> 75000 | E29: =IF(ISBLANK($F$3),SUMIFS(INDIRECT("Реестр!"&$K$3),Реестр!$F:$F,$C29,Реестр!$I:$I,E$4),SUMIFS(INDIRECT("Реестр!"&$K$3),Реестр!$F:$F,$C29,Реестр!$I:$I,E$4,Реестр!$A:$A,"<="&Версия))*IF($A29="-",-1,1) -> 75000 | F29: =IF(ISBLANK($F$3),SUMIFS(INDIRECT("Реестр!"&$K$3),Реестр!$F:$F,$C29,Реестр!$I:$I,F$4),SUMIFS(INDIRECT("Реестр!"&$K$3),Реестр!$F:$F,$C29,Реестр!$I:$I,F$4,Реестр!$A:$A,"<="&Версия))*IF($A29="-",-1,1) -> 75000 | G29: =IF(ISBLANK($F$3),SUMIFS(INDIRECT("Реестр!"&$K$3),Реестр!$F:$F,$C29,Реестр!$I:$I,G$4),SUMIFS(INDIRECT("Реестр!"&$K$3),Реестр!$F:$F,$C29,Реестр!$I:$I,G$4,Реестр!$A:$A,"<="&Версия))*IF($A29="-",-1,1) -> 75000 | H29: =IF(ISBLANK($F$3),SUMIFS(INDIRECT("Реестр!"&$K$3),Реестр!$F:$F,$C29,Реестр!$I:$I,H$4),SUMIFS(INDIRECT("Реестр!"&$K$3),Реестр!$F:$F,$C29,Реестр!$I:$I,H$4,Реестр!$A:$A,"<="&Версия))*IF($A29="-",-1,1) -> 75000 | I29: =IF(ISBLANK($F$3),SUMIFS(INDIRECT("Реестр!"&$K$3),Реестр!$F:$F,$C29,Реестр!$I:$I,I$4),SUMIFS(INDIRECT("Реестр!"&$K$3),Реестр!$F:$F,$C29,Реестр!$I:$I,I$4,Реестр!$A:$A,"<="&Версия))*IF($A29="-",-1,1) -> 75000 | J29: =IF(ISBLANK($F$3),SUMIFS(INDIRECT("Реестр!"&$K$3),Реестр!$F:$F,$C29,Реестр!$I:$I,J$4),SUMIFS(INDIRECT("Реестр!"&$K$3),Реестр!$F:$F,$C29,Реестр!$I:$I,J$4,Реестр!$A:$A,"<="&Версия))*IF($A29="-",-1,1) -> 75000 | K29: =IF(ISBLANK($F$3),SUMIFS(INDIRECT("Реестр!"&$K$3),Реестр!$F:$F,$C29,Реестр!$I:$I,K$4),SUMIFS(INDIRECT("Реестр!"&$K$3),Реестр!$F:$F,$C29,Реестр!$I:$I,K$4,Реестр!$A:$A,"<="&Версия))*IF($A29="-",-1,1) -> 75000 | L29: =IF(ISBLANK($F$3),SUMIFS(INDIRECT("Реестр!"&$K$3),Реестр!$F:$F,$C29,Реестр!$I:$I,L$4),SUMIFS(INDIRECT("Реестр!"&$K$3),Реестр!$F:$F,$C29,Реестр!$I:$I,L$4,Реестр!$A:$A,"<="&Версия))*IF($A29="-",-1,1) -> 75000 | M29: =IF(ISBLANK($F$3),SUMIFS(INDIRECT("Реестр!"&$K$3),Реестр!$F:$F,$C29,Реестр!$I:$I,M$4),SUMIFS(INDIRECT("Реестр!"&$K$3),Реестр!$F:$F,$C29,Реестр!$I:$I,M$4,Реестр!$A:$A,"<="&Версия))*IF($A29="-",-1,1) -> 75000 | N29: =IF(ISBLANK($F$3),SUMIFS(INDIRECT("Реестр!"&$K$3),Реестр!$F:$F,$C29,Реестр!$I:$I,N$4),SUMIFS(INDIRECT("Реестр!"&$K$3),Реестр!$F:$F,$C29,Реестр!$I:$I,N$4,Реестр!$A:$A,"<="&Версия))*IF($A29="-",-1,1) -> 75000 | O29: =IF(ISBLANK($F$3),SUMIFS(INDIRECT("Реестр!"&$K$3),Реестр!$F:$F,$C29,Реестр!$I:$I,O$4),SUMIFS(INDIRECT("Реестр!"&$K$3),Реестр!$F:$F,$C29,Реестр!$I:$I,O$4,Реестр!$A:$A,"<="&Версия))*IF($A29="-",-1,1) -> 75000 | P29: 900000
A30: - | B30: 12502 | C30: Телематические услуги | D30: =IF(ISBLANK($F$3),SUMIFS(INDIRECT("Реестр!"&$K$3),Реестр!$F:$F,$C30,Реестр!$I:$I,D$4),SUMIFS(INDIRECT("Реестр!"&$K$3),Реестр!$F:$F,$C30,Реестр!$I:$I,D$4,Реестр!$A:$A,"<="&Версия))*IF($A30="-",-1,1) -> 15000 | E30: =IF(ISBLANK($F$3),SUMIFS(INDIRECT("Реестр!"&$K$3),Реестр!$F:$F,$C30,Реестр!$I:$I,E$4),SUMIFS(INDIRECT("Реестр!"&$K$3),Реестр!$F:$F,$C30,Реестр!$I:$I,E$4,Реестр!$A:$A,"<="&Версия))*IF($A30="-",-1,1) -> 15000 | F30: =IF(ISBLANK($F$3),SUMIFS(INDIRECT("Реестр!"&$K$3),Реестр!$F:$F,$C30,Реестр!$I:$I,F$4),SUMIFS(INDIRECT("Реестр!"&$K$3),Реестр!$F:$F,$C30,Реестр!$I:$I,F$4,Реестр!$A:$A,"<="&Версия))*IF($A30="-",-1,1) -> 15000 | G30: =IF(ISBLANK($F$3),SUMIFS(INDIRECT("Реестр!"&$K$3),Реестр!$F:$F,$C30,Реестр!$I:$I,G$4),SUMIFS(INDIRECT("Реестр!"&$K$3),Реестр!$F:$F,$C30,Реестр!$I:$I,G$4,Реестр!$A:$A,"<="&Версия))*IF($A30="-",-1,1) -> 15000 | H30: =IF(ISBLANK($F$3),SUMIFS(INDIRECT("Реестр!"&$K$3),Реестр!$F:$F,$C30,Реестр!$I:$I,H$4),SUMIFS(INDIRECT("Реестр!"&$K$3),Реестр!$F:$F,$C30,Реестр!$I:$I,H$4,Реестр!$A:$A,"<="&Версия))*IF($A30="-",-1,1) -> 15000 | I30: =IF(ISBLANK($F$3),SUMIFS(INDIRECT("Реестр!"&$K$3),Реестр!$F:$F,$C30,Реестр!$I:$I,I$4),SUMIFS(INDIRECT("Реестр!"&$K$3),Реестр!$F:$F,$C30,Реестр!$I:$I,I$4,Реестр!$A:$A,"<="&Версия))*IF($A30="-",-1,1) -> 15000 | J30: =IF(ISBLANK($F$3),SUMIFS(INDIRECT("Реестр!"&$K$3),Реестр!$F:$F,$C30,Реестр!$I:$I,J$4),SUMIFS(INDIRECT("Реестр!"&$K$3),Реестр!$F:$F,$C30,Реестр!$I:$I,J$4,Реестр!$A:$A,"<="&Версия))*IF($A30="-",-1,1) -> 15000 | K30: =IF(ISBLANK($F$3),SUMIFS(INDIRECT("Реестр!"&$K$3),Реестр!$F:$F,$C30,Реестр!$I:$I,K$4),SUMIFS(INDIRECT("Реестр!"&$K$3),Реестр!$F:$F,$C30,Реестр!$I:$I,K$4,Реестр!$A:$A,"<="&Версия))*IF($A30="-",-1,1) -> 15000 | L30: =IF(ISBLANK($F$3),SUMIFS(INDIRECT("Реестр!"&$K$3),Реестр!$F:$F,$C30,Реестр!$I:$I,L$4),SUMIFS(INDIRECT("Реестр!"&$K$3),Реестр!$F:$F,$C30,Реестр!$I:$I,L$4,Реестр!$A:$A,"<="&Версия))*IF($A30="-",-1,1) -> 15000 | M30: =IF(ISBLANK($F$3),SUMIFS(INDIRECT("Реестр!"&$K$3),Реестр!$F:$F,$C30,Реестр!$I:$I,M$4),SUMIFS(INDIRECT("Реестр!"&$K$3),Реестр!$F:$F,$C30,Реестр!$I:$I,M$4,Реестр!$A:$A,"<="&Версия))*IF($A30="-",-1,1) -> 15000 | N30: =IF(ISBLANK($F$3),SUMIFS(INDIRECT("Реестр!"&$K$3),Реестр!$F:$F,$C30,Реестр!$I:$I,N$4),SUMIFS(INDIRECT("Реестр!"&$K$3),Реестр!$F:$F,$C30,Реестр!$I:$I,N$4,Реестр!$A:$A,"<="&Версия))*IF($A30="-",-1,1) -> 15000 | O30: =IF(ISBLANK($F$3),SUMIFS(INDIRECT("Реестр!"&$K$3),Реестр!$F:$F,$C30,Реестр!$I:$I,O$4),SUMIFS(INDIRECT("Реестр!"&$K$3),Реестр!$F:$F,$C30,Реестр!$I:$I,O$4,Реестр!$A:$A,"<="&Версия))*IF($A30="-",-1,1) -> 15000 | P30: 180000
A31: - | B31: 12503 | C31: Домены и обслуживание сайтов | D31: =IF(ISBLANK($F$3),SUMIFS(INDIRECT("Реестр!"&$K$3),Реестр!$F:$F,$C31,Реестр!$I:$I,D$4),SUMIFS(INDIRECT("Реестр!"&$K$3),Реестр!$F:$F,$C31,Реестр!$I:$I,D$4,Реестр!$A:$A,"<="&Версия))*IF($A31="-",-1,1) -> 7500 | E31: =IF(ISBLANK($F$3),SUMIFS(INDIRECT("Реестр!"&$K$3),Реестр!$F:$F,$C31,Реестр!$I:$I,E$4),SUMIFS(INDIRECT("Реестр!"&$K$3),Реестр!$F:$F,$C31,Реестр!$I:$I,E$4,Реестр!$A:$A,"<="&Версия))*IF($A31="-",-1,1) -> 7500 | F31: =IF(ISBLANK($F$3),SUMIFS(INDIRECT("Реестр!"&$K$3),Реестр!$F:$F,$C31,Реестр!$I:$I,F$4),SUMIFS(INDIRECT("Реестр!"&$K$3),Реестр!$F:$F,$C31,Реестр!$I:$I,F$4,Реестр!$A:$A,"<="&Версия))*IF($A31="-",-1,1) -> 7500 | G31: =IF(ISBLANK($F$3),SUMIFS(INDIRECT("Реестр!"&$K$3),Реестр!$F:$F,$C31,Реестр!$I:$I,G$4),SUMIFS(INDIRECT("Реестр!"&$K$3),Реестр!$F:$F,$C31,Реестр!$I:$I,G$4,Реестр!$A:$A,"<="&Версия))*IF($A31="-",-1,1) -> 7500 | H31: =IF(ISBLANK($F$3),SUMIFS(INDIRECT("Реестр!"&$K$3),Реестр!$F:$F,$C31,Реестр!$I:$I,H$4),SUMIFS(INDIRECT("Реестр!"&$K$3),Реестр!$F:$F,$C31,Реестр!$I:$I,H$4,Реестр!$A:$A,"<="&Версия))*IF($A31="-",-1,1) -> 7500 | I31: =IF(ISBLANK($F$3),SUMIFS(INDIRECT("Реестр!"&$K$3),Реестр!$F:$F,$C31,Реестр!$I:$I,I$4),SUMIFS(INDIRECT("Реестр!"&$K$3),Реестр!$F:$F,$C31,Реестр!$I:$I,I$4,Реестр!$A:$A,"<="&Версия))*IF($A31="-",-1,1) -> 7500 | J31: =IF(ISBLANK($F$3),SUMIFS(INDIRECT("Реестр!"&$K$3),Реестр!$F:$F,$C31,Реестр!$I:$I,J$4),SUMIFS(INDIRECT("Реестр!"&$K$3),Реестр!$F:$F,$C31,Реестр!$I:$I,J$4,Реестр!$A:$A,"<="&Версия))*IF($A31="-",-1,1) -> 7500 | K31: =IF(ISBLANK($F$3),SUMIFS(INDIRECT("Реестр!"&$K$3),Реестр!$F:$F,$C31,Реестр!$I:$I,K$4),SUMIFS(INDIRECT("Реестр!"&$K$3),Реестр!$F:$F,$C31,Реестр!$I:$I,K$4,Реестр!$A:$A,"<="&Версия))*IF($A31="-",-1,1) -> 7500 | L31: =IF(ISBLANK($F$3),SUMIFS(INDIRECT("Реестр!"&$K$3),Реестр!$F:$F,$C31,Реестр!$I:$I,L$4),SUMIFS(INDIRECT("Реестр!"&$K$3),Реестр!$F:$F,$C31,Реестр!$I:$I,L$4,Реестр!$A:$A,"<="&Версия))*IF($A31="-",-1,1) -> 7500 | M31: =IF(ISBLANK($F$3),SUMIFS(INDIRECT("Реестр!"&$K$3),Реестр!$F:$F,$C31,Реестр!$I:$I,M$4),SUMIFS(INDIRECT("Реестр!"&$K$3),Реестр!$F:$F,$C31,Реестр!$I:$I,M$4,Реестр!$A:$A,"<="&Версия))*IF($A31="-",-1,1) -> 7500 | N31: =IF(ISBLANK($F$3),SUMIFS(INDIRECT("Реестр!"&$K$3),Реестр!$F:$F,$C31,Реестр!$I:$I,N$4),SUMIFS(INDIRECT("Реестр!"&$K$3),Реестр!$F:$F,$C31,Реестр!$I:$I,N$4,Реестр!$A:$A,"<="&Версия))*IF($A31="-",-1,1) -> 7500 | O31: =IF(ISBLANK($F$3),SUMIFS(INDIRECT("Реестр!"&$K$3),Реестр!$F:$F,$C31,Реестр!$I:$I,O$4),SUMIFS(INDIRECT("Реестр!"&$K$3),Реестр!$F:$F,$C31,Реестр!$I:$I,O$4,Реестр!$A:$A,"<="&Версия))*IF($A31="-",-1,1) -> 7500 | P31: 90000
A32: - | B32: 12504 | C32: Интернет на площадке | D32: =IF(ISBLANK($F$3),SUMIFS(INDIRECT("Реестр!"&$K$3),Реестр!$F:$F,$C32,Реестр!$I:$I,D$4),SUMIFS(INDIRECT("Реестр!"&$K$3),Реестр!$F:$F,$C32,Реестр!$I:$I,D$4,Реестр!$A:$A,"<="&Версия))*IF($A32="-",-1,1) -> 17500 | E32: =IF(ISBLANK($F$3),SUMIFS(INDIRECT("Реестр!"&$K$3),Реестр!$F:$F,$C32,Реестр!$I:$I,E$4),SUMIFS(INDIRECT("Реестр!"&$K$3),Реестр!$F:$F,$C32,Реестр!$I:$I,E$4,Реестр!$A:$A,"<="&Версия))*IF($A32="-",-1,1) -> 17500 | F32: =IF(ISBLANK($F$3),SUMIFS(INDIRECT("Реестр!"&$K$3),Реестр!$F:$F,$C32,Реестр!$I:$I,F$4),SUMIFS(INDIRECT("Реестр!"&$K$3),Реестр!$F:$F,$C32,Реестр!$I:$I,F$4,Реестр!$A:$A,"<="&Версия))*IF($A32="-",-1,1) -> 17500 | G32: =IF(ISBLANK($F$3),SUMIFS(INDIRECT("Реестр!"&$K$3),Реестр!$F:$F,$C32,Реестр!$I:$I,G$4),SUMIFS(INDIRECT("Реестр!"&$K$3),Реестр!$F:$F,$C32,Реестр!$I:$I,G$4,Реестр!$A:$A,"<="&Версия))*IF($A32="-",-1,1) -> 17500 | H32: =IF(ISBLANK($F$3),SUMIFS(INDIRECT("Реестр!"&$K$3),Реестр!$F:$F,$C32,Реестр!$I:$I,H$4),SUMIFS(INDIRECT("Реестр!"&$K$3),Реестр!$F:$F,$C32,Реестр!$I:$I,H$4,Реестр!$A:$A,"<="&Версия))*IF($A32="-",-1,1) -> 17500 | I32: =IF(ISBLANK($F$3),SUMIFS(INDIRECT("Реестр!"&$K$3),Реестр!$F:$F,$C32,Реестр!$I:$I,I$4),SUMIFS(INDIRECT("Реестр!"&$K$3),Реестр!$F:$F,$C32,Реестр!$I:$I,I$4,Реестр!$A:$A,"<="&Версия))*IF($A32="-",-1,1) -> 17500 | J32: =IF(ISBLANK($F$3),SUMIFS(INDIRECT("Реестр!"&$K$3),Реестр!$F:$F,$C32,Реестр!$I:$I,J$4),SUMIFS(INDIRECT("Реестр!"&$K$3),Реестр!$F:$F,$C32,Реестр!$I:$I,J$4,Реестр!$A:$A,"<="&Версия))*IF($A32="-",-1,1) -> 17500 | K32: =IF(ISBLANK($F$3),SUMIFS(INDIRECT("Реестр!"&$K$3),Реестр!$F:$F,$C32,Реестр!$I:$I,K$4),SUMIFS(INDIRECT("Реестр!"&$K$3),Реестр!$F:$F,$C32,Реестр!$I:$I,K$4,Реестр!$A:$A,"<="&Версия))*IF($A32="-",-1,1) -> 17500 | L32: =IF(ISBLANK($F$3),SUMIFS(INDIRECT("Реестр!"&$K$3),Реестр!$F:$F,$C32,Реестр!$I:$I,L$4),SUMIFS(INDIRECT("Реестр!"&$K$3),Реестр!$F:$F,$C32,Реестр!$I:$I,L$4,Реестр!$A:$A,"<="&Версия))*IF($A32="-",-1,1) -> 17500 | M32: =IF(ISBLANK($F$3),SUMIFS(INDIRECT("Реестр!"&$K$3),Реестр!$F:$F,$C32,Реестр!$I:$I,M$4),SUMIFS(INDIRECT("Реестр!"&$K$3),Реестр!$F:$F,$C32,Реестр!$I:$I,M$4,Реестр!$A:$A,"<="&Версия))*IF($A32="-",-1,1) -> 17500 | N32: =IF(ISBLANK($F$3),SUMIFS(INDIRECT("Реестр!"&$K$3),Реестр!$F:$F,$C32,Реестр!$I:$I,N$4),SUMIFS(INDIRECT("Реестр!"&$K$3),Реестр!$F:$F,$C32,Реестр!$I:$I,N$4,Реестр!$A:$A,"<="&Версия))*IF($A32="-",-1,1) -> 17500 | O32: =IF(ISBLANK($F$3),SUMIFS(INDIRECT("Реестр!"&$K$3),Реестр!$F:$F,$C32,Реестр!$I:$I,O$4),SUMIFS(INDIRECT("Реестр!"&$K$3),Реестр!$F:$F,$C32,Реестр!$I:$I,O$4,Реестр!$A:$A,"<="&Версия))*IF($A32="-",-1,1) -> 17500 | P32: 210000
A33: - | B33: 12505 | C33: Прочие производственные расходы | D33: =IF(ISBLANK($F$3),SUMIFS(INDIRECT("Реестр!"&$K$3),Реестр!$F:$F,$C33,Реестр!$I:$I,D$4),SUMIFS(INDIRECT("Реестр!"&$K$3),Реестр!$F:$F,$C33,Реестр!$I:$I,D$4,Реестр!$A:$A,"<="&Версия))*IF($A33="-",-1,1) -> 0 | E33: =IF(ISBLANK($F$3),SUMIFS(INDIRECT("Реестр!"&$K$3),Реестр!$F:$F,$C33,Реестр!$I:$I,E$4),SUMIFS(INDIRECT("Реестр!"&$K$3),Реестр!$F:$F,$C33,Реестр!$I:$I,E$4,Реестр!$A:$A,"<="&Версия))*IF($A33="-",-1,1) -> 0 | F33: =IF(ISBLANK($F$3),SUMIFS(INDIRECT("Реестр!"&$K$3),Реестр!$F:$F,$C33,Реестр!$I:$I,F$4),SUMIFS(INDIRECT("Реестр!"&$K$3),Реестр!$F:$F,$C33,Реестр!$I:$I,F$4,Реестр!$A:$A,"<="&Версия))*IF($A33="-",-1,1) -> 0 | G33: =IF(ISBLANK($F$3),SUMIFS(INDIRECT("Реестр!"&$K$3),Реестр!$F:$F,$C33,Реестр!$I:$I,G$4),SUMIFS(INDIRECT("Реестр!"&$K$3),Реестр!$F:$F,$C33,Реестр!$I:$I,G$4,Реестр!$A:$A,"<="&Версия))*IF($A33="-",-1,1) -> 0 | H33: =IF(ISBLANK($F$3),SUMIFS(INDIRECT("Реестр!"&$K$3),Реестр!$F:$F,$C33,Реестр!$I:$I,H$4),SUMIFS(INDIRECT("Реестр!"&$K$3),Реестр!$F:$F,$C33,Реестр!$I:$I,H$4,Реестр!$A:$A,"<="&Версия))*IF($A33="-",-1,1) -> 0 | I33: =IF(ISBLANK($F$3),SUMIFS(INDIRECT("Реестр!"&$K$3),Реестр!$F:$F,$C33,Реестр!$I:$I,I$4),SUMIFS(INDIRECT("Реестр!"&$K$3),Реестр!$F:$F,$C33,Реестр!$I:$I,I$4,Реестр!$A:$A,"<="&Версия))*IF($A33="-",-1,1) -> 0 | J33: =IF(ISBLANK($F$3),SUMIFS(INDIRECT("Реестр!"&$K$3),Реестр!$F:$F,$C33,Реестр!$I:$I,J$4),SUMIFS(INDIRECT("Реестр!"&$K$3),Реестр!$F:$F,$C33,Реестр!$I:$I,J$4,Реестр!$A:$A,"<="&Версия))*IF($A33="-",-1,1) -> 0 | K33: =IF(ISBLANK($F$3),SUMIFS(INDIRECT("Реестр!"&$K$3),Реестр!$F:$F,$C33,Реестр!$I:$I,K$4),SUMIFS(INDIRECT("Реестр!"&$K$3),Реестр!$F:$F,$C33,Реестр!$I:$I,K$4,Реестр!$A:$A,"<="&Версия))*IF($A33="-",-1,1) -> 0 | L33: =IF(ISBLANK($F$3),SUMIFS(INDIRECT("Реестр!"&$K$3),Реестр!$F:$F,$C33,Реестр!$I:$I,L$4),SUMIFS(INDIRECT("Реестр!"&$K$3),Реестр!$F:$F,$C33,Реестр!$I:$I,L$4,Реестр!$A:$A,"<="&Версия))*IF($A33="-",-1,1) -> 0 | M33: =IF(ISBLANK($F$3),SUMIFS(INDIRECT("Реестр!"&$K$3),Реестр!$F:$F,$C33,Реестр!$I:$I,M$4),SUMIFS(INDIRECT("Реестр!"&$K$3),Реестр!$F:$F,$C33,Реестр!$I:$I,M$4,Реестр!$A:$A,"<="&Версия))*IF($A33="-",-1,1) -> 0 | N33: =IF(ISBLANK($F$3),SUMIFS(INDIRECT("Реестр!"&$K$3),Реестр!$F:$F,$C33,Реестр!$I:$I,N$4),SUMIFS(INDIRECT("Реестр!"&$K$3),Реестр!$F:$F,$C33,Реестр!$I:$I,N$4,Реестр!$A:$A,"<="&Версия))*IF($A33="-",-1,1) -> 0 | O33: =IF(ISBLANK($F$3),SUMIFS(INDIRECT("Реестр!"&$K$3),Реестр!$F:$F,$C33,Реестр!$I:$I,O$4),SUMIFS(INDIRECT("Реестр!"&$K$3),Реестр!$F:$F,$C33,Реестр!$I:$I,O$4,Реестр!$A:$A,"<="&Версия))*IF($A33="-",-1,1) -> 0 | P33: 0
B34: 12600 | C34: Административные расходы | D34: =SUM(D35:D43) -> 265500 | E34: =SUM(E35:E43) -> 265500 | F34: 265500 | G34: 265500 | H34: 265500 | I34: 265500 | J34: 265500 | K34: 265500 | L34: 265500 | M34: 265500 | N34: 265500 | O34: 265500 | P34: 3186000
A35: - | B35: 12601 | C35: Аренда офиса | D35: =IF(ISBLANK($F$3),SUMIFS(INDIRECT("Реестр!"&$K$3),Реестр!$F:$F,$C35,Реестр!$I:$I,D$4),SUMIFS(INDIRECT("Реестр!"&$K$3),Реестр!$F:$F,$C35,Реестр!$I:$I,D$4,Реестр!$A:$A,"<="&Версия))*IF($A35="-",-1,1) -> 45000 | E35: =IF(ISBLANK($F$3),SUMIFS(INDIRECT("Реестр!"&$K$3),Реестр!$F:$F,$C35,Реестр!$I:$I,E$4),SUMIFS(INDIRECT("Реестр!"&$K$3),Реестр!$F:$F,$C35,Реестр!$I:$I,E$4,Реестр!$A:$A,"<="&Версия))*IF($A35="-",-1,1) -> 45000 | F35: =IF(ISBLANK($F$3),SUMIFS(INDIRECT("Реестр!"&$K$3),Реестр!$F:$F,$C35,Реестр!$I:$I,F$4),SUMIFS(INDIRECT("Реестр!"&$K$3),Реестр!$F:$F,$C35,Реестр!$I:$I,F$4,Реестр!$A:$A,"<="&Версия))*IF($A35="-",-1,1) -> 45000 | G35: =IF(ISBLANK($F$3),SUMIFS(INDIRECT("Реестр!"&$K$3),Реестр!$F:$F,$C35,Реестр!$I:$I,G$4),SUMIFS(INDIRECT("Реестр!"&$K$3),Реестр!$F:$F,$C35,Реестр!$I:$I,G$4,Реестр!$A:$A,"<="&Версия))*IF($A35="-",-1,1) -> 45000 | H35: =IF(ISBLANK($F$3),SUMIFS(INDIRECT("Реестр!"&$K$3),Реестр!$F:$F,$C35,Реестр!$I:$I,H$4),SUMIFS(INDIRECT("Реестр!"&$K$3),Реестр!$F:$F,$C35,Реестр!$I:$I,H$4,Реестр!$A:$A,"<="&Версия))*IF($A35="-",-1,1) -> 45000 | I35: =IF(ISBLANK($F$3),SUMIFS(INDIRECT("Реестр!"&$K$3),Реестр!$F:$F,$C35,Реестр!$I:$I,I$4),SUMIFS(INDIRECT("Реестр!"&$K$3),Реестр!$F:$F,$C35,Реестр!$I:$I,I$4,Реестр!$A:$A,"<="&Версия))*IF($A35="-",-1,1) -> 45000 | J35: =IF(ISBLANK($F$3),SUMIFS(INDIRECT("Реестр!"&$K$3),Реестр!$F:$F,$C35,Реестр!$I:$I,J$4),SUMIFS(INDIRECT("Реестр!"&$K$3),Реестр!$F:$F,$C35,Реестр!$I:$I,J$4,Реестр!$A:$A,"<="&Версия))*IF($A35="-",-1,1) -> 45000 | K35: =IF(ISBLANK($F$3),SUMIFS(INDIRECT("Реестр!"&$K$3),Реестр!$F:$F,$C35,Реестр!$I:$I,K$4),SUMIFS(INDIRECT("Реестр!"&$K$3),Реестр!$F:$F,$C35,Реестр!$I:$I,K$4,Реестр!$A:$A,"<="&Версия))*IF($A35="-",-1,1) -> 45000 | L35: =IF(ISBLANK($F$3),SUMIFS(INDIRECT("Реестр!"&$K$3),Реестр!$F:$F,$C35,Реестр!$I:$I,L$4),SUMIFS(INDIRECT("Реестр!"&$K$3),Реестр!$F:$F,$C35,Реестр!$I:$I,L$4,Реестр!$A:$A,"<="&Версия))*IF($A35="-",-1,1) -> 45000 | M35: =IF(ISBLANK($F$3),SUMIFS(INDIRECT("Реестр!"&$K$3),Реестр!$F:$F,$C35,Реестр!$I:$I,M$4),SUMIFS(INDIRECT("Реестр!"&$K$3),Реестр!$F:$F,$C35,Реестр!$I:$I,M$4,Реестр!$A:$A,"<="&Версия))*IF($A35="-",-1,1) -> 45000 | N35: =IF(ISBLANK($F$3),SUMIFS(INDIRECT("Реестр!"&$K$3),Реестр!$F:$F,$C35,Реестр!$I:$I,N$4),SUMIFS(INDIRECT("Реестр!"&$K$3),Реестр!$F:$F,$C35,Реестр!$I:$I,N$4,Реестр!$A:$A,"<="&Версия))*IF($A35="-",-1,1) -> 45000 | O35: =IF(ISBLANK($F$3),SUMIFS(INDIRECT("Реестр!"&$K$3),Реестр!$F:$F,$C35,Реестр!$I:$I,O$4),SUMIFS(INDIRECT("Реестр!"&$K$3),Реестр!$F:$F,$C35,Реестр!$I:$I,O$4,Реестр!$A:$A,"<="&Версия))*IF($A35="-",-1,1) -> 45000 | P35: 540000
A36: - | B36: 12602 | C36: Банковские услуги | D36: =IF(ISBLANK($F$3),SUMIFS(INDIRECT("Реестр!"&$K$3),Реестр!$F:$F,$C36,Реестр!$I:$I,D$4),SUMIFS(INDIRECT("Реестр!"&$K$3),Реестр!$F:$F,$C36,Реестр!$I:$I,D$4,Реестр!$A:$A,"<="&Версия))*IF($A36="-",-1,1) -> 13500 | E36: =IF(ISBLANK($F$3),SUMIFS(INDIRECT("Реестр!"&$K$3),Реестр!$F:$F,$C36,Реестр!$I:$I,E$4),SUMIFS(INDIRECT("Реестр!"&$K$3),Реестр!$F:$F,$C36,Реестр!$I:$I,E$4,Реестр!$A:$A,"<="&Версия))*IF($A36="-",-1,1) -> 13500 | F36: =IF(ISBLANK($F$3),SUMIFS(INDIRECT("Реестр!"&$K$3),Реестр!$F:$F,$C36,Реестр!$I:$I,F$4),SUMIFS(INDIRECT("Реестр!"&$K$3),Реестр!$F:$F,$C36,Реестр!$I:$I,F$4,Реестр!$A:$A,"<="&Версия))*IF($A36="-",-1,1) -> 13500 | G36: =IF(ISBLANK($F$3),SUMIFS(INDIRECT("Реестр!"&$K$3),Реестр!$F:$F,$C36,Реестр!$I:$I,G$4),SUMIFS(INDIRECT("Реестр!"&$K$3),Реестр!$F:$F,$C36,Реестр!$I:$I,G$4,Реестр!$A:$A,"<="&Версия))*IF($A36="-",-1,1) -> 13500 | H36: =IF(ISBLANK($F$3),SUMIFS(INDIRECT("Реестр!"&$K$3),Реестр!$F:$F,$C36,Реестр!$I:$I,H$4),SUMIFS(INDIRECT("Реестр!"&$K$3),Реестр!$F:$F,$C36,Реестр!$I:$I,H$4,Реестр!$A:$A,"<="&Версия))*IF($A36="-",-1,1) -> 13500 | I36: =IF(ISBLANK($F$3),SUMIFS(INDIRECT("Реестр!"&$K$3),Реестр!$F:$F,$C36,Реестр!$I:$I,I$4),SUMIFS(INDIRECT("Реестр!"&$K$3),Реестр!$F:$F,$C36,Реестр!$I:$I,I$4,Реестр!$A:$A,"<="&Версия))*IF($A36="-",-1,1) -> 13500 | J36: =IF(ISBLANK($F$3),SUMIFS(INDIRECT("Реестр!"&$K$3),Реестр!$F:$F,$C36,Реестр!$I:$I,J$4),SUMIFS(INDIRECT("Реестр!"&$K$3),Реестр!$F:$F,$C36,Реестр!$I:$I,J$4,Реестр!$A:$A,"<="&Версия))*IF($A36="-",-1,1) -> 13500 | K36: =IF(ISBLANK($F$3),SUMIFS(INDIRECT("Реестр!"&$K$3),Реестр!$F:$F,$C36,Реестр!$I:$I,K$4),SUMIFS(INDIRECT("Реестр!"&$K$3),Реестр!$F:$F,$C36,Реестр!$I:$I,K$4,Реестр!$A:$A,"<="&Версия))*IF($A36="-",-1,1) -> 13500 | L36: =IF(ISBLANK($F$3),SUMIFS(INDIRECT("Реестр!"&$K$3),Реестр!$F:$F,$C36,Реестр!$I:$I,L$4),SUMIFS(INDIRECT("Реестр!"&$K$3),Реестр!$F:$F,$C36,Реестр!$I:$I,L$4,Реестр!$A:$A,"<="&Версия))*IF($A36="-",-1,1) -> 13500 | M36: =IF(ISBLANK($F$3),SUMIFS(INDIRECT("Реестр!"&$K$3),Реестр!$F:$F,$C36,Реестр!$I:$I,M$4),SUMIFS(INDIRECT("Реестр!"&$K$3),Реестр!$F:$F,$C36,Реестр!$I:$I,M$4,Реестр!$A:$A,"<="&Версия))*IF($A36="-",-1,1) -> 13500 | N36: =IF(ISBLANK($F$3),SUMIFS(INDIRECT("Реестр!"&$K$3),Реестр!$F:$F,$C36,Реестр!$I:$I,N$4),SUMIFS(INDIRECT("Реестр!"&$K$3),Реестр!$F:$F,$C36,Реестр!$I:$I,N$4,Реестр!$A:$A,"<="&Версия))*IF($A36="-",-1,1) -> 13500 | O36: =IF(ISBLANK($F$3),SUMIFS(INDIRECT("Реестр!"&$K$3),Реестр!$F:$F,$C36,Реестр!$I:$I,O$4),SUMIFS(INDIRECT("Реестр!"&$K$3),Реестр!$F:$F,$C36,Реестр!$I:$I,O$4,Реестр!$A:$A,"<="&Версия))*IF($A36="-",-1,1) -> 13500 | P36: 162000
A37: - | B37: 12603 | C37: Проценты по кредитам | D37: =IF(ISBLANK($F$3),SUMIFS(INDIRECT("Реестр!"&$K$3),Реестр!$F:$F,$C37,Реестр!$I:$I,D$4),SUMIFS(INDIRECT("Реестр!"&$K$3),Реестр!$F:$F,$C37,Реестр!$I:$I,D$4,Реестр!$A:$A,"<="&Версия))*IF($A37="-",-1,1) -> 63000 | E37: =IF(ISBLANK($F$3),SUMIFS(INDIRECT("Реестр!"&$K$3),Реестр!$F:$F,$C37,Реестр!$I:$I,E$4),SUMIFS(INDIRECT("Реестр!"&$K$3),Реестр!$F:$F,$C37,Реестр!$I:$I,E$4,Реестр!$A:$A,"<="&Версия))*IF($A37="-",-1,1) -> 63000 | F37: =IF(ISBLANK($F$3),SUMIFS(INDIRECT("Реестр!"&$K$3),Реестр!$F:$F,$C37,Реестр!$I:$I,F$4),SUMIFS(INDIRECT("Реестр!"&$K$3),Реестр!$F:$F,$C37,Реестр!$I:$I,F$4,Реестр!$A:$A,"<="&Версия))*IF($A37="-",-1,1) -> 63000 | G37: =IF(ISBLANK($F$3),SUMIFS(INDIRECT("Реестр!"&$K$3),Реестр!$F:$F,$C37,Реестр!$I:$I,G$4),SUMIFS(INDIRECT("Реестр!"&$K$3),Реестр!$F:$F,$C37,Реестр!$I:$I,G$4,Реестр!$A:$A,"<="&Версия))*IF($A37="-",-1,1) -> 63000 | H37: =IF(ISBLANK($F$3),SUMIFS(INDIRECT("Реестр!"&$K$3),Реестр!$F:$F,$C37,Реестр!$I:$I,H$4),SUMIFS(INDIRECT("Реестр!"&$K$3),Реестр!$F:$F,$C37,Реестр!$I:$I,H$4,Реестр!$A:$A,"<="&Версия))*IF($A37="-",-1,1) -> 63000 | I37: =IF(ISBLANK($F$3),SUMIFS(INDIRECT("Реестр!"&$K$3),Реестр!$F:$F,$C37,Реестр!$I:$I,I$4),SUMIFS(INDIRECT("Реестр!"&$K$3),Реестр!$F:$F,$C37,Реестр!$I:$I,I$4,Реестр!$A:$A,"<="&Версия))*IF($A37="-",-1,1) -> 63000 | J37: =IF(ISBLANK($F$3),SUMIFS(INDIRECT("Реестр!"&$K$3),Реестр!$F:$F,$C37,Реестр!$I:$I,J$4),SUMIFS(INDIRECT("Реестр!"&$K$3),Реестр!$F:$F,$C37,Реестр!$I:$I,J$4,Реестр!$A:$A,"<="&Версия))*IF($A37="-",-1,1) -> 63000 | K37: =IF(ISBLANK($F$3),SUMIFS(INDIRECT("Реестр!"&$K$3),Реестр!$F:$F,$C37,Реестр!$I:$I,K$4),SUMIFS(INDIRECT("Реестр!"&$K$3),Реестр!$F:$F,$C37,Реестр!$I:$I,K$4,Реестр!$A:$A,"<="&Версия))*IF($A37="-",-1,1) -> 63000 | L37: =IF(ISBLANK($F$3),SUMIFS(INDIRECT("Реестр!"&$K$3),Реестр!$F:$F,$C37,Реестр!$I:$I,L$4),SUMIFS(INDIRECT("Реестр!"&$K$3),Реестр!$F:$F,$C37,Реестр!$I:$I,L$4,Реестр!$A:$A,"<="&Версия))*IF($A37="-",-1,1) -> 63000 | M37: =IF(ISBLANK($F$3),SUMIFS(INDIRECT("Реестр!"&$K$3),Реестр!$F:$F,$C37,Реестр!$I:$I,M$4),SUMIFS(INDIRECT("Реестр!"&$K$3),Реестр!$F:$F,$C37,Реестр!$I:$I,M$4,Реестр!$A:$A,"<="&Версия))*IF($A37="-",-1,1) -> 63000 | N37: =IF(ISBLANK($F$3),SUMIFS(INDIRECT("Реестр!"&$K$3),Реестр!$F:$F,$C37,Реестр!$I:$I,N$4),SUMIFS(INDIRECT("Реестр!"&$K$3),Реестр!$F:$F,$C37,Реестр!$I:$I,N$4,Реестр!$A:$A,"<="&Версия))*IF($A37="-",-1,1) -> 63000 | O37: =IF(ISBLANK($F$3),SUMIFS(INDIRECT("Реестр!"&$K$3),Реестр!$F:$F,$C37,Реестр!$I:$I,O$4),SUMIFS(INDIRECT("Реестр!"&$K$3),Реестр!$F:$F,$C37,Реестр!$I:$I,O$4,Реестр!$A:$A,"<="&Версия))*IF($A37="-",-1,1) -> 63000 | P37: 756000
A38: - | B38: 12604 | C38: Услуги связи | D38: =IF(ISBLANK($F$3),SUMIFS(INDIRECT("Реестр!"&$K$3),Реестр!$F:$F,$C38,Реестр!$I:$I,D$4),SUMIFS(INDIRECT("Реестр!"&$K$3),Реестр!$F:$F,$C38,Реестр!$I:$I,D$4,Реестр!$A:$A,"<="&Версия))*IF($A38="-",-1,1) -> 15300 | E38: =IF(ISBLANK($F$3),SUMIFS(INDIRECT("Реестр!"&$K$3),Реестр!$F:$F,$C38,Реестр!$I:$I,E$4),SUMIFS(INDIRECT("Реестр!"&$K$3),Реестр!$F:$F,$C38,Реестр!$I:$I,E$4,Реестр!$A:$A,"<="&Версия))*IF($A38="-",-1,1) -> 15300 | F38: =IF(ISBLANK($F$3),SUMIFS(INDIRECT("Реестр!"&$K$3),Реестр!$F:$F,$C38,Реестр!$I:$I,F$4),SUMIFS(INDIRECT("Реестр!"&$K$3),Реестр!$F:$F,$C38,Реестр!$I:$I,F$4,Реестр!$A:$A,"<="&Версия))*IF($A38="-",-1,1) -> 15300 | G38: =IF(ISBLANK($F$3),SUMIFS(INDIRECT("Реестр!"&$K$3),Реестр!$F:$F,$C38,Реестр!$I:$I,G$4),SUMIFS(INDIRECT("Реестр!"&$K$3),Реестр!$F:$F,$C38,Реестр!$I:$I,G$4,Реестр!$A:$A,"<="&Версия))*IF($A38="-",-1,1) -> 15300 | H38: =IF(ISBLANK($F$3),SUMIFS(INDIRECT("Реестр!"&$K$3),Реестр!$F:$F,$C38,Реестр!$I:$I,H$4),SUMIFS(INDIRECT("Реестр!"&$K$3),Реестр!$F:$F,$C38,Реестр!$I:$I,H$4,Реестр!$A:$A,"<="&Версия))*IF($A38="-",-1,1) -> 15300 | I38: =IF(ISBLANK($F$3),SUMIFS(INDIRECT("Реестр!"&$K$3),Реестр!$F:$F,$C38,Реестр!$I:$I,I$4),SUMIFS(INDIRECT("Реестр!"&$K$3),Реестр!$F:$F,$C38,Реестр!$I:$I,I$4,Реестр!$A:$A,"<="&Версия))*IF($A38="-",-1,1) -> 15300 | J38: =IF(ISBLANK($F$3),SUMIFS(INDIRECT("Реестр!"&$K$3),Реестр!$F:$F,$C38,Реестр!$I:$I,J$4),SUMIFS(INDIRECT("Реестр!"&$K$3),Реестр!$F:$F,$C38,Реестр!$I:$I,J$4,Реестр!$A:$A,"<="&Версия))*IF($A38="-",-1,1) -> 15300 | K38: =IF(ISBLANK($F$3),SUMIFS(INDIRECT("Реестр!"&$K$3),Реестр!$F:$F,$C38,Реестр!$I:$I,K$4),SUMIFS(INDIRECT("Реестр!"&$K$3),Реестр!$F:$F,$C38,Реестр!$I:$I,K$4,Реестр!$A:$A,"<="&Версия))*IF($A38="-",-1,1) -> 15300 | L38: =IF(ISBLANK($F$3),SUMIFS(INDIRECT("Реестр!"&$K$3),Реестр!$F:$F,$C38,Реестр!$I:$I,L$4),SUMIFS(INDIRECT("Реестр!"&$K$3),Реестр!$F:$F,$C38,Реестр!$I:$I,L$4,Реестр!$A:$A,"<="&Версия))*IF($A38="-",-1,1) -> 15300 | M38: =IF(ISBLANK($F$3),SUMIFS(INDIRECT("Реестр!"&$K$3),Реестр!$F:$F,$C38,Реестр!$I:$I,M$4),SUMIFS(INDIRECT("Реестр!"&$K$3),Реестр!$F:$F,$C38,Реестр!$I:$I,M$4,Реестр!$A:$A,"<="&Версия))*IF($A38="-",-1,1) -> 15300 | N38: =IF(ISBLANK($F$3),SUMIFS(INDIRECT("Реестр!"&$K$3),Реестр!$F:$F,$C38,Реестр!$I:$I,N$4),SUMIFS(INDIRECT("Реестр!"&$K$3),Реестр!$F:$F,$C38,Реестр!$I:$I,N$4,Реестр!$A:$A,"<="&Версия))*IF($A38="-",-1,1) -> 15300 | O38: =IF(ISBLANK($F$3),SUMIFS(INDIRECT("Реестр!"&$K$3),Реестр!$F:$F,$C38,Реестр!$I:$I,O$4),SUMIFS(INDIRECT("Реестр!"&$K$3),Реестр!$F:$F,$C38,Реестр!$I:$I,O$4,Реестр!$A:$A,"<="&Версия))*IF($A38="-",-1,1) -> 15300 | P38: 183600
A39: - | B39: 12605 | C39: Юридические и информационные услуги | D39: =IF(ISBLANK($F$3),SUMIFS(INDIRECT("Реестр!"&$K$3),Реестр!$F:$F,$C39,Реестр!$I:$I,D$4),SUMIFS(INDIRECT("Реестр!"&$K$3),Реестр!$F:$F,$C39,Реестр!$I:$I,D$4,Реестр!$A:$A,"<="&Версия))*IF($A39="-",-1,1) -> 31500 | E39: =IF(ISBLANK($F$3),SUMIFS(INDIRECT("Реестр!"&$K$3),Реестр!$F:$F,$C39,Реестр!$I:$I,E$4),SUMIFS(INDIRECT("Реестр!"&$K$3),Реестр!$F:$F,$C39,Реестр!$I:$I,E$4,Реестр!$A:$A,"<="&Версия))*IF($A39="-",-1,1) -> 31500 | F39: =IF(ISBLANK($F$3),SUMIFS(INDIRECT("Реестр!"&$K$3),Реестр!$F:$F,$C39,Реестр!$I:$I,F$4),SUMIFS(INDIRECT("Реестр!"&$K$3),Реестр!$F:$F,$C39,Реестр!$I:$I,F$4,Реестр!$A:$A,"<="&Версия))*IF($A39="-",-1,1) -> 31500 | G39: =IF(ISBLANK($F$3),SUMIFS(INDIRECT("Реестр!"&$K$3),Реестр!$F:$F,$C39,Реестр!$I:$I,G$4),SUMIFS(INDIRECT("Реестр!"&$K$3),Реестр!$F:$F,$C39,Реестр!$I:$I,G$4,Реестр!$A:$A,"<="&Версия))*IF($A39="-",-1,1) -> 31500 | H39: =IF(ISBLANK($F$3),SUMIFS(INDIRECT("Реестр!"&$K$3),Реестр!$F:$F,$C39,Реестр!$I:$I,H$4),SUMIFS(INDIRECT("Реестр!"&$K$3),Реестр!$F:$F,$C39,Реестр!$I:$I,H$4,Реестр!$A:$A,"<="&Версия))*IF($A39="-",-1,1) -> 31500 | I39: =IF(ISBLANK($F$3),SUMIFS(INDIRECT("Реестр!"&$K$3),Реестр!$F:$F,$C39,Реестр!$I:$I,I$4),SUMIFS(INDIRECT("Реестр!"&$K$3),Реестр!$F:$F,$C39,Реестр!$I:$I,I$4,Реестр!$A:$A,"<="&Версия))*IF($A39="-",-1,1) -> 31500 | J39: =IF(ISBLANK($F$3),SUMIFS(INDIRECT("Реестр!"&$K$3),Реестр!$F:$F,$C39,Реестр!$I:$I,J$4),SUMIFS(INDIRECT("Реестр!"&$K$3),Реестр!$F:$F,$C39,Реестр!$I:$I,J$4,Реестр!$A:$A,"<="&Версия))*IF($A39="-",-1,1) -> 31500 | K39: =IF(ISBLANK($F$3),SUMIFS(INDIRECT("Реестр!"&$K$3),Реестр!$F:$F,$C39,Реестр!$I:$I,K$4),SUMIFS(INDIRECT("Реестр!"&$K$3),Реестр!$F:$F,$C39,Реестр!$I:$I,K$4,Реестр!$A:$A,"<="&Версия))*IF($A39="-",-1,1) -> 31500 | L39: =IF(ISBLANK($F$3),SUMIFS(INDIRECT("Реестр!"&$K$3),Реестр!$F:$F,$C39,Реестр!$I:$I,L$4),SUMIFS(INDIRECT("Реестр!"&$K$3),Реестр!$F:$F,$C39,Реестр!$I:$I,L$4,Реестр!$A:$A,"<="&Версия))*IF($A39="-",-1,1) -> 31500 | M39: =IF(ISBLANK($F$3),SUMIFS(INDIRECT("Реестр!"&$K$3),Реестр!$F:$F,$C39,Реестр!$I:$I,M$4),SUMIFS(INDIRECT("Реестр!"&$K$3),Реестр!$F:$F,$C39,Реестр!$I:$I,M$4,Реестр!$A:$A,"<="&Версия))*IF($A39="-",-1,1) -> 31500 | N39: =IF(ISBLANK($F$3),SUMIFS(INDIRECT("Реестр!"&$K$3),Реестр!$F:$F,$C39,Реестр!$I:$I,N$4),SUMIFS(INDIRECT("Реестр!"&$K$3),Реестр!$F:$F,$C39,Реестр!$I:$I,N$4,Реестр!$A:$A,"<="&Версия))*IF($A39="-",-1,1) -> 31500 | O39: =IF(ISBLANK($F$3),SUMIFS(INDIRECT("Реестр!"&$K$3),Реестр!$F:$F,$C39,Реестр!$I:$I,O$4),SUMIFS(INDIRECT("Реестр!"&$K$3),Реестр!$F:$F,$C39,Реестр!$I:$I,O$4,Реестр!$A:$A,"<="&Версия))*IF($A39="-",-1,1) -> 31500 | P39: 378000
A40: - | B40: 12606 | C40: Канцелярские товары | D40: =IF(ISBLANK($F$3),SUMIFS(INDIRECT("Реестр!"&$K$3),Реестр!$F:$F,$C40,Реестр!$I:$I,D$4),SUMIFS(INDIRECT("Реестр!"&$K$3),Реестр!$F:$F,$C40,Реестр!$I:$I,D$4,Реестр!$A:$A,"<="&Версия))*IF($A40="-",-1,1) -> 22500 | E40: =IF(ISBLANK($F$3),SUMIFS(INDIRECT("Реестр!"&$K$3),Реестр!$F:$F,$C40,Реестр!$I:$I,E$4),SUMIFS(INDIRECT("Реестр!"&$K$3),Реестр!$F:$F,$C40,Реестр!$I:$I,E$4,Реестр!$A:$A,"<="&Версия))*IF($A40="-",-1,1) -> 22500 | F40: =IF(ISBLANK($F$3),SUMIFS(INDIRECT("Реестр!"&$K$3),Реестр!$F:$F,$C40,Реестр!$I:$I,F$4),SUMIFS(INDIRECT("Реестр!"&$K$3),Реестр!$F:$F,$C40,Реестр!$I:$I,F$4,Реестр!$A:$A,"<="&Версия))*IF($A40="-",-1,1) -> 22500 | G40: =IF(ISBLANK($F$3),SUMIFS(INDIRECT("Реестр!"&$K$3),Реестр!$F:$F,$C40,Реестр!$I:$I,G$4),SUMIFS(INDIRECT("Реестр!"&$K$3),Реестр!$F:$F,$C40,Реестр!$I:$I,G$4,Реестр!$A:$A,"<="&Версия))*IF($A40="-",-1,1) -> 22500 | H40: =IF(ISBLANK($F$3),SUMIFS(INDIRECT("Реестр!"&$K$3),Реестр!$F:$F,$C40,Реестр!$I:$I,H$4),SUMIFS(INDIRECT("Реестр!"&$K$3),Реестр!$F:$F,$C40,Реестр!$I:$I,H$4,Реестр!$A:$A,"<="&Версия))*IF($A40="-",-1,1) -> 22500 | I40: =IF(ISBLANK($F$3),SUMIFS(INDIRECT("Реестр!"&$K$3),Реестр!$F:$F,$C40,Реестр!$I:$I,I$4),SUMIFS(INDIRECT("Реестр!"&$K$3),Реестр!$F:$F,$C40,Реестр!$I:$I,I$4,Реестр!$A:$A,"<="&Версия))*IF($A40="-",-1,1) -> 22500 | J40: =IF(ISBLANK($F$3),SUMIFS(INDIRECT("Реестр!"&$K$3),Реестр!$F:$F,$C40,Реестр!$I:$I,J$4),SUMIFS(INDIRECT("Реестр!"&$K$3),Реестр!$F:$F,$C40,Реестр!$I:$I,J$4,Реестр!$A:$A,"<="&Версия))*IF($A40="-",-1,1) -> 22500 | K40: =IF(ISBLANK($F$3),SUMIFS(INDIRECT("Реестр!"&$K$3),Реестр!$F:$F,$C40,Реестр!$I:$I,K$4),SUMIFS(INDIRECT("Реестр!"&$K$3),Реестр!$F:$F,$C40,Реестр!$I:$I,K$4,Реестр!$A:$A,"<="&Версия))*IF($A40="-",-1,1) -> 22500 | L40: =IF(ISBLANK($F$3),SUMIFS(INDIRECT("Реестр!"&$K$3),Реестр!$F:$F,$C40,Реестр!$I:$I,L$4),SUMIFS(INDIRECT("Реестр!"&$K$3),Реестр!$F:$F,$C40,Реестр!$I:$I,L$4,Реестр!$A:$A,"<="&Версия))*IF($A40="-",-1,1) -> 22500 | M40: =IF(ISBLANK($F$3),SUMIFS(INDIRECT("Реестр!"&$K$3),Реестр!$F:$F,$C40,Реестр!$I:$I,M$4),SUMIFS(INDIRECT("Реестр!"&$K$3),Реестр!$F:$F,$C40,Реестр!$I:$I,M$4,Реестр!$A:$A,"<="&Версия))*IF($A40="-",-1,1) -> 22500 | N40: =IF(ISBLANK($F$3),SUMIFS(INDIRECT("Реестр!"&$K$3),Реестр!$F:$F,$C40,Реестр!$I:$I,N$4),SUMIFS(INDIRECT("Реестр!"&$K$3),Реестр!$F:$F,$C40,Реестр!$I:$I,N$4,Реестр!$A:$A,"<="&Версия))*IF($A40="-",-1,1) -> 22500 | O40: =IF(ISBLANK($F$3),SUMIFS(INDIRECT("Реестр!"&$K$3),Реестр!$F:$F,$C40,Реестр!$I:$I,O$4),SUMIFS(INDIRECT("Реестр!"&$K$3),Реестр!$F:$F,$C40,Реестр!$I:$I,O$4,Реестр!$A:$A,"<="&Версия))*IF($A40="-",-1,1) -> 22500 | P40: 270000
A41: - | B41: 12607 | C41: Представительские расходы | D41: =IF(ISBLANK($F$3),SUMIFS(INDIRECT("Реестр!"&$K$3),Реестр!$F:$F,$C41,Реестр!$I:$I,D$4),SUMIFS(INDIRECT("Реестр!"&$K$3),Реестр!$F:$F,$C41,Реестр!$I:$I,D$4,Реестр!$A:$A,"<="&Версия))*IF($A41="-",-1,1) -> 13500 | E41: =IF(ISBLANK($F$3),SUMIFS(INDIRECT("Реестр!"&$K$3),Реестр!$F:$F,$C41,Реестр!$I:$I,E$4),SUMIFS(INDIRECT("Реестр!"&$K$3),Реестр!$F:$F,$C41,Реестр!$I:$I,E$4,Реестр!$A:$A,"<="&Версия))*IF($A41="-",-1,1) -> 13500 | F41: =IF(ISBLANK($F$3),SUMIFS(INDIRECT("Реестр!"&$K$3),Реестр!$F:$F,$C41,Реестр!$I:$I,F$4),SUMIFS(INDIRECT("Реестр!"&$K$3),Реестр!$F:$F,$C41,Реестр!$I:$I,F$4,Реестр!$A:$A,"<="&Версия))*IF($A41="-",-1,1) -> 13500 | G41: =IF(ISBLANK($F$3),SUMIFS(INDIRECT("Реестр!"&$K$3),Реестр!$F:$F,$C41,Реестр!$I:$I,G$4),SUMIFS(INDIRECT("Реестр!"&$K$3),Реестр!$F:$F,$C41,Реестр!$I:$I,G$4,Реестр!$A:$A,"<="&Версия))*IF($A41="-",-1,1) -> 13500 | H41: =IF(ISBLANK($F$3),SUMIFS(INDIRECT("Реестр!"&$K$3),Реестр!$F:$F,$C41,Реестр!$I:$I,H$4),SUMIFS(INDIRECT("Реестр!"&$K$3),Реестр!$F:$F,$C41,Реестр!$I:$I,H$4,Реестр!$A:$A,"<="&Версия))*IF($A41="-",-1,1) -> 13500 | I41: =IF(ISBLANK($F$3),SUMIFS(INDIRECT("Реестр!"&$K$3),Реестр!$F:$F,$C41,Реестр!$I:$I,I$4),SUMIFS(INDIRECT("Реестр!"&$K$3),Реестр!$F:$F,$C41,Реестр!$I:$I,I$4,Реестр!$A:$A,"<="&Версия))*IF($A41="-",-1,1) -> 13500 | J41: =IF(ISBLANK($F$3),SUMIFS(INDIRECT("Реестр!"&$K$3),Реестр!$F:$F,$C41,Реестр!$I:$I,J$4),SUMIFS(INDIRECT("Реестр!"&$K$3),Реестр!$F:$F,$C41,Реестр!$I:$I,J$4,Реестр!$A:$A,"<="&Версия))*IF($A41="-",-1,1) -> 13500 | K41: =IF(ISBLANK($F$3),SUMIFS(INDIRECT("Реестр!"&$K$3),Реестр!$F:$F,$C41,Реестр!$I:$I,K$4),SUMIFS(INDIRECT("Реестр!"&$K$3),Реестр!$F:$F,$C41,Реестр!$I:$I,K$4,Реестр!$A:$A,"<="&Версия))*IF($A41="-",-1,1) -> 13500 | L41: =IF(ISBLANK($F$3),SUMIFS(INDIRECT("Реестр!"&$K$3),Реестр!$F:$F,$C41,Реестр!$I:$I,L$4),SUMIFS(INDIRECT("Реестр!"&$K$3),Реестр!$F:$F,$C41,Реестр!$I:$I,L$4,Реестр!$A:$A,"<="&Версия))*IF($A41="-",-1,1) -> 13500 | M41: =IF(ISBLANK($F$3),SUMIFS(INDIRECT("Реестр!"&$K$3),Реестр!$F:$F,$C41,Реестр!$I:$I,M$4),SUMIFS(INDIRECT("Реестр!"&$K$3),Реестр!$F:$F,$C41,Реестр!$I:$I,M$4,Реестр!$A:$A,"<="&Версия))*IF($A41="-",-1,1) -> 13500 | N41: =IF(ISBLANK($F$3),SUMIFS(INDIRECT("Реестр!"&$K$3),Реестр!$F:$F,$C41,Реестр!$I:$I,N$4),SUMIFS(INDIRECT("Реестр!"&$K$3),Реестр!$F:$F,$C41,Реестр!$I:$I,N$4,Реестр!$A:$A,"<="&Версия))*IF($A41="-",-1,1) -> 13500 | O41: =IF(ISBLANK($F$3),SUMIFS(INDIRECT("Реестр!"&$K$3),Реестр!$F:$F,$C41,Реестр!$I:$I,O$4),SUMIFS(INDIRECT("Реестр!"&$K$3),Реестр!$F:$F,$C41,Реестр!$I:$I,O$4,Реестр!$A:$A,"<="&Версия))*IF($A41="-",-1,1) -> 13500 | P41: 162000
A42: - | B42: 12608 | C42: Командировочные расходы | D42: =IF(ISBLANK($F$3),SUMIFS(INDIRECT("Реестр!"&$K$3),Реестр!$F:$F,$C42,Реестр!$I:$I,D$4),SUMIFS(INDIRECT("Реестр!"&$K$3),Реестр!$F:$F,$C42,Реестр!$I:$I,D$4,Реестр!$A:$A,"<="&Версия))*IF($A42="-",-1,1) -> 16200 | E42: =IF(ISBLANK($F$3),SUMIFS(INDIRECT("Реестр!"&$K$3),Реестр!$F:$F,$C42,Реестр!$I:$I,E$4),SUMIFS(INDIRECT("Реестр!"&$K$3),Реестр!$F:$F,$C42,Реестр!$I:$I,E$4,Реестр!$A:$A,"<="&Версия))*IF($A42="-",-1,1) -> 16200 | F42: =IF(ISBLANK($F$3),SUMIFS(INDIRECT("Реестр!"&$K$3),Реестр!$F:$F,$C42,Реестр!$I:$I,F$4),SUMIFS(INDIRECT("Реестр!"&$K$3),Реестр!$F:$F,$C42,Реестр!$I:$I,F$4,Реестр!$A:$A,"<="&Версия))*IF($A42="-",-1,1) -> 16200 | G42: =IF(ISBLANK($F$3),SUMIFS(INDIRECT("Реестр!"&$K$3),Реестр!$F:$F,$C42,Реестр!$I:$I,G$4),SUMIFS(INDIRECT("Реестр!"&$K$3),Реестр!$F:$F,$C42,Реестр!$I:$I,G$4,Реестр!$A:$A,"<="&Версия))*IF($A42="-",-1,1) -> 16200 | H42: =IF(ISBLANK($F$3),SUMIFS(INDIRECT("Реестр!"&$K$3),Реестр!$F:$F,$C42,Реестр!$I:$I,H$4),SUMIFS(INDIRECT("Реестр!"&$K$3),Реестр!$F:$F,$C42,Реестр!$I:$I,H$4,Реестр!$A:$A,"<="&Версия))*IF($A42="-",-1,1) -> 16200 | I42: =IF(ISBLANK($F$3),SUMIFS(INDIRECT("Реестр!"&$K$3),Реестр!$F:$F,$C42,Реестр!$I:$I,I$4),SUMIFS(INDIRECT("Реестр!"&$K$3),Реестр!$F:$F,$C42,Реестр!$I:$I,I$4,Реестр!$A:$A,"<="&Версия))*IF($A42="-",-1,1) -> 16200 | J42: =IF(ISBLANK($F$3),SUMIFS(INDIRECT("Реестр!"&$K$3),Реестр!$F:$F,$C42,Реестр!$I:$I,J$4),SUMIFS(INDIRECT("Реестр!"&$K$3),Реестр!$F:$F,$C42,Реестр!$I:$I,J$4,Реестр!$A:$A,"<="&Версия))*IF($A42="-",-1,1) -> 16200 | K42: =IF(ISBLANK($F$3),SUMIFS(INDIRECT("Реестр!"&$K$3),Реестр!$F:$F,$C42,Реестр!$I:$I,K$4),SUMIFS(INDIRECT("Реестр!"&$K$3),Реестр!$F:$F,$C42,Реестр!$I:$I,K$4,Реестр!$A:$A,"<="&Версия))*IF($A42="-",-1,1) -> 16200 | L42: =IF(ISBLANK($F$3),SUMIFS(INDIRECT("Реестр!"&$K$3),Реестр!$F:$F,$C42,Реестр!$I:$I,L$4),SUMIFS(INDIRECT("Реестр!"&$K$3),Реестр!$F:$F,$C42,Реестр!$I:$I,L$4,Реестр!$A:$A,"<="&Версия))*IF($A42="-",-1,1) -> 16200 | M42: =IF(ISBLANK($F$3),SUMIFS(INDIRECT("Реестр!"&$K$3),Реестр!$F:$F,$C42,Реестр!$I:$I,M$4),SUMIFS(INDIRECT("Реестр!"&$K$3),Реестр!$F:$F,$C42,Реестр!$I:$I,M$4,Реестр!$A:$A,"<="&Версия))*IF($A42="-",-1,1) -> 16200 | N42: =IF(ISBLANK($F$3),SUMIFS(INDIRECT("Реестр!"&$K$3),Реестр!$F:$F,$C42,Реестр!$I:$I,N$4),SUMIFS(INDIRECT("Реестр!"&$K$3),Реестр!$F:$F,$C42,Реестр!$I:$I,N$4,Реестр!$A:$A,"<="&Версия))*IF($A42="-",-1,1) -> 16200 | O42: =IF(ISBLANK($F$3),SUMIFS(INDIRECT("Реестр!"&$K$3),Реестр!$F:$F,$C42,Реестр!$I:$I,O$4),SUMIFS(INDIRECT("Реестр!"&$K$3),Реестр!$F:$F,$C42,Реестр!$I:$I,O$4,Реестр!$A:$A,"<="&Версия))*IF($A42="-",-1,1) -> 16200 | P42: 194400
A43: - | B43: 12609 | C43: Прочие операционные расходы | D43: =IF(ISBLANK($F$3),SUMIFS(INDIRECT("Реестр!"&$K$3),Реестр!$F:$F,$C43,Реестр!$I:$I,D$4),SUMIFS(INDIRECT("Реестр!"&$K$3),Реестр!$F:$F,$C43,Реестр!$I:$I,D$4,Реестр!$A:$A,"<="&Версия))*IF($A43="-",-1,1) -> 45000 | E43: =IF(ISBLANK($F$3),SUMIFS(INDIRECT("Реестр!"&$K$3),Реестр!$F:$F,$C43,Реестр!$I:$I,E$4),SUMIFS(INDIRECT("Реестр!"&$K$3),Реестр!$F:$F,$C43,Реестр!$I:$I,E$4,Реестр!$A:$A,"<="&Версия))*IF($A43="-",-1,1) -> 45000 | F43: =IF(ISBLANK($F$3),SUMIFS(INDIRECT("Реестр!"&$K$3),Реестр!$F:$F,$C43,Реестр!$I:$I,F$4),SUMIFS(INDIRECT("Реестр!"&$K$3),Реестр!$F:$F,$C43,Реестр!$I:$I,F$4,Реестр!$A:$A,"<="&Версия))*IF($A43="-",-1,1) -> 45000 | G43: =IF(ISBLANK($F$3),SUMIFS(INDIRECT("Реестр!"&$K$3),Реестр!$F:$F,$C43,Реестр!$I:$I,G$4),SUMIFS(INDIRECT("Реестр!"&$K$3),Реестр!$F:$F,$C43,Реестр!$I:$I,G$4,Реестр!$A:$A,"<="&Версия))*IF($A43="-",-1,1) -> 45000 | H43: =IF(ISBLANK($F$3),SUMIFS(INDIRECT("Реестр!"&$K$3),Реестр!$F:$F,$C43,Реестр!$I:$I,H$4),SUMIFS(INDIRECT("Реестр!"&$K$3),Реестр!$F:$F,$C43,Реестр!$I:$I,H$4,Реестр!$A:$A,"<="&Версия))*IF($A43="-",-1,1) -> 45000 | I43: =IF(ISBLANK($F$3),SUMIFS(INDIRECT("Реестр!"&$K$3),Реестр!$F:$F,$C43,Реестр!$I:$I,I$4),SUMIFS(INDIRECT("Реестр!"&$K$3),Реестр!$F:$F,$C43,Реестр!$I:$I,I$4,Реестр!$A:$A,"<="&Версия))*IF($A43="-",-1,1) -> 45000 | J43: =IF(ISBLANK($F$3),SUMIFS(INDIRECT("Реестр!"&$K$3),Реестр!$F:$F,$C43,Реестр!$I:$I,J$4),SUMIFS(INDIRECT("Реестр!"&$K$3),Реестр!$F:$F,$C43,Реестр!$I:$I,J$4,Реестр!$A:$A,"<="&Версия))*IF($A43="-",-1,1) -> 45000 | K43: =IF(ISBLANK($F$3),SUMIFS(INDIRECT("Реестр!"&$K$3),Реестр!$F:$F,$C43,Реестр!$I:$I,K$4),SUMIFS(INDIRECT("Реестр!"&$K$3),Реестр!$F:$F,$C43,Реестр!$I:$I,K$4,Реестр!$A:$A,"<="&Версия))*IF($A43="-",-1,1) -> 45000 | L43: =IF(ISBLANK($F$3),SUMIFS(INDIRECT("Реестр!"&$K$3),Реестр!$F:$F,$C43,Реестр!$I:$I,L$4),SUMIFS(INDIRECT("Реестр!"&$K$3),Реестр!$F:$F,$C43,Реестр!$I:$I,L$4,Реестр!$A:$A,"<="&Версия))*IF($A43="-",-1,1) -> 45000 | M43: =IF(ISBLANK($F$3),SUMIFS(INDIRECT("Реестр!"&$K$3),Реестр!$F:$F,$C43,Реестр!$I:$I,M$4),SUMIFS(INDIRECT("Реестр!"&$K$3),Реестр!$F:$F,$C43,Реестр!$I:$I,M$4,Реестр!$A:$A,"<="&Версия))*IF($A43="-",-1,1) -> 45000 | N43: =IF(ISBLANK($F$3),SUMIFS(INDIRECT("Реестр!"&$K$3),Реестр!$F:$F,$C43,Реестр!$I:$I,N$4),SUMIFS(INDIRECT("Реестр!"&$K$3),Реестр!$F:$F,$C43,Реестр!$I:$I,N$4,Реестр!$A:$A,"<="&Версия))*IF($A43="-",-1,1) -> 45000 | O43: =IF(ISBLANK($F$3),SUMIFS(INDIRECT("Реестр!"&$K$3),Реестр!$F:$F,$C43,Реестр!$I:$I,O$4),SUMIFS(INDIRECT("Реестр!"&$K$3),Реестр!$F:$F,$C43,Реестр!$I:$I,O$4,Реестр!$A:$A,"<="&Версия))*IF($A43="-",-1,1) -> 45000 | P43: 540000
B44: 19999 | C44: Сальдо по операционной деятельности | D44: =D6-D9 -> -3125834.133 | E44: -3082741.892 | F44: -3442270.848 | G44: -2982599.825 | H44: -2610430.18 | I44: -3720429.225 | J44: -3638283.65 | K44: -3273915.213 | L44: -3968273.3 | M44: -3169274.104 | N44: -3328638.834 | O44: -3540332.596 | P44: -39883023.8
B46: финансовая деятельность
B47: 21000 | C47: Поступления от финансовой деятельности | D47: =SUM(D48:D51) -> 1000000 | E47: =SUM(E48:E51) -> 1000000 | F47: 1000000 | G47: 1000000 | H47: 1000000 | I47: 1000000 | J47: 1000000 | K47: 1000000 | L47: 1000000 | M47: 1000000 | N47: 1000000 | O47: 1000000 | P47: =SUM(D47:O47) -> 12000000
A48: + | B48: 21001 | C48: Поступления от акционеров | D48: =IF(ISBLANK($F$3),SUMIFS(INDIRECT("Реестр!"&$K$3),Реестр!$F:$F,$C48,Реестр!$I:$I,D$4),SUMIFS(INDIRECT("Реестр!"&$K$3),Реестр!$F:$F,$C48,Реестр!$I:$I,D$4,Реестр!$A:$A,"<="&Версия))*IF($A48="-",-1,1) -> 0 | E48: =IF(ISBLANK($F$3),SUMIFS(INDIRECT("Реестр!"&$K$3),Реестр!$F:$F,$C48,Реестр!$I:$I,E$4),SUMIFS(INDIRECT("Реестр!"&$K$3),Реестр!$F:$F,$C48,Реестр!$I:$I,E$4,Реестр!$A:$A,"<="&Версия))*IF($A48="-",-1,1) -> 0 | F48: =IF(ISBLANK($F$3),SUMIFS(INDIRECT("Реестр!"&$K$3),Реестр!$F:$F,$C48,Реестр!$I:$I,F$4),SUMIFS(INDIRECT("Реестр!"&$K$3),Реестр!$F:$F,$C48,Реестр!$I:$I,F$4,Реестр!$A:$A,"<="&Версия))*IF($A48="-",-1,1) -> 0 | G48: =IF(ISBLANK($F$3),SUMIFS(INDIRECT("Реестр!"&$K$3),Реестр!$F:$F,$C48,Реестр!$I:$I,G$4),SUMIFS(INDIRECT("Реестр!"&$K$3),Реестр!$F:$F,$C48,Реестр!$I:$I,G$4,Реестр!$A:$A,"<="&Версия))*IF($A48="-",-1,1) -> 0 | H48: =IF(ISBLANK($F$3),SUMIFS(INDIRECT("Реестр!"&$K$3),Реестр!$F:$F,$C48,Реестр!$I:$I,H$4),SUMIFS(INDIRECT("Реестр!"&$K$3),Реестр!$F:$F,$C48,Реестр!$I:$I,H$4,Реестр!$A:$A,"<="&Версия))*IF($A48="-",-1,1) -> 0 | I48: =IF(ISBLANK($F$3),SUMIFS(INDIRECT("Реестр!"&$K$3),Реестр!$F:$F,$C48,Реестр!$I:$I,I$4),SUMIFS(INDIRECT("Реестр!"&$K$3),Реестр!$F:$F,$C48,Реестр!$I:$I,I$4,Реестр!$A:$A,"<="&Версия))*IF($A48="-",-1,1) -> 0 | J48: =IF(ISBLANK($F$3),SUMIFS(INDIRECT("Реестр!"&$K$3),Реестр!$F:$F,$C48,Реестр!$I:$I,J$4),SUMIFS(INDIRECT("Реестр!"&$K$3),Реестр!$F:$F,$C48,Реестр!$I:$I,J$4,Реестр!$A:$A,"<="&Версия))*IF($A48="-",-1,1) -> 0 | K48: =IF(ISBLANK($F$3),SUMIFS(INDIRECT("Реестр!"&$K$3),Реестр!$F:$F,$C48,Реестр!$I:$I,K$4),SUMIFS(INDIRECT("Реестр!"&$K$3),Реестр!$F:$F,$C48,Реестр!$I:$I,K$4,Реестр!$A:$A,"<="&Версия))*IF($A48="-",-1,1) -> 0 | L48: =IF(ISBLANK($F$3),SUMIFS(INDIRECT("Реестр!"&$K$3),Реестр!$F:$F,$C48,Реестр!$I:$I,L$4),SUMIFS(INDIRECT("Реестр!"&$K$3),Реестр!$F:$F,$C48,Реестр!$I:$I,L$4,Реестр!$A:$A,"<="&Версия))*IF($A48="-",-1,1) -> 0 | M48: =IF(ISBLANK($F$3),SUMIFS(INDIRECT("Реестр!"&$K$3),Реестр!$F:$F,$C48,Реестр!$I:$I,M$4),SUMIFS(INDIRECT("Реестр!"&$K$3),Реестр!$F:$F,$C48,Реестр!$I:$I,M$4,Реестр!$A:$A,"<="&Версия))*IF($A48="-",-1,1) -> 0 | N48: =IF(ISBLANK($F$3),SUMIFS(INDIRECT("Реестр!"&$K$3),Реестр!$F:$F,$C48,Реестр!$I:$I,N$4),SUMIFS(INDIRECT("Реестр!"&$K$3),Реестр!$F:$F,$C48,Реестр!$I:$I,N$4,Реестр!$A:$A,"<="&Версия))*IF($A48="-",-1,1) -> 0 | O48: =IF(ISBLANK($F$3),SUMIFS(INDIRECT("Реестр!"&$K$3),Реестр!$F:$F,$C48,Реестр!$I:$I,O$4),SUMIFS(INDIRECT("Реестр!"&$K$3),Реестр!$F:$F,$C48,Реестр!$I:$I,O$4,Реестр!$A:$A,"<="&Версия))*IF($A48="-",-1,1) -> 0 | P48: 0
A49: + | B49: 21002 | C49: Получение банковских кредитов | D49: =IF(ISBLANK($F$3),SUMIFS(INDIRECT("Реестр!"&$K$3),Реестр!$F:$F,$C49,Реестр!$I:$I,D$4),SUMIFS(INDIRECT("Реестр!"&$K$3),Реестр!$F:$F,$C49,Реестр!$I:$I,D$4,Реестр!$A:$A,"<="&Версия))*IF($A49="-",-1,1) -> 1000000 | E49: =IF(ISBLANK($F$3),SUMIFS(INDIRECT("Реестр!"&$K$3),Реестр!$F:$F,$C49,Реестр!$I:$I,E$4),SUMIFS(INDIRECT("Реестр!"&$K$3),Реестр!$F:$F,$C49,Реестр!$I:$I,E$4,Реестр!$A:$A,"<="&Версия))*IF($A49="-",-1,1) -> 1000000 | F49: =IF(ISBLANK($F$3),SUMIFS(INDIRECT("Реестр!"&$K$3),Реестр!$F:$F,$C49,Реестр!$I:$I,F$4),SUMIFS(INDIRECT("Реестр!"&$K$3),Реестр!$F:$F,$C49,Реестр!$I:$I,F$4,Реестр!$A:$A,"<="&Версия))*IF($A49="-",-1,1) -> 1000000 | G49: =IF(ISBLANK($F$3),SUMIFS(INDIRECT("Реестр!"&$K$3),Реестр!$F:$F,$C49,Реестр!$I:$I,G$4),SUMIFS(INDIRECT("Реестр!"&$K$3),Реестр!$F:$F,$C49,Реестр!$I:$I,G$4,Реестр!$A:$A,"<="&Версия))*IF($A49="-",-1,1) -> 1000000 | H49: =IF(ISBLANK($F$3),SUMIFS(INDIRECT("Реестр!"&$K$3),Реестр!$F:$F,$C49,Реестр!$I:$I,H$4),SUMIFS(INDIRECT("Реестр!"&$K$3),Реестр!$F:$F,$C49,Реестр!$I:$I,H$4,Реестр!$A:$A,"<="&Версия))*IF($A49="-",-1,1) -> 1000000 | I49: =IF(ISBLANK($F$3),SUMIFS(INDIRECT("Реестр!"&$K$3),Реестр!$F:$F,$C49,Реестр!$I:$I,I$4),SUMIFS(INDIRECT("Реестр!"&$K$3),Реестр!$F:$F,$C49,Реестр!$I:$I,I$4,Реестр!$A:$A,"<="&Версия))*IF($A49="-",-1,1) -> 1000000 | J49: =IF(ISBLANK($F$3),SUMIFS(INDIRECT("Реестр!"&$K$3),Реестр!$F:$F,$C49,Реестр!$I:$I,J$4),SUMIFS(INDIRECT("Реестр!"&$K$3),Реестр!$F:$F,$C49,Реестр!$I:$I,J$4,Реестр!$A:$A,"<="&Версия))*IF($A49="-",-1,1) -> 1000000 | K49: =IF(ISBLANK($F$3),SUMIFS(INDIRECT("Реестр!"&$K$3),Реестр!$F:$F,$C49,Реестр!$I:$I,K$4),SUMIFS(INDIRECT("Реестр!"&$K$3),Реестр!$F:$F,$C49,Реестр!$I:$I,K$4,Реестр!$A:$A,"<="&Версия))*IF($A49="-",-1,1) -> 1000000 | L49: =IF(ISBLANK($F$3),SUMIFS(INDIRECT("Реестр!"&$K$3),Реестр!$F:$F,$C49,Реестр!$I:$I,L$4),SUMIFS(INDIRECT("Реестр!"&$K$3),Реестр!$F:$F,$C49,Реестр!$I:$I,L$4,Реестр!$A:$A,"<="&Версия))*IF($A49="-",-1,1) -> 1000000 | M49: =IF(ISBLANK($F$3),SUMIFS(INDIRECT("Реестр!"&$K$3),Реестр!$F:$F,$C49,Реестр!$I:$I,M$4),SUMIFS(INDIRECT("Реестр!"&$K$3),Реестр!$F:$F,$C49,Реестр!$I:$I,M$4,Реестр!$A:$A,"<="&Версия))*IF($A49="-",-1,1) -> 1000000 | N49: =IF(ISBLANK($F$3),SUMIFS(INDIRECT("Реестр!"&$K$3),Реестр!$F:$F,$C49,Реестр!$I:$I,N$4),SUMIFS(INDIRECT("Реестр!"&$K$3),Реестр!$F:$F,$C49,Реестр!$I:$I,N$4,Реестр!$A:$A,"<="&Версия))*IF($A49="-",-1,1) -> 1000000 | O49: =IF(ISBLANK($F$3),SUMIFS(INDIRECT("Реестр!"&$K$3),Реестр!$F:$F,$C49,Реестр!$I:$I,O$4),SUMIFS(INDIRECT("Реестр!"&$K$3),Реестр!$F:$F,$C49,Реестр!$I:$I,O$4,Реестр!$A:$A,"<="&Версия))*IF($A49="-",-1,1) -> 1000000 | P49: 12000000
A50: + | B50: 21003 | C50: Получение займов | D50: =IF(ISBLANK($F$3),SUMIFS(INDIRECT("Реестр!"&$K$3),Реестр!$F:$F,$C50,Реестр!$I:$I,D$4),SUMIFS(INDIRECT("Реестр!"&$K$3),Реестр!$F:$F,$C50,Реестр!$I:$I,D$4,Реестр!$A:$A,"<="&Версия))*IF($A50="-",-1,1) -> 0 | E50: =IF(ISBLANK($F$3),SUMIFS(INDIRECT("Реестр!"&$K$3),Реестр!$F:$F,$C50,Реестр!$I:$I,E$4),SUMIFS(INDIRECT("Реестр!"&$K$3),Реестр!$F:$F,$C50,Реестр!$I:$I,E$4,Реестр!$A:$A,"<="&Версия))*IF($A50="-",-1,1) -> 0 | F50: =IF(ISBLANK($F$3),SUMIFS(INDIRECT("Реестр!"&$K$3),Реестр!$F:$F,$C50,Реестр!$I:$I,F$4),SUMIFS(INDIRECT("Реестр!"&$K$3),Реестр!$F:$F,$C50,Реестр!$I:$I,F$4,Реестр!$A:$A,"<="&Версия))*IF($A50="-",-1,1) -> 0 | G50: =IF(ISBLANK($F$3),SUMIFS(INDIRECT("Реестр!"&$K$3),Реестр!$F:$F,$C50,Реестр!$I:$I,G$4),SUMIFS(INDIRECT("Реестр!"&$K$3),Реестр!$F:$F,$C50,Реестр!$I:$I,G$4,Реестр!$A:$A,"<="&Версия))*IF($A50="-",-1,1) -> 0 | H50: =IF(ISBLANK($F$3),SUMIFS(INDIRECT("Реестр!"&$K$3),Реестр!$F:$F,$C50,Реестр!$I:$I,H$4),SUMIFS(INDIRECT("Реестр!"&$K$3),Реестр!$F:$F,$C50,Реестр!$I:$I,H$4,Реестр!$A:$A,"<="&Версия))*IF($A50="-",-1,1) -> 0 | I50: =IF(ISBLANK($F$3),SUMIFS(INDIRECT("Реестр!"&$K$3),Реестр!$F:$F,$C50,Реестр!$I:$I,I$4),SUMIFS(INDIRECT("Реестр!"&$K$3),Реестр!$F:$F,$C50,Реестр!$I:$I,I$4,Реестр!$A:$A,"<="&Версия))*IF($A50="-",-1,1) -> 0 | J50: =IF(ISBLANK($F$3),SUMIFS(INDIRECT("Реестр!"&$K$3),Реестр!$F:$F,$C50,Реестр!$I:$I,J$4),SUMIFS(INDIRECT("Реестр!"&$K$3),Реестр!$F:$F,$C50,Реестр!$I:$I,J$4,Реестр!$A:$A,"<="&Версия))*IF($A50="-",-1,1) -> 0 | K50: =IF(ISBLANK($F$3),SUMIFS(INDIRECT("Реестр!"&$K$3),Реестр!$F:$F,$C50,Реестр!$I:$I,K$4),SUMIFS(INDIRECT("Реестр!"&$K$3),Реестр!$F:$F,$C50,Реестр!$I:$I,K$4,Реестр!$A:$A,"<="&Версия))*IF($A50="-",-1,1) -> 0 | L50: =IF(ISBLANK($F$3),SUMIFS(INDIRECT("Реестр!"&$K$3),Реестр!$F:$F,$C50,Реестр!$I:$I,L$4),SUMIFS(INDIRECT("Реестр!"&$K$3),Реестр!$F:$F,$C50,Реестр!$I:$I,L$4,Реестр!$A:$A,"<="&Версия))*IF($A50="-",-1,1) -> 0 | M50: =IF(ISBLANK($F$3),SUMIFS(INDIRECT("Реестр!"&$K$3),Реестр!$F:$F,$C50,Реестр!$I:$I,M$4),SUMIFS(INDIRECT("Реестр!"&$K$3),Реестр!$F:$F,$C50,Реестр!$I:$I,M$4,Реестр!$A:$A,"<="&Версия))*IF($A50="-",-1,1) -> 0 | N50: =IF(ISBLANK($F$3),SUMIFS(INDIRECT("Реестр!"&$K$3),Реестр!$F:$F,$C50,Реестр!$I:$I,N$4),SUMIFS(INDIRECT("Реестр!"&$K$3),Реестр!$F:$F,$C50,Реестр!$I:$I,N$4,Реестр!$A:$A,"<="&Версия))*IF($A50="-",-1,1) -> 0 | O50: =IF(ISBLANK($F$3),SUMIFS(INDIRECT("Реестр!"&$K$3),Реестр!$F:$F,$C50,Реестр!$I:$I,O$4),SUMIFS(INDIRECT("Реестр!"&$K$3),Реестр!$F:$F,$C50,Реестр!$I:$I,O$4,Реестр!$A:$A,"<="&Версия))*IF($A50="-",-1,1) -> 0 | P50: 0
A51: + | B51: 21004 | C51: Прочие поступления от финансовой деятельности | D51: =IF(ISBLANK($F$3),SUMIFS(INDIRECT("Реестр!"&$K$3),Реестр!$F:$F,$C51,Реестр!$I:$I,D$4),SUMIFS(INDIRECT("Реестр!"&$K$3),Реестр!$F:$F,$C51,Реестр!$I:$I,D$4,Реестр!$A:$A,"<="&Версия))*IF($A51="-",-1,1) -> 0 | E51: =IF(ISBLANK($F$3),SUMIFS(INDIRECT("Реестр!"&$K$3),Реестр!$F:$F,$C51,Реестр!$I:$I,E$4),SUMIFS(INDIRECT("Реестр!"&$K$3),Реестр!$F:$F,$C51,Реестр!$I:$I,E$4,Реестр!$A:$A,"<="&Версия))*IF($A51="-",-1,1) -> 0 | F51: =IF(ISBLANK($F$3),SUMIFS(INDIRECT("Реестр!"&$K$3),Реестр!$F:$F,$C51,Реестр!$I:$I,F$4),SUMIFS(INDIRECT("Реестр!"&$K$3),Реестр!$F:$F,$C51,Реестр!$I:$I,F$4,Реестр!$A:$A,"<="&Версия))*IF($A51="-",-1,1) -> 0 | G51: =IF(ISBLANK($F$3),SUMIFS(INDIRECT("Реестр!"&$K$3),Реестр!$F:$F,$C51,Реестр!$I:$I,G$4),SUMIFS(INDIRECT("Реестр!"&$K$3),Реестр!$F:$F,$C51,Реестр!$I:$I,G$4,Реестр!$A:$A,"<="&Версия))*IF($A51="-",-1,1) -> 0 | H51: =IF(ISBLANK($F$3),SUMIFS(INDIRECT("Реестр!"&$K$3),Реестр!$F:$F,$C51,Реестр!$I:$I,H$4),SUMIFS(INDIRECT("Реестр!"&$K$3),Реестр!$F:$F,$C51,Реестр!$I:$I,H$4,Реестр!$A:$A,"<="&Версия))*IF($A51="-",-1,1) -> 0 | I51: =IF(ISBLANK($F$3),SUMIFS(INDIRECT("Реестр!"&$K$3),Реестр!$F:$F,$C51,Реестр!$I:$I,I$4),SUMIFS(INDIRECT("Реестр!"&$K$3),Реестр!$F:$F,$C51,Реестр!$I:$I,I$4,Реестр!$A:$A,"<="&Версия))*IF($A51="-",-1,1) -> 0 | J51: =IF(ISBLANK($F$3),SUMIFS(INDIRECT("Реестр!"&$K$3),Реестр!$F:$F,$C51,Реестр!$I:$I,J$4),SUMIFS(INDIRECT("Реестр!"&$K$3),Реестр!$F:$F,$C51,Реестр!$I:$I,J$4,Реестр!$A:$A,"<="&Версия))*IF($A51="-",-1,1) -> 0 | K51: =IF(ISBLANK($F$3),SUMIFS(INDIRECT("Реестр!"&$K$3),Реестр!$F:$F,$C51,Реестр!$I:$I,K$4),SUMIFS(INDIRECT("Реестр!"&$K$3),Реестр!$F:$F,$C51,Реестр!$I:$I,K$4,Реестр!$A:$A,"<="&Версия))*IF($A51="-",-1,1) -> 0 | L51: =IF(ISBLANK($F$3),SUMIFS(INDIRECT("Реестр!"&$K$3),Реестр!$F:$F,$C51,Реестр!$I:$I,L$4),SUMIFS(INDIRECT("Реестр!"&$K$3),Реестр!$F:$F,$C51,Реестр!$I:$I,L$4,Реестр!$A:$A,"<="&Версия))*IF($A51="-",-1,1) -> 0 | M51: =IF(ISBLANK($F$3),SUMIFS(INDIRECT("Реестр!"&$K$3),Реестр!$F:$F,$C51,Реестр!$I:$I,M$4),SUMIFS(INDIRECT("Реестр!"&$K$3),Реестр!$F:$F,$C51,Реестр!$I:$I,M$4,Реестр!$A:$A,"<="&Версия))*IF($A51="-",-1,1) -> 0 | N51: =IF(ISBLANK($F$3),SUMIFS(INDIRECT("Реестр!"&$K$3),Реестр!$F:$F,$C51,Реестр!$I:$I,N$4),SUMIFS(INDIRECT("Реестр!"&$K$3),Реестр!$F:$F,$C51,Реестр!$I:$I,N$4,Реестр!$A:$A,"<="&Версия))*IF($A51="-",-1,1) -> 0 | O51: =IF(ISBLANK($F$3),SUMIFS(INDIRECT("Реестр!"&$K$3),Реестр!$F:$F,$C51,Реестр!$I:$I,O$4),SUMIFS(INDIRECT("Реестр!"&$K$3),Реестр!$F:$F,$C51,Реестр!$I:$I,O$4,Реестр!$A:$A,"<="&Версия))*IF($A51="-",-1,1) -> 0 | P51: 0
B52: 22000 | C52: Платежи по финансовой деятельности | D52: =SUM(D53:D56) -> 0 | E52: =SUM(E53:E56) -> 0 | F52: 0 | G52: 0 | H52: 0 | I52: 0 | J52: 0 | K52: 0 | L52: 0 | M52: 0 | N52: 0 | O52: 0 | P52: 0
A53: - | B53: 22001 | C53: Платежи акционерам | D53: =IF(ISBLANK($F$3),SUMIFS(INDIRECT("Реестр!"&$K$3),Реестр!$F:$F,$C53,Реестр!$I:$I,D$4),SUMIFS(INDIRECT("Реестр!"&$K$3),Реестр!$F:$F,$C53,Реестр!$I:$I,D$4,Реестр!$A:$A,"<="&Версия))*IF($A53="-",-1,1) -> 0 | E53: =IF(ISBLANK($F$3),SUMIFS(INDIRECT("Реестр!"&$K$3),Реестр!$F:$F,$C53,Реестр!$I:$I,E$4),SUMIFS(INDIRECT("Реестр!"&$K$3),Реестр!$F:$F,$C53,Реестр!$I:$I,E$4,Реестр!$A:$A,"<="&Версия))*IF($A53="-",-1,1) -> 0 | F53: =IF(ISBLANK($F$3),SUMIFS(INDIRECT("Реестр!"&$K$3),Реестр!$F:$F,$C53,Реестр!$I:$I,F$4),SUMIFS(INDIRECT("Реестр!"&$K$3),Реестр!$F:$F,$C53,Реестр!$I:$I,F$4,Реестр!$A:$A,"<="&Версия))*IF($A53="-",-1,1) -> 0 | G53: =IF(ISBLANK($F$3),SUMIFS(INDIRECT("Реестр!"&$K$3),Реестр!$F:$F,$C53,Реестр!$I:$I,G$4),SUMIFS(INDIRECT("Реестр!"&$K$3),Реестр!$F:$F,$C53,Реестр!$I:$I,G$4,Реестр!$A:$A,"<="&Версия))*IF($A53="-",-1,1) -> 0 | H53: =IF(ISBLANK($F$3),SUMIFS(INDIRECT("Реестр!"&$K$3),Реестр!$F:$F,$C53,Реестр!$I:$I,H$4),SUMIFS(INDIRECT("Реестр!"&$K$3),Реестр!$F:$F,$C53,Реестр!$I:$I,H$4,Реестр!$A:$A,"<="&Версия))*IF($A53="-",-1,1) -> 0 | I53: =IF(ISBLANK($F$3),SUMIFS(INDIRECT("Реестр!"&$K$3),Реестр!$F:$F,$C53,Реестр!$I:$I,I$4),SUMIFS(INDIRECT("Реестр!"&$K$3),Реестр!$F:$F,$C53,Реестр!$I:$I,I$4,Реестр!$A:$A,"<="&Версия))*IF($A53="-",-1,1) -> 0 | J53: =IF(ISBLANK($F$3),SUMIFS(INDIRECT("Реестр!"&$K$3),Реестр!$F:$F,$C53,Реестр!$I:$I,J$4),SUMIFS(INDIRECT("Реестр!"&$K$3),Реестр!$F:$F,$C53,Реестр!$I:$I,J$4,Реестр!$A:$A,"<="&Версия))*IF($A53="-",-1,1) -> 0 | K53: =IF(ISBLANK($F$3),SUMIFS(INDIRECT("Реестр!"&$K$3),Реестр!$F:$F,$C53,Реестр!$I:$I,K$4),SUMIFS(INDIRECT("Реестр!"&$K$3),Реестр!$F:$F,$C53,Реестр!$I:$I,K$4,Реестр!$A:$A,"<="&Версия))*IF($A53="-",-1,1) -> 0 | L53: =IF(ISBLANK($F$3),SUMIFS(INDIRECT("Реестр!"&$K$3),Реестр!$F:$F,$C53,Реестр!$I:$I,L$4),SUMIFS(INDIRECT("Реестр!"&$K$3),Реестр!$F:$F,$C53,Реестр!$I:$I,L$4,Реестр!$A:$A,"<="&Версия))*IF($A53="-",-1,1) -> 0 | M53: =IF(ISBLANK($F$3),SUMIFS(INDIRECT("Реестр!"&$K$3),Реестр!$F:$F,$C53,Реестр!$I:$I,M$4),SUMIFS(INDIRECT("Реестр!"&$K$3),Реестр!$F:$F,$C53,Реестр!$I:$I,M$4,Реестр!$A:$A,"<="&Версия))*IF($A53="-",-1,1) -> 0 | N53: =IF(ISBLANK($F$3),SUMIFS(INDIRECT("Реестр!"&$K$3),Реестр!$F:$F,$C53,Реестр!$I:$I,N$4),SUMIFS(INDIRECT("Реестр!"&$K$3),Реестр!$F:$F,$C53,Реестр!$I:$I,N$4,Реестр!$A:$A,"<="&Версия))*IF($A53="-",-1,1) -> 0 | O53: =IF(ISBLANK($F$3),SUMIFS(INDIRECT("Реестр!"&$K$3),Реестр!$F:$F,$C53,Реестр!$I:$I,O$4),SUMIFS(INDIRECT("Реестр!"&$K$3),Реестр!$F:$F,$C53,Реестр!$I:$I,O$4,Реестр!$A:$A,"<="&Версия))*IF($A53="-",-1,1) -> 0 | P53: 0
A54: - | B54: 22002 | C54: Погашение банковских кредитов | D54: =IF(ISBLANK($F$3),SUMIFS(INDIRECT("Реестр!"&$K$3),Реестр!$F:$F,$C54,Реестр!$I:$I,D$4),SUMIFS(INDIRECT("Реестр!"&$K$3),Реестр!$F:$F,$C54,Реестр!$I:$I,D$4,Реестр!$A:$A,"<="&Версия))*IF($A54="-",-1,1) -> 0 | E54: =IF(ISBLANK($F$3),SUMIFS(INDIRECT("Реестр!"&$K$3),Реестр!$F:$F,$C54,Реестр!$I:$I,E$4),SUMIFS(INDIRECT("Реестр!"&$K$3),Реестр!$F:$F,$C54,Реестр!$I:$I,E$4,Реестр!$A:$A,"<="&Версия))*IF($A54="-",-1,1) -> 0 | F54: =IF(ISBLANK($F$3),SUMIFS(INDIRECT("Реестр!"&$K$3),Реестр!$F:$F,$C54,Реестр!$I:$I,F$4),SUMIFS(INDIRECT("Реестр!"&$K$3),Реестр!$F:$F,$C54,Реестр!$I:$I,F$4,Реестр!$A:$A,"<="&Версия))*IF($A54="-",-1,1) -> 0 | G54: =IF(ISBLANK($F$3),SUMIFS(INDIRECT("Реестр!"&$K$3),Реестр!$F:$F,$C54,Реестр!$I:$I,G$4),SUMIFS(INDIRECT("Реестр!"&$K$3),Реестр!$F:$F,$C54,Реестр!$I:$I,G$4,Реестр!$A:$A,"<="&Версия))*IF($A54="-",-1,1) -> 0 | H54: =IF(ISBLANK($F$3),SUMIFS(INDIRECT("Реестр!"&$K$3),Реестр!$F:$F,$C54,Реестр!$I:$I,H$4),SUMIFS(INDIRECT("Реестр!"&$K$3),Реестр!$F:$F,$C54,Реестр!$I:$I,H$4,Реестр!$A:$A,"<="&Версия))*IF($A54="-",-1,1) -> 0 | I54: =IF(ISBLANK($F$3),SUMIFS(INDIRECT("Реестр!"&$K$3),Реестр!$F:$F,$C54,Реестр!$I:$I,I$4),SUMIFS(INDIRECT("Реестр!"&$K$3),Реестр!$F:$F,$C54,Реестр!$I:$I,I$4,Реестр!$A:$A,"<="&Версия))*IF($A54="-",-1,1) -> 0 | J54: =IF(ISBLANK($F$3),SUMIFS(INDIRECT("Реестр!"&$K$3),Реестр!$F:$F,$C54,Реестр!$I:$I,J$4),SUMIFS(INDIRECT("Реестр!"&$K$3),Реестр!$F:$F,$C54,Реестр!$I:$I,J$4,Реестр!$A:$A,"<="&Версия))*IF($A54="-",-1,1) -> 0 | K54: =IF(ISBLANK($F$3),SUMIFS(INDIRECT("Реестр!"&$K$3),Реестр!$F:$F,$C54,Реестр!$I:$I,K$4),SUMIFS(INDIRECT("Реестр!"&$K$3),Реестр!$F:$F,$C54,Реестр!$I:$I,K$4,Реестр!$A:$A,"<="&Версия))*IF($A54="-",-1,1) -> 0 | L54: =IF(ISBLANK($F$3),SUMIFS(INDIRECT("Реестр!"&$K$3),Реестр!$F:$F,$C54,Реестр!$I:$I,L$4),SUMIFS(INDIRECT("Реестр!"&$K$3),Реестр!$F:$F,$C54,Реестр!$I:$I,L$4,Реестр!$A:$A,"<="&Версия))*IF($A54="-",-1,1) -> 0 | M54: =IF(ISBLANK($F$3),SUMIFS(INDIRECT("Реестр!"&$K$3),Реестр!$F:$F,$C54,Реестр!$I:$I,M$4),SUMIFS(INDIRECT("Реестр!"&$K$3),Реестр!$F:$F,$C54,Реестр!$I:$I,M$4,Реестр!$A:$A,"<="&Версия))*IF($A54="-",-1,1) -> 0 | N54: =IF(ISBLANK($F$3),SUMIFS(INDIRECT("Реестр!"&$K$3),Реестр!$F:$F,$C54,Реестр!$I:$I,N$4),SUMIFS(INDIRECT("Реестр!"&$K$3),Реестр!$F:$F,$C54,Реестр!$I:$I,N$4,Реестр!$A:$A,"<="&Версия))*IF($A54="-",-1,1) -> 0 | O54: =IF(ISBLANK($F$3),SUMIFS(INDIRECT("Реестр!"&$K$3),Реестр!$F:$F,$C54,Реестр!$I:$I,O$4),SUMIFS(INDIRECT("Реестр!"&$K$3),Реестр!$F:$F,$C54,Реестр!$I:$I,O$4,Реестр!$A:$A,"<="&Версия))*IF($A54="-",-1,1) -> 0 | P54: 0
A55: - | B55: 22003 | C55: Погашение займов | D55: =IF(ISBLANK($F$3),SUMIFS(INDIRECT("Реестр!"&$K$3),Реестр!$F:$F,$C55,Реестр!$I:$I,D$4),SUMIFS(INDIRECT("Реестр!"&$K$3),Реестр!$F:$F,$C55,Реестр!$I:$I,D$4,Реестр!$A:$A,"<="&Версия))*IF($A55="-",-1,1) -> 0 | E55: =IF(ISBLANK($F$3),SUMIFS(INDIRECT("Реестр!"&$K$3),Реестр!$F:$F,$C55,Реестр!$I:$I,E$4),SUMIFS(INDIRECT("Реестр!"&$K$3),Реестр!$F:$F,$C55,Реестр!$I:$I,E$4,Реестр!$A:$A,"<="&Версия))*IF($A55="-",-1,1) -> 0 | F55: =IF(ISBLANK($F$3),SUMIFS(INDIRECT("Реестр!"&$K$3),Реестр!$F:$F,$C55,Реестр!$I:$I,F$4),SUMIFS(INDIRECT("Реестр!"&$K$3),Реестр!$F:$F,$C55,Реестр!$I:$I,F$4,Реестр!$A:$A,"<="&Версия))*IF($A55="-",-1,1) -> 0 | G55: =IF(ISBLANK($F$3),SUMIFS(INDIRECT("Реестр!"&$K$3),Реестр!$F:$F,$C55,Реестр!$I:$I,G$4),SUMIFS(INDIRECT("Реестр!"&$K$3),Реестр!$F:$F,$C55,Реестр!$I:$I,G$4,Реестр!$A:$A,"<="&Версия))*IF($A55="-",-1,1) -> 0 | H55: =IF(ISBLANK($F$3),SUMIFS(INDIRECT("Реестр!"&$K$3),Реестр!$F:$F,$C55,Реестр!$I:$I,H$4),SUMIFS(INDIRECT("Реестр!"&$K$3),Реестр!$F:$F,$C55,Реестр!$I:$I,H$4,Реестр!$A:$A,"<="&Версия))*IF($A55="-",-1,1) -> 0 | I55: =IF(ISBLANK($F$3),SUMIFS(INDIRECT("Реестр!"&$K$3),Реестр!$F:$F,$C55,Реестр!$I:$I,I$4),SUMIFS(INDIRECT("Реестр!"&$K$3),Реестр!$F:$F,$C55,Реестр!$I:$I,I$4,Реестр!$A:$A,"<="&Версия))*IF($A55="-",-1,1) -> 0 | J55: =IF(ISBLANK($F$3),SUMIFS(INDIRECT("Реестр!"&$K$3),Реестр!$F:$F,$C55,Реестр!$I:$I,J$4),SUMIFS(INDIRECT("Реестр!"&$K$3),Реестр!$F:$F,$C55,Реестр!$I:$I,J$4,Реестр!$A:$A,"<="&Версия))*IF($A55="-",-1,1) -> 0 | K55: =IF(ISBLANK($F$3),SUMIFS(INDIRECT("Реестр!"&$K$3),Реестр!$F:$F,$C55,Реестр!$I:$I,K$4),SUMIFS(INDIRECT("Реестр!"&$K$3),Реестр!$F:$F,$C55,Реестр!$I:$I,K$4,Реестр!$A:$A,"<="&Версия))*IF($A55="-",-1,1) -> 0 | L55: =IF(ISBLANK($F$3),SUMIFS(INDIRECT("Реестр!"&$K$3),Реестр!$F:$F,$C55,Реестр!$I:$I,L$4),SUMIFS(INDIRECT("Реестр!"&$K$3),Реестр!$F:$F,$C55,Реестр!$I:$I,L$4,Реестр!$A:$A,"<="&Версия))*IF($A55="-",-1,1) -> 0 | M55: =IF(ISBLANK($F$3),SUMIFS(INDIRECT("Реестр!"&$K$3),Реестр!$F:$F,$C55,Реестр!$I:$I,M$4),SUMIFS(INDIRECT("Реестр!"&$K$3),Реестр!$F:$F,$C55,Реестр!$I:$I,M$4,Реестр!$A:$A,"<="&Версия))*IF($A55="-",-1,1) -> 0 | N55: =IF(ISBLANK($F$3),SUMIFS(INDIRECT("Реестр!"&$K$3),Реестр!$F:$F,$C55,Реестр!$I:$I,N$4),SUMIFS(INDIRECT("Реестр!"&$K$3),Реестр!$F:$F,$C55,Реестр!$I:$I,N$4,Реестр!$A:$A,"<="&Версия))*IF($A55="-",-1,1) -> 0 | O55: =IF(ISBLANK($F$3),SUMIFS(INDIRECT("Реестр!"&$K$3),Реестр!$F:$F,$C55,Реестр!$I:$I,O$4),SUMIFS(INDIRECT("Реестр!"&$K$3),Реестр!$F:$F,$C55,Реестр!$I:$I,O$4,Реестр!$A:$A,"<="&Версия))*IF($A55="-",-1,1) -> 0 | P55: 0
A56: - | B56: 22004 | C56: Прочие платежи по финансовой деятельности | D56: =IF(ISBLANK($F$3),SUMIFS(INDIRECT("Реестр!"&$K$3),Реестр!$F:$F,$C56,Реестр!$I:$I,D$4),SUMIFS(INDIRECT("Реестр!"&$K$3),Реестр!$F:$F,$C56,Реестр!$I:$I,D$4,Реестр!$A:$A,"<="&Версия))*IF($A56="-",-1,1) -> 0 | E56: =IF(ISBLANK($F$3),SUMIFS(INDIRECT("Реестр!"&$K$3),Реестр!$F:$F,$C56,Реестр!$I:$I,E$4),SUMIFS(INDIRECT("Реестр!"&$K$3),Реестр!$F:$F,$C56,Реестр!$I:$I,E$4,Реестр!$A:$A,"<="&Версия))*IF($A56="-",-1,1) -> 0 | F56: =IF(ISBLANK($F$3),SUMIFS(INDIRECT("Реестр!"&$K$3),Реестр!$F:$F,$C56,Реестр!$I:$I,F$4),SUMIFS(INDIRECT("Реестр!"&$K$3),Реестр!$F:$F,$C56,Реестр!$I:$I,F$4,Реестр!$A:$A,"<="&Версия))*IF($A56="-",-1,1) -> 0 | G56: =IF(ISBLANK($F$3),SUMIFS(INDIRECT("Реестр!"&$K$3),Реестр!$F:$F,$C56,Реестр!$I:$I,G$4),SUMIFS(INDIRECT("Реестр!"&$K$3),Реестр!$F:$F,$C56,Реестр!$I:$I,G$4,Реестр!$A:$A,"<="&Версия))*IF($A56="-",-1,1) -> 0 | H56: =IF(ISBLANK($F$3),SUMIFS(INDIRECT("Реестр!"&$K$3),Реестр!$F:$F,$C56,Реестр!$I:$I,H$4),SUMIFS(INDIRECT("Реестр!"&$K$3),Реестр!$F:$F,$C56,Реестр!$I:$I,H$4,Реестр!$A:$A,"<="&Версия))*IF($A56="-",-1,1) -> 0 | I56: =IF(ISBLANK($F$3),SUMIFS(INDIRECT("Реестр!"&$K$3),Реестр!$F:$F,$C56,Реестр!$I:$I,I$4),SUMIFS(INDIRECT("Реестр!"&$K$3),Реестр!$F:$F,$C56,Реестр!$I:$I,I$4,Реестр!$A:$A,"<="&Версия))*IF($A56="-",-1,1) -> 0 | J56: =IF(ISBLANK($F$3),SUMIFS(INDIRECT("Реестр!"&$K$3),Реестр!$F:$F,$C56,Реестр!$I:$I,J$4),SUMIFS(INDIRECT("Реестр!"&$K$3),Реестр!$F:$F,$C56,Реестр!$I:$I,J$4,Реестр!$A:$A,"<="&Версия))*IF($A56="-",-1,1) -> 0 | K56: =IF(ISBLANK($F$3),SUMIFS(INDIRECT("Реестр!"&$K$3),Реестр!$F:$F,$C56,Реестр!$I:$I,K$4),SUMIFS(INDIRECT("Реестр!"&$K$3),Реестр!$F:$F,$C56,Реестр!$I:$I,K$4,Реестр!$A:$A,"<="&Версия))*IF($A56="-",-1,1) -> 0 | L56: =IF(ISBLANK($F$3),SUMIFS(INDIRECT("Реестр!"&$K$3),Реестр!$F:$F,$C56,Реестр!$I:$I,L$4),SUMIFS(INDIRECT("Реестр!"&$K$3),Реестр!$F:$F,$C56,Реестр!$I:$I,L$4,Реестр!$A:$A,"<="&Версия))*IF($A56="-",-1,1) -> 0 | M56: =IF(ISBLANK($F$3),SUMIFS(INDIRECT("Реестр!"&$K$3),Реестр!$F:$F,$C56,Реестр!$I:$I,M$4),SUMIFS(INDIRECT("Реестр!"&$K$3),Реестр!$F:$F,$C56,Реестр!$I:$I,M$4,Реестр!$A:$A,"<="&Версия))*IF($A56="-",-1,1) -> 0 | N56: =IF(ISBLANK($F$3),SUMIFS(INDIRECT("Реестр!"&$K$3),Реестр!$F:$F,$C56,Реестр!$I:$I,N$4),SUMIFS(INDIRECT("Реестр!"&$K$3),Реестр!$F:$F,$C56,Реестр!$I:$I,N$4,Реестр!$A:$A,"<="&Версия))*IF($A56="-",-1,1) -> 0 | O56: =IF(ISBLANK($F$3),SUMIFS(INDIRECT("Реестр!"&$K$3),Реестр!$F:$F,$C56,Реестр!$I:$I,O$4),SUMIFS(INDIRECT("Реестр!"&$K$3),Реестр!$F:$F,$C56,Реестр!$I:$I,O$4,Реестр!$A:$A,"<="&Версия))*IF($A56="-",-1,1) -> 0 | P56: 0
B57: 29999 | C57: Сальдо по финансовой деятельности | D57: =D47-D52 -> 1000000 | E57: =E47-E52 -> 1000000 | F57: 1000000 | G57: 1000000 | H57: 1000000 | I57: 1000000 | J57: 1000000 | K57: 1000000 | L57: 1000000 | M57: 1000000 | N57: 1000000 | O57: 1000000 | P57: 12000000
B59: инвестиционная деятельность
B60: 31000 | C60: Поступления от инвестиционной деятельности | D60: =SUM(D61:D63) -> 0 | E60: =SUM(E61:E63) -> 0 | F60: 0 | G60: 0 | H60: 0 | I60: 0 | J60: 0 | K60: 0 | L60: 0 | M60: 0 | N60: 0 | O60: 0 | P60: =SUM(D60:O60) -> 0
A61: + | B61: 31100 | C61: Поступления от продажи основных средств | D61: =IF(ISBLANK($F$3),SUMIFS(INDIRECT("Реестр!"&$K$3),Реестр!$F:$F,$C61,Реестр!$I:$I,D$4),SUMIFS(INDIRECT("Реестр!"&$K$3),Реестр!$F:$F,$C61,Реестр!$I:$I,D$4,Реестр!$A:$A,"<="&Версия))*IF($A61="-",-1,1) -> 0 | E61: =IF(ISBLANK($F$3),SUMIFS(INDIRECT("Реестр!"&$K$3),Реестр!$F:$F,$C61,Реестр!$I:$I,E$4),SUMIFS(INDIRECT("Реестр!"&$K$3),Реестр!$F:$F,$C61,Реестр!$I:$I,E$4,Реестр!$A:$A,"<="&Версия))*IF($A61="-",-1,1) -> 0 | F61: =IF(ISBLANK($F$3),SUMIFS(INDIRECT("Реестр!"&$K$3),Реестр!$F:$F,$C61,Реестр!$I:$I,F$4),SUMIFS(INDIRECT("Реестр!"&$K$3),Реестр!$F:$F,$C61,Реестр!$I:$I,F$4,Реестр!$A:$A,"<="&Версия))*IF($A61="-",-1,1) -> 0 | G61: =IF(ISBLANK($F$3),SUMIFS(INDIRECT("Реестр!"&$K$3),Реестр!$F:$F,$C61,Реестр!$I:$I,G$4),SUMIFS(INDIRECT("Реестр!"&$K$3),Реестр!$F:$F,$C61,Реестр!$I:$I,G$4,Реестр!$A:$A,"<="&Версия))*IF($A61="-",-1,1) -> 0 | H61: =IF(ISBLANK($F$3),SUMIFS(INDIRECT("Реестр!"&$K$3),Реестр!$F:$F,$C61,Реестр!$I:$I,H$4),SUMIFS(INDIRECT("Реестр!"&$K$3),Реестр!$F:$F,$C61,Реестр!$I:$I,H$4,Реестр!$A:$A,"<="&Версия))*IF($A61="-",-1,1) -> 0 | I61: =IF(ISBLANK($F$3),SUMIFS(INDIRECT("Реестр!"&$K$3),Реестр!$F:$F,$C61,Реестр!$I:$I,I$4),SUMIFS(INDIRECT("Реестр!"&$K$3),Реестр!$F:$F,$C61,Реестр!$I:$I,I$4,Реестр!$A:$A,"<="&Версия))*IF($A61="-",-1,1) -> 0 | J61: =IF(ISBLANK($F$3),SUMIFS(INDIRECT("Реестр!"&$K$3),Реестр!$F:$F,$C61,Реестр!$I:$I,J$4),SUMIFS(INDIRECT("Реестр!"&$K$3),Реестр!$F:$F,$C61,Реестр!$I:$I,J$4,Реестр!$A:$A,"<="&Версия))*IF($A61="-",-1,1) -> 0 | K61: =IF(ISBLANK($F$3),SUMIFS(INDIRECT("Реестр!"&$K$3),Реестр!$F:$F,$C61,Реестр!$I:$I,K$4),SUMIFS(INDIRECT("Реестр!"&$K$3),Реестр!$F:$F,$C61,Реестр!$I:$I,K$4,Реестр!$A:$A,"<="&Версия))*IF($A61="-",-1,1) -> 0 | L61: =IF(ISBLANK($F$3),SUMIFS(INDIRECT("Реестр!"&$K$3),Реестр!$F:$F,$C61,Реестр!$I:$I,L$4),SUMIFS(INDIRECT("Реестр!"&$K$3),Реестр!$F:$F,$C61,Реестр!$I:$I,L$4,Реестр!$A:$A,"<="&Версия))*IF($A61="-",-1,1) -> 0 | M61: =IF(ISBLANK($F$3),SUMIFS(INDIRECT("Реестр!"&$K$3),Реестр!$F:$F,$C61,Реестр!$I:$I,M$4),SUMIFS(INDIRECT("Реестр!"&$K$3),Реестр!$F:$F,$C61,Реестр!$I:$I,M$4,Реестр!$A:$A,"<="&Версия))*IF($A61="-",-1,1) -> 0 | N61: =IF(ISBLANK($F$3),SUMIFS(INDIRECT("Реестр!"&$K$3),Реестр!$F:$F,$C61,Реестр!$I:$I,N$4),SUMIFS(INDIRECT("Реестр!"&$K$3),Реестр!$F:$F,$C61,Реестр!$I:$I,N$4,Реестр!$A:$A,"<="&Версия))*IF($A61="-",-1,1) -> 0 | O61: =IF(ISBLANK($F$3),SUMIFS(INDIRECT("Реестр!"&$K$3),Реестр!$F:$F,$C61,Реестр!$I:$I,O$4),SUMIFS(INDIRECT("Реестр!"&$K$3),Реестр!$F:$F,$C61,Реестр!$I:$I,O$4,Реестр!$A:$A,"<="&Версия))*IF($A61="-",-1,1) -> 0 | P61: 0
A62: + | B62: 31200 | C62: Поступления от продажи нематериальных активов | D62: =IF(ISBLANK($F$3),SUMIFS(INDIRECT("Реестр!"&$K$3),Реестр!$F:$F,$C62,Реестр!$I:$I,D$4),SUMIFS(INDIRECT("Реестр!"&$K$3),Реестр!$F:$F,$C62,Реестр!$I:$I,D$4,Реестр!$A:$A,"<="&Версия))*IF($A62="-",-1,1) -> 0 | E62: =IF(ISBLANK($F$3),SUMIFS(INDIRECT("Реестр!"&$K$3),Реестр!$F:$F,$C62,Реестр!$I:$I,E$4),SUMIFS(INDIRECT("Реестр!"&$K$3),Реестр!$F:$F,$C62,Реестр!$I:$I,E$4,Реестр!$A:$A,"<="&Версия))*IF($A62="-",-1,1) -> 0 | F62: =IF(ISBLANK($F$3),SUMIFS(INDIRECT("Реестр!"&$K$3),Реестр!$F:$F,$C62,Реестр!$I:$I,F$4),SUMIFS(INDIRECT("Реестр!"&$K$3),Реестр!$F:$F,$C62,Реестр!$I:$I,F$4,Реестр!$A:$A,"<="&Версия))*IF($A62="-",-1,1) -> 0 | G62: =IF(ISBLANK($F$3),SUMIFS(INDIRECT("Реестр!"&$K$3),Реестр!$F:$F,$C62,Реестр!$I:$I,G$4),SUMIFS(INDIRECT("Реестр!"&$K$3),Реестр!$F:$F,$C62,Реестр!$I:$I,G$4,Реестр!$A:$A,"<="&Версия))*IF($A62="-",-1,1) -> 0 | H62: =IF(ISBLANK($F$3),SUMIFS(INDIRECT("Реестр!"&$K$3),Реестр!$F:$F,$C62,Реестр!$I:$I,H$4),SUMIFS(INDIRECT("Реестр!"&$K$3),Реестр!$F:$F,$C62,Реестр!$I:$I,H$4,Реестр!$A:$A,"<="&Версия))*IF($A62="-",-1,1) -> 0 | I62: =IF(ISBLANK($F$3),SUMIFS(INDIRECT("Реестр!"&$K$3),Реестр!$F:$F,$C62,Реестр!$I:$I,I$4),SUMIFS(INDIRECT("Реестр!"&$K$3),Реестр!$F:$F,$C62,Реестр!$I:$I,I$4,Реестр!$A:$A,"<="&Версия))*IF($A62="-",-1,1) -> 0 | J62: =IF(ISBLANK($F$3),SUMIFS(INDIRECT("Реестр!"&$K$3),Реестр!$F:$F,$C62,Реестр!$I:$I,J$4),SUMIFS(INDIRECT("Реестр!"&$K$3),Реестр!$F:$F,$C62,Реестр!$I:$I,J$4,Реестр!$A:$A,"<="&Версия))*IF($A62="-",-1,1) -> 0 | K62: =IF(ISBLANK($F$3),SUMIFS(INDIRECT("Реестр!"&$K$3),Реестр!$F:$F,$C62,Реестр!$I:$I,K$4),SUMIFS(INDIRECT("Реестр!"&$K$3),Реестр!$F:$F,$C62,Реестр!$I:$I,K$4,Реестр!$A:$A,"<="&Версия))*IF($A62="-",-1,1) -> 0 | L62: =IF(ISBLANK($F$3),SUMIFS(INDIRECT("Реестр!"&$K$3),Реестр!$F:$F,$C62,Реестр!$I:$I,L$4),SUMIFS(INDIRECT("Реестр!"&$K$3),Реестр!$F:$F,$C62,Реестр!$I:$I,L$4,Реестр!$A:$A,"<="&Версия))*IF($A62="-",-1,1) -> 0 | M62: =IF(ISBLANK($F$3),SUMIFS(INDIRECT("Реестр!"&$K$3),Реестр!$F:$F,$C62,Реестр!$I:$I,M$4),SUMIFS(INDIRECT("Реестр!"&$K$3),Реестр!$F:$F,$C62,Реестр!$I:$I,M$4,Реестр!$A:$A,"<="&Версия))*IF($A62="-",-1,1) -> 0 | N62: =IF(ISBLANK($F$3),SUMIFS(INDIRECT("Реестр!"&$K$3),Реестр!$F:$F,$C62,Реестр!$I:$I,N$4),SUMIFS(INDIRECT("Реестр!"&$K$3),Реестр!$F:$F,$C62,Реестр!$I:$I,N$4,Реестр!$A:$A,"<="&Версия))*IF($A62="-",-1,1) -> 0 | O62: =IF(ISBLANK($F$3),SUMIFS(INDIRECT("Реестр!"&$K$3),Реестр!$F:$F,$C62,Реестр!$I:$I,O$4),SUMIFS(INDIRECT("Реестр!"&$K$3),Реестр!$F:$F,$C62,Реестр!$I:$I,O$4,Реестр!$A:$A,"<="&Версия))*IF($A62="-",-1,1) -> 0 | P62: 0
A63: + | B63: 31999 | C63: Прочие поступления от инвестиционной деятельности | D63: =IF(ISBLANK($F$3),SUMIFS(INDIRECT("Реестр!"&$K$3),Реестр!$F:$F,$C63,Реестр!$I:$I,D$4),SUMIFS(INDIRECT("Реестр!"&$K$3),Реестр!$F:$F,$C63,Реестр!$I:$I,D$4,Реестр!$A:$A,"<="&Версия))*IF($A63="-",-1,1) -> 0 | E63: =IF(ISBLANK($F$3),SUMIFS(INDIRECT("Реестр!"&$K$3),Реестр!$F:$F,$C63,Реестр!$I:$I,E$4),SUMIFS(INDIRECT("Реестр!"&$K$3),Реестр!$F:$F,$C63,Реестр!$I:$I,E$4,Реестр!$A:$A,"<="&Версия))*IF($A63="-",-1,1) -> 0 | F63: =IF(ISBLANK($F$3),SUMIFS(INDIRECT("Реестр!"&$K$3),Реестр!$F:$F,$C63,Реестр!$I:$I,F$4),SUMIFS(INDIRECT("Реестр!"&$K$3),Реестр!$F:$F,$C63,Реестр!$I:$I,F$4,Реестр!$A:$A,"<="&Версия))*IF($A63="-",-1,1) -> 0 | G63: =IF(ISBLANK($F$3),SUMIFS(INDIRECT("Реестр!"&$K$3),Реестр!$F:$F,$C63,Реестр!$I:$I,G$4),SUMIFS(INDIRECT("Реестр!"&$K$3),Реестр!$F:$F,$C63,Реестр!$I:$I,G$4,Реестр!$A:$A,"<="&Версия))*IF($A63="-",-1,1) -> 0 | H63: =IF(ISBLANK($F$3),SUMIFS(INDIRECT("Реестр!"&$K$3),Реестр!$F:$F,$C63,Реестр!$I:$I,H$4),SUMIFS(INDIRECT("Реестр!"&$K$3),Реестр!$F:$F,$C63,Реестр!$I:$I,H$4,Реестр!$A:$A,"<="&Версия))*IF($A63="-",-1,1) -> 0 | I63: =IF(ISBLANK($F$3),SUMIFS(INDIRECT("Реестр!"&$K$3),Реестр!$F:$F,$C63,Реестр!$I:$I,I$4),SUMIFS(INDIRECT("Реестр!"&$K$3),Реестр!$F:$F,$C63,Реестр!$I:$I,I$4,Реестр!$A:$A,"<="&Версия))*IF($A63="-",-1,1) -> 0 | J63: =IF(ISBLANK($F$3),SUMIFS(INDIRECT("Реестр!"&$K$3),Реестр!$F:$F,$C63,Реестр!$I:$I,J$4),SUMIFS(INDIRECT("Реестр!"&$K$3),Реестр!$F:$F,$C63,Реестр!$I:$I,J$4,Реестр!$A:$A,"<="&Версия))*IF($A63="-",-1,1) -> 0 | K63: =IF(ISBLANK($F$3),SUMIFS(INDIRECT("Реестр!"&$K$3),Реестр!$F:$F,$C63,Реестр!$I:$I,K$4),SUMIFS(INDIRECT("Реестр!"&$K$3),Реестр!$F:$F,$C63,Реестр!$I:$I,K$4,Реестр!$A:$A,"<="&Версия))*IF($A63="-",-1,1) -> 0 | L63: =IF(ISBLANK($F$3),SUMIFS(INDIRECT("Реестр!"&$K$3),Реестр!$F:$F,$C63,Реестр!$I:$I,L$4),SUMIFS(INDIRECT("Реестр!"&$K$3),Реестр!$F:$F,$C63,Реестр!$I:$I,L$4,Реестр!$A:$A,"<="&Версия))*IF($A63="-",-1,1) -> 0 | M63: =IF(ISBLANK($F$3),SUMIFS(INDIRECT("Реестр!"&$K$3),Реестр!$F:$F,$C63,Реестр!$I:$I,M$4),SUMIFS(INDIRECT("Реестр!"&$K$3),Реестр!$F:$F,$C63,Реестр!$I:$I,M$4,Реестр!$A:$A,"<="&Версия))*IF($A63="-",-1,1) -> 0 | N63: =IF(ISBLANK($F$3),SUMIFS(INDIRECT("Реестр!"&$K$3),Реестр!$F:$F,$C63,Реестр!$I:$I,N$4),SUMIFS(INDIRECT("Реестр!"&$K$3),Реестр!$F:$F,$C63,Реестр!$I:$I,N$4,Реестр!$A:$A,"<="&Версия))*IF($A63="-",-1,1) -> 0 | O63: =IF(ISBLANK($F$3),SUMIFS(INDIRECT("Реестр!"&$K$3),Реестр!$F:$F,$C63,Реестр!$I:$I,O$4),SUMIFS(INDIRECT("Реестр!"&$K$3),Реестр!$F:$F,$C63,Реестр!$I:$I,O$4,Реестр!$A:$A,"<="&Версия))*IF($A63="-",-1,1) -> 0 | P63: 0
B64: 32000 | C64: Платежи по инвестиционной деятельности | D64: =SUM(D65:D67) -> 0 | E64: =SUM(E65:E67) -> 0 | F64: 0 | G64: 0 | H64: 0 | I64: 0 | J64: 0 | K64: 0 | L64: 0 | M64: 0 | N64: 0 | O64: 0 | P64: 0
A65: - | B65: 32100 | C65: Приобретение основных средств | D65: =IF(ISBLANK($F$3),SUMIFS(INDIRECT("Реестр!"&$K$3),Реестр!$F:$F,$C65,Реестр!$I:$I,D$4),SUMIFS(INDIRECT("Реестр!"&$K$3),Реестр!$F:$F,$C65,Реестр!$I:$I,D$4,Реестр!$A:$A,"<="&Версия))*IF($A65="-",-1,1) -> 0 | E65: =IF(ISBLANK($F$3),SUMIFS(INDIRECT("Реестр!"&$K$3),Реестр!$F:$F,$C65,Реестр!$I:$I,E$4),SUMIFS(INDIRECT("Реестр!"&$K$3),Реестр!$F:$F,$C65,Реестр!$I:$I,E$4,Реестр!$A:$A,"<="&Версия))*IF($A65="-",-1,1) -> 0 | F65: =IF(ISBLANK($F$3),SUMIFS(INDIRECT("Реестр!"&$K$3),Реестр!$F:$F,$C65,Реестр!$I:$I,F$4),SUMIFS(INDIRECT("Реестр!"&$K$3),Реестр!$F:$F,$C65,Реестр!$I:$I,F$4,Реестр!$A:$A,"<="&Версия))*IF($A65="-",-1,1) -> 0 | G65: =IF(ISBLANK($F$3),SUMIFS(INDIRECT("Реестр!"&$K$3),Реестр!$F:$F,$C65,Реестр!$I:$I,G$4),SUMIFS(INDIRECT("Реестр!"&$K$3),Реестр!$F:$F,$C65,Реестр!$I:$I,G$4,Реестр!$A:$A,"<="&Версия))*IF($A65="-",-1,1) -> 0 | H65: =IF(ISBLANK($F$3),SUMIFS(INDIRECT("Реестр!"&$K$3),Реестр!$F:$F,$C65,Реестр!$I:$I,H$4),SUMIFS(INDIRECT("Реестр!"&$K$3),Реестр!$F:$F,$C65,Реестр!$I:$I,H$4,Реестр!$A:$A,"<="&Версия))*IF($A65="-",-1,1) -> 0 | I65: =IF(ISBLANK($F$3),SUMIFS(INDIRECT("Реестр!"&$K$3),Реестр!$F:$F,$C65,Реестр!$I:$I,I$4),SUMIFS(INDIRECT("Реестр!"&$K$3),Реестр!$F:$F,$C65,Реестр!$I:$I,I$4,Реестр!$A:$A,"<="&Версия))*IF($A65="-",-1,1) -> 0 | J65: =IF(ISBLANK($F$3),SUMIFS(INDIRECT("Реестр!"&$K$3),Реестр!$F:$F,$C65,Реестр!$I:$I,J$4),SUMIFS(INDIRECT("Реестр!"&$K$3),Реестр!$F:$F,$C65,Реестр!$I:$I,J$4,Реестр!$A:$A,"<="&Версия))*IF($A65="-",-1,1) -> 0 | K65: =IF(ISBLANK($F$3),SUMIFS(INDIRECT("Реестр!"&$K$3),Реестр!$F:$F,$C65,Реестр!$I:$I,K$4),SUMIFS(INDIRECT("Реестр!"&$K$3),Реестр!$F:$F,$C65,Реестр!$I:$I,K$4,Реестр!$A:$A,"<="&Версия))*IF($A65="-",-1,1) -> 0 | L65: =IF(ISBLANK($F$3),SUMIFS(INDIRECT("Реестр!"&$K$3),Реестр!$F:$F,$C65,Реестр!$I:$I,L$4),SUMIFS(INDIRECT("Реестр!"&$K$3),Реестр!$F:$F,$C65,Реестр!$I:$I,L$4,Реестр!$A:$A,"<="&Версия))*IF($A65="-",-1,1) -> 0 | M65: =IF(ISBLANK($F$3),SUMIFS(INDIRECT("Реестр!"&$K$3),Реестр!$F:$F,$C65,Реестр!$I:$I,M$4),SUMIFS(INDIRECT("Реестр!"&$K$3),Реестр!$F:$F,$C65,Реестр!$I:$I,M$4,Реестр!$A:$A,"<="&Версия))*IF($A65="-",-1,1) -> 0 | N65: =IF(ISBLANK($F$3),SUMIFS(INDIRECT("Реестр!"&$K$3),Реестр!$F:$F,$C65,Реестр!$I:$I,N$4),SUMIFS(INDIRECT("Реестр!"&$K$3),Реестр!$F:$F,$C65,Реестр!$I:$I,N$4,Реестр!$A:$A,"<="&Версия))*IF($A65="-",-1,1) -> 0 | O65: =IF(ISBLANK($F$3),SUMIFS(INDIRECT("Реестр!"&$K$3),Реестр!$F:$F,$C65,Реестр!$I:$I,O$4),SUMIFS(INDIRECT("Реестр!"&$K$3),Реестр!$F:$F,$C65,Реестр!$I:$I,O$4,Реестр!$A:$A,"<="&Версия))*IF($A65="-",-1,1) -> 0 | P65: 0
A66: - | B66: 32200 | C66: Приобретение нематериальных активов | D66: =IF(ISBLANK($F$3),SUMIFS(INDIRECT("Реестр!"&$K$3),Реестр!$F:$F,$C66,Реестр!$I:$I,D$4),SUMIFS(INDIRECT("Реестр!"&$K$3),Реестр!$F:$F,$C66,Реестр!$I:$I,D$4,Реестр!$A:$A,"<="&Версия))*IF($A66="-",-1,1) -> 0 | E66: =IF(ISBLANK($F$3),SUMIFS(INDIRECT("Реестр!"&$K$3),Реестр!$F:$F,$C66,Реестр!$I:$I,E$4),SUMIFS(INDIRECT("Реестр!"&$K$3),Реестр!$F:$F,$C66,Реестр!$I:$I,E$4,Реестр!$A:$A,"<="&Версия))*IF($A66="-",-1,1) -> 0 | F66: =IF(ISBLANK($F$3),SUMIFS(INDIRECT("Реестр!"&$K$3),Реестр!$F:$F,$C66,Реестр!$I:$I,F$4),SUMIFS(INDIRECT("Реестр!"&$K$3),Реестр!$F:$F,$C66,Реестр!$I:$I,F$4,Реестр!$A:$A,"<="&Версия))*IF($A66="-",-1,1) -> 0 | G66: =IF(ISBLANK($F$3),SUMIFS(INDIRECT("Реестр!"&$K$3),Реестр!$F:$F,$C66,Реестр!$I:$I,G$4),SUMIFS(INDIRECT("Реестр!"&$K$3),Реестр!$F:$F,$C66,Реестр!$I:$I,G$4,Реестр!$A:$A,"<="&Версия))*IF($A66="-",-1,1) -> 0 | H66: =IF(ISBLANK($F$3),SUMIFS(INDIRECT("Реестр!"&$K$3),Реестр!$F:$F,$C66,Реестр!$I:$I,H$4),SUMIFS(INDIRECT("Реестр!"&$K$3),Реестр!$F:$F,$C66,Реестр!$I:$I,H$4,Реестр!$A:$A,"<="&Версия))*IF($A66="-",-1,1) -> 0 | I66: =IF(ISBLANK($F$3),SUMIFS(INDIRECT("Реестр!"&$K$3),Реестр!$F:$F,$C66,Реестр!$I:$I,I$4),SUMIFS(INDIRECT("Реестр!"&$K$3),Реестр!$F:$F,$C66,Реестр!$I:$I,I$4,Реестр!$A:$A,"<="&Версия))*IF($A66="-",-1,1) -> 0 | J66: =IF(ISBLANK($F$3),SUMIFS(INDIRECT("Реестр!"&$K$3),Реестр!$F:$F,$C66,Реестр!$I:$I,J$4),SUMIFS(INDIRECT("Реестр!"&$K$3),Реестр!$F:$F,$C66,Реестр!$I:$I,J$4,Реестр!$A:$A,"<="&Версия))*IF($A66="-",-1,1) -> 0 | K66: =IF(ISBLANK($F$3),SUMIFS(INDIRECT("Реестр!"&$K$3),Реестр!$F:$F,$C66,Реестр!$I:$I,K$4),SUMIFS(INDIRECT("Реестр!"&$K$3),Реестр!$F:$F,$C66,Реестр!$I:$I,K$4,Реестр!$A:$A,"<="&Версия))*IF($A66="-",-1,1) -> 0 | L66: =IF(ISBLANK($F$3),SUMIFS(INDIRECT("Реестр!"&$K$3),Реестр!$F:$F,$C66,Реестр!$I:$I,L$4),SUMIFS(INDIRECT("Реестр!"&$K$3),Реестр!$F:$F,$C66,Реестр!$I:$I,L$4,Реестр!$A:$A,"<="&Версия))*IF($A66="-",-1,1) -> 0 | M66: =IF(ISBLANK($F$3),SUMIFS(INDIRECT("Реестр!"&$K$3),Реестр!$F:$F,$C66,Реестр!$I:$I,M$4),SUMIFS(INDIRECT("Реестр!"&$K$3),Реестр!$F:$F,$C66,Реестр!$I:$I,M$4,Реестр!$A:$A,"<="&Версия))*IF($A66="-",-1,1) -> 0 | N66: =IF(ISBLANK($F$3),SUMIFS(INDIRECT("Реестр!"&$K$3),Реестр!$F:$F,$C66,Реестр!$I:$I,N$4),SUMIFS(INDIRECT("Реестр!"&$K$3),Реестр!$F:$F,$C66,Реестр!$I:$I,N$4,Реестр!$A:$A,"<="&Версия))*IF($A66="-",-1,1) -> 0 | O66: =IF(ISBLANK($F$3),SUMIFS(INDIRECT("Реестр!"&$K$3),Реестр!$F:$F,$C66,Реестр!$I:$I,O$4),SUMIFS(INDIRECT("Реестр!"&$K$3),Реестр!$F:$F,$C66,Реестр!$I:$I,O$4,Реестр!$A:$A,"<="&Версия))*IF($A66="-",-1,1) -> 0 | P66: 0
A67: - | B67: 32999 | C67: Прочие платежи по инвестиционной деятельности | D67: =IF(ISBLANK($F$3),SUMIFS(INDIRECT("Реестр!"&$K$3),Реестр!$F:$F,$C67,Реестр!$I:$I,D$4),SUMIFS(INDIRECT("Реестр!"&$K$3),Реестр!$F:$F,$C67,Реестр!$I:$I,D$4,Реестр!$A:$A,"<="&Версия))*IF($A67="-",-1,1) -> 0 | E67: =IF(ISBLANK($F$3),SUMIFS(INDIRECT("Реестр!"&$K$3),Реестр!$F:$F,$C67,Реестр!$I:$I,E$4),SUMIFS(INDIRECT("Реестр!"&$K$3),Реестр!$F:$F,$C67,Реестр!$I:$I,E$4,Реестр!$A:$A,"<="&Версия))*IF($A67="-",-1,1) -> 0 | F67: =IF(ISBLANK($F$3),SUMIFS(INDIRECT("Реестр!"&$K$3),Реестр!$F:$F,$C67,Реестр!$I:$I,F$4),SUMIFS(INDIRECT("Реестр!"&$K$3),Реестр!$F:$F,$C67,Реестр!$I:$I,F$4,Реестр!$A:$A,"<="&Версия))*IF($A67="-",-1,1) -> 0 | G67: =IF(ISBLANK($F$3),SUMIFS(INDIRECT("Реестр!"&$K$3),Реестр!$F:$F,$C67,Реестр!$I:$I,G$4),SUMIFS(INDIRECT("Реестр!"&$K$3),Реестр!$F:$F,$C67,Реестр!$I:$I,G$4,Реестр!$A:$A,"<="&Версия))*IF($A67="-",-1,1) -> 0 | H67: =IF(ISBLANK($F$3),SUMIFS(INDIRECT("Реестр!"&$K$3),Реестр!$F:$F,$C67,Реестр!$I:$I,H$4),SUMIFS(INDIRECT("Реестр!"&$K$3),Реестр!$F:$F,$C67,Реестр!$I:$I,H$4,Реестр!$A:$A,"<="&Версия))*IF($A67="-",-1,1) -> 0 | I67: =IF(ISBLANK($F$3),SUMIFS(INDIRECT("Реестр!"&$K$3),Реестр!$F:$F,$C67,Реестр!$I:$I,I$4),SUMIFS(INDIRECT("Реестр!"&$K$3),Реестр!$F:$F,$C67,Реестр!$I:$I,I$4,Реестр!$A:$A,"<="&Версия))*IF($A67="-",-1,1) -> 0 | J67: =IF(ISBLANK($F$3),SUMIFS(INDIRECT("Реестр!"&$K$3),Реестр!$F:$F,$C67,Реестр!$I:$I,J$4),SUMIFS(INDIRECT("Реестр!"&$K$3),Реестр!$F:$F,$C67,Реестр!$I:$I,J$4,Реестр!$A:$A,"<="&Версия))*IF($A67="-",-1,1) -> 0 | K67: =IF(ISBLANK($F$3),SUMIFS(INDIRECT("Реестр!"&$K$3),Реестр!$F:$F,$C67,Реестр!$I:$I,K$4),SUMIFS(INDIRECT("Реестр!"&$K$3),Реестр!$F:$F,$C67,Реестр!$I:$I,K$4,Реестр!$A:$A,"<="&Версия))*IF($A67="-",-1,1) -> 0 | L67: =IF(ISBLANK($F$3),SUMIFS(INDIRECT("Реестр!"&$K$3),Реестр!$F:$F,$C67,Реестр!$I:$I,L$4),SUMIFS(INDIRECT("Реестр!"&$K$3),Реестр!$F:$F,$C67,Реестр!$I:$I,L$4,Реестр!$A:$A,"<="&Версия))*IF($A67="-",-1,1) -> 0 | M67: =IF(ISBLANK($F$3),SUMIFS(INDIRECT("Реестр!"&$K$3),Реестр!$F:$F,$C67,Реестр!$I:$I,M$4),SUMIFS(INDIRECT("Реестр!"&$K$3),Реестр!$F:$F,$C67,Реестр!$I:$I,M$4,Реестр!$A:$A,"<="&Версия))*IF($A67="-",-1,1) -> 0 | N67: =IF(ISBLANK($F$3),SUMIFS(INDIRECT("Реестр!"&$K$3),Реестр!$F:$F,$C67,Реестр!$I:$I,N$4),SUMIFS(INDIRECT("Реестр!"&$K$3),Реестр!$F:$F,$C67,Реестр!$I:$I,N$4,Реестр!$A:$A,"<="&Версия))*IF($A67="-",-1,1) -> 0 | O67: =IF(ISBLANK($F$3),SUMIFS(INDIRECT("Реестр!"&$K$3),Реестр!$F:$F,$C67,Реестр!$I:$I,O$4),SUMIFS(INDIRECT("Реестр!"&$K$3),Реестр!$F:$F,$C67,Реестр!$I:$I,O$4,Реестр!$A:$A,"<="&Версия))*IF($A67="-",-1,1) -> 0 | P67: 0
B68: 39999 | C68: Сальдо по инвестиционной деятельности | D68: =D60-D64 -> 0 | E68: =E60-E64 -> 0 | F68: 0 | G68: 0 | H68: 0 | I68: 0 | J68: 0 | K68: 0 | L68: 0 | M68: 0 | N68: 0 | O68: 0 | P68: 0
B70: сальдо и обороты
B71: 99991 | C71: Остаток денежных средств на начало периода | D71: 0 | E71: =D73 -> -2125834.133 | F71: =E73 -> -4208576.024 | G71: -6650846.872 | H71: -8633446.697 | I71: -10243876.88 | J71: -12964306.1 | K71: -15602589.75 | L71: -17876504.97 | M71: -20844778.27 | N71: -23014052.37 | O71: -25342691.2 | P71: =D71 -> 0
B72: 99992 | C72: Оборот за период | D72: =D44+D57+D68 -> -2125834.133 | E72: =E44+E57+E68 -> -2082741.892 | F72: -2442270.848 | G72: -1982599.825 | H72: -1610430.18 | I72: -2720429.225 | J72: -2638283.65 | K72: -2273915.213 | L72: -2968273.3 | M72: -2169274.104 | N72: -2328638.834 | O72: -2540332.596 | P72: -27883023.8
B73: 99993 | C73: Остаток денежных средств на конец периода | D73: =D71+D72 -> -2125834.133 | E73: =E71+E72 -> -4208576.024 | F73: -6650846.872 | G73: -8633446.697 | H73: -10243876.88 | I73: -12964306.1 | J73: -15602589.75 | K73: -17876504.97 | L73: -20844778.27 | M73: -23014052.37 | N73: -25342691.2 | O73: -27883023.8 | P73: -27883023.8

Sheet Реестр
A1: Сводный реестр плановых операций
C2: =SUBTOTAL(109,C4:C100000) -> -27883023.8 | D2: =SUBTOTAL(109,D4:D100000) -> -3867251.715 | E2: =SUBTOTAL(109,E4:E100000) -> 21459820.37
A3: Дата занесения | B3: Дата операции | C3: Пессим. | D3: Реалист. | E3: Оптимист. | F3: Статья затрат/ДДС | G3: Наименование контрагента | H3: Комментарии | I3: Месяц операции | J3: ЦФО
A4: 2014-12-15 | B4: 2015-01-15 | C4: -75000 | D4: -90000 | E4: -100000 | F4: Хостинг серверов | G4: Контрагент 1 | I4: 1 | J4: технический отдел
A5: 2014-12-15 | B5: 2015-01-15 | C5: -15000 | D5: -20000 | E5: -25000 | F5: Телематические услуги | G5: Контрагент 2 | I5: 1 | J5: технический отдел
A6: 2014-12-15 | B6: 2015-01-15 | C6: -7500 | D6: -7500 | E6: -7500 | F6: Домены и обслуживание сайтов | G6: Контрагент 3 | I6: 1 | J6: технический отдел
A7: 2014-12-15 | B7: 2015-01-15 | C7: -17500 | D7: -20000 | E7: -22500 | F7: Интернет на площадке | G7: Контрагент 4 | I7: 1 | J7: технический отдел
A8: 2014-12-15 | B8: 2015-01-15 | C8: 0 | D8: -5000 | E8: -10000 | F8: Прочие производственные расходы | G8: Контрагент 5 | I8: 1 | J8: технический отдел
A9: 2014-12-15 | B9: 2015-02-15 | C9: -75000 | D9: -90000 | E9: -100000 | F9: Хостинг серверов | G9: Контрагент 1 | I9: 2 | J9: технический отдел
A10: 2014-12-15 | B10: 2015-02-15 | C10: -15000 | D10: -20000 | E10: -25000 | F10: Телематические услуги | G10: Контрагент 2 | I10: 2 | J10: технический отдел
A11: 2014-12-15 | B11: 2015-02-15 | C11: -7500 | D11: -7500 | E11: -7500 | F11: Домены и обслуживание сайтов | G11: Контрагент 3 | I11: 2 | J11: технический отдел
A12: 2014-12-15 | B12: 2015-02-15 | C12: -17500 | D12: -20000 | E12: -22500 | F12: Интернет на площадке | G12: Контрагент 4 | I12: 2 | J12: технический отдел
A13: 2014-12-15 | B13: 2015-02-15 | C13: 0 | D13: -5000 | E13: -10000 | F13: Прочие производственные расходы | G13: Контрагент 5 | I13: 2 | J13: технический отдел
A14: 2014-12-15 | B14: 2015-03-15 | C14: -75000 | D14: -90000 | E14: -100000 | F14: Хостинг серверов | G14: Контрагент 1 | I14: 3 | J14: технический отдел
A15: 2014-12-15 | B15: 2015-03-15 | C15: -15000 | D15: -20000 | E15: -25000 | F15: Телематические услуги | G15: Контрагент 2 | I15: 3 | J15: технический отдел
A16: 2014-12-15 | B16: 2015-03-15 | C16: -7500 | D16: -7500 | E16: -7500 | F16: Домены и обслуживание сайтов | G16: Контрагент 3 | I16: 3 | J16: технический отдел
A17: 2014-12-15 | B17: 2015-03-15 | C17: -17500 | D17: -20000 | E17: -22500 | F17: Интернет на площадке | G17: Контрагент 4 | I17: 3 | J17: технический отдел
A18: 2014-12-15 | B18: 2015-03-15 | C18: 0 | D18: -5000 | E18: -10000 | F18: Прочие производственные расходы | G18: Контрагент 5 | I18: 3 | J18: технический отдел
A19: 2014-12-15 | B19: 2015-04-15 | C19: -75000 | D19: -90000 | E19: -100000 | F19: Хостинг серверов | G19: Контрагент 1 | I19: 4 | J19: технический отдел
A20: 2014-12-15 | B20: 2015-04-15 | C20: -15000 | D20: -20000 | E20: -25000 | F20: Телематические услуги | G20: Контрагент 2 | I20: 4 | J20: технический отдел
A21: 2014-12-15 | B21: 2015-04-15 | C21: -7500 | D21: -7500 | E21: -7500 | F21: Домены и обслуживание сайтов | G21: Контрагент 3 | I21: 4 | J21: технический отдел
A22: 2014-12-15 | B22: 2015-04-15 | C22: -17500 | D22: -20000 | E22: -22500 | F22: Интернет на площадке | G22: Контрагент 4 | I22: 4 | J22: технический отдел
A23: 2014-12-15 | B23: 2015-04-15 | C23: 0 | D23: -5000 | E23: -10000 | F23: Прочие производственные расходы | G23: Контрагент 5 | I23: 4 | J23: технический отдел
A24: 2014-12-15 | B24: 2015-05-15 | C24: -75000 | D24: -90000 | E24: -100000 | F24: Хостинг серверов | G24: Контрагент 1 | I24: 5 | J24: технический отдел
A25: 2014-12-15 | B25: 2015-05-15 | C25: -15000 | D25: -20000 | E25: -25000 | F25: Телематические услуги | G25: Контрагент 2 | I25: 5 | J25: технический отдел
A26: 2014-12-15 | B26: 2015-05-15 | C26: -7500 | D26: -7500 | E26: -7500 | F26: Домены и обслуживание сайтов | G26: Контрагент 3 | I26: 5 | J26: технический отдел
A27: 2014-12-15 | B27: 2015-05-15 | C27: -17500 | D27: -20000 | E27: -22500 | F27: Интернет на площадке | G27: Контрагент 4 | I27: 5 | J27: технический отдел
A28: 2014-12-15 | B28: 2015-05-15 | C28: 0 | D28: -5000 | E28: -10000 | F28: Прочие производственные расходы | G28: Контрагент 5 | I28: 5 | J28: технический отдел
A29: 2014-12-15 | B29: 2015-06-15 | C29: -75000 | D29: -90000 | E29: -100000 | F29: Хостинг серверов | G29: Контрагент 1 | I29: 6 | J29: технический отдел
A30: 2014-12-15 | B30: 2015-06-15 | C30: -15000 | D30: -20000 | E30: -25000 | F30: Телематические услуги | G30: Контрагент 2 | I30: 6 | J30: технический отдел
A31: 2014-12-15 | B31: 2015-06-15 | C31: -7500 | D31: -7500 | E31: -7500 | F31: Домены и обслуживание сайтов | G31: Контрагент 3 | I31: 6 | J31: технический отдел
A32: 2014-12-15 | B32: 2015-06-15 | C32: -17500 | D32: -20000 | E32: -22500 | F32: Интернет на площадке | G32: Контрагент 4 | I32: 6 | J32: технический отдел
A33: 2014-12-15 | B33: 2015-06-15 | C33: 0 | D33: -5000 | E33: -10000 | F33: Прочие производственные расходы | G33: Контрагент 5 | I33: 6 | J33: технический отдел
A34: 2014-12-15 | B34: 2015-07-15 | C34: -75000 | D34: -90000 | E34: -100000 | F34: Хостинг серверов | G34: Контрагент 1 | I34: 7 | J34: технический отдел
A35: 2014-12-15 | B35: 2015-07-15 | C35: -15000 | D35: -20000 | E35: -25000 | F35: Телематические услуги | G35: Контрагент 2 | I35: 7 | J35: технический отдел
A36: 2014-12-15 | B36: 2015-07-15 | C36: -7500 | D36: -7500 | E36: -7500 | F36: Домены и обслуживание сайтов | G36: Контрагент 3 | I36: 7 | J36: технический отдел
A37: 2014-12-15 | B37: 2015-07-15 | C37: -17500 | D37: -20000 | E37: -22500 | F37: Интернет на площадке | G37: Контрагент 4 | I37: 7 | J37: технический отдел
A38: 2014-12-15 | B38: 2015-07-15 | C38: 0 | D38: -5000 | E38: -10000 | F38: Прочие производственные расходы | G38: Контрагент 5 | I38: 7 | J38: технический отдел
A39: 2014-12-15 | B39: 2015-08-15 | C39: -75000 | D39: -90000 | E39: -100000 | F39: Хостинг серверов | G39: Контрагент 1 | I39: 8 | J39: технический отдел
A40: 2014-12-15 | B40: 2015-08-15 | C40: -15000 | D40: -20000 | E40: -25000 | F40: Телематические услуги | G40: Контрагент 2 | I40: 8 | J40: технический отдел
A41: 2014-12-15 | B41: 2015-08-15 | C41: -7500 | D41: -7500 | E41: -7500 | F41: Домены и обслуживание сайтов | G41: Контрагент 3 | I41: 8 | J41: технический отдел
A42: 2014-12-15 | B42: 2015-08-15 | C42: -17500 | D42: -20000 | E42: -22500 | F42: Интернет на площадке | G42: Контрагент 4 | I42: 8 | J42: технический отдел
A43: 2014-12-15 | B43: 2015-08-15 | C43: 0 | D43: -5000 | E43: -10000 | F43: Прочие производственные расходы | G43: Контрагент 5 | I43: 8 | J43: технический отдел
A44: 2014-12-15 | B44: 2015-09-15 | C44: -75000 | D44: -90000 | E44: -100000 | F44: Хостинг серверов | G44: Контрагент 1 | I44: 9 | J44: технический отдел
A45: 2014-12-15 | B45: 2015-09-15 | C45: -15000 | D45: -20000 | E45: -25000 | F45: Телематические услуги | G45: Контрагент 2 | I45: 9 | J45: технический отдел
A46: 2014-12-15 | B46: 2015-09-15 | C46: -7500 | D46: -7500 | E46: -7500 | F46: Домены и обслуживание сайтов | G46: Контрагент 3 | I46: 9 | J46: технический отдел
A47: 2014-12-15 | B47: 2015-09-15 | C47: -17500 | D47: -20000 | E47: -22500 | F47: Интернет на площадке | G47: Контрагент 4 | I47: 9 | J47: технический отдел
A48: 2014-12-15 | B48: 2015-09-15 | C48: 0 | D48: -5000 | E48: -10000 | F48: Прочие производственные расходы | G48: Контрагент 5 | I48: 9 | J48: технический отдел
A49: 2014-12-15 | B49: 2015-10-15 | C49: -75000 | D49: -90000 | E49: -100000 | F49: Хостинг серверов | G49: Контрагент 1 | I49: 10 | J49: технический отдел
A50: 2014-12-15 | B50: 2015-10-15 | C50: -15000 | D50: -20000 | E50: -25000 | F50: Телематические услуги | G50: Контрагент 2 | I50: 10 | J50: технический отдел
A51: 2014-12-15 | B51: 2015-10-15 | C51: -7500 | D51: -7500 | E51: -7500 | F51: Домены и обслуживание сайтов | G51: Контрагент 3 | I51: 10 | J51: технический отдел
A52: 2014-12-15 | B52: 2015-10-15 | C52: -17500 | D52: -20000 | E52: -22500 | F52: Интернет на площадке | G52: Контрагент 4 | I52: 10 | J52: технический отдел
A53: 2014-12-15 | B53: 2015-10-15 | C53: 0 | D53: -5000 | E53: -10000 | F53: Прочие производственные расходы | G53: Контрагент 5 | I53: 10 | J53: технический отдел
A54: 2014-12-15 | B54: 2015-11-15 | C54: -75000 | D54: -90000 | E54: -100000 | F54: Хостинг серверов | G54: Контрагент 1 | I54: 11 | J54: технический отдел
A55: 2014-12-15 | B55: 2015-11-15 | C55: -15000 | D55: -20000 | E55: -25000 | F55: Телематические услуги | G55: Контрагент 2 | I55: 11 | J55: технический отдел
A56: 2014-12-15 | B56: 2015-11-15 | C56: -7500 | D56: -7500 | E56: -7500 | F56: Домены и обслуживание сайтов | G56: Контрагент 3 | I56: 11 | J56: технический отдел
A57: 2014-12-15 | B57: 2015-11-15 | C57: -17500 | D57: -20000 | E57: -22500 | F57: Интернет на площадке | G57: Контрагент 4 | I57: 11 | J57: технический отдел
A58: 2014-12-15 | B58: 2015-11-15 | C58: 0 | D58: -5000 | E58: -10000 | F58: Прочие производственные расходы | G58: Контрагент 5 | I58: 11 | J58: технический отдел
A59: 2014-12-15 | B59: 2015-12-15 | C59: -75000 | D59: -90000 | E59: -100000 | F59: Хостинг серверов | G59: Контрагент 1 | I59: 12 | J59: технический отдел
A60: 2014-12-15 | B60: 2015-12-15 | C60: -15000 | D60: -20000 | E60: -25000 | F60: Телематические услуги | G60: Контрагент 2 | I60: 12 | J60: технический отдел
A61: 2014-12-15 | B61: 2015-12-15 | C61: -7500 | D61: -7500 | E61: -7500 | F61: Домены и обслуживание сайтов | G61: Контрагент 3 | I61: 12 | J61: технический отдел
A62: 2014-12-15 | B62: 2015-12-15 | C62: -17500 | D62: -20000 | E62: -22500 | F62: Интернет на площадке | G62: Контрагент 4 | I62: 12 | J62: технический отдел
A63: 2014-12-15 | B63: 2015-12-15 | C63: 0 | D63: -5000 | E63: -10000 | F63: Прочие производственные расходы | G63: Контрагент 5 | I63: 12 | J63: технический отдел
A64: 2014-12-15 | B64: 2015-01-15 | C64: 435472.22 | D64: 870944.44 | E64: 1306416.66 | F64: Поступления от продаж | G64: Клиент 3 | I64: 1 | J64: отдел продаж
A65: 2014-12-15 | B65: 2015-01-15 | C65: 826000 | D65: 1652000 | E65: 2478000 | F65: Поступления от продаж | G65: Клиент 8 | I65: 1 | J65: отдел продаж
A66: 2014-12-15 | B66: 2015-01-15 | C66: 336279.16 | D66: 672558.32 | E66: 1008837.48 | F66: Поступления от продаж | G66: Клиент 6 | I66: 1 | J66: отдел продаж
A67: 2014-12-15 | B67: 2015-01-15 | C67: 346664 | D67: 693328 | E67: 1039992 | F67: Поступления от продаж | G67: Клиент 11 | I67: 1 | J67: отдел продаж
A68: 2014-12-15 | B68: 2015-01-15 | C68: 570825 | D68: 1141650 | E68: 1712475 | F68: Поступления от продаж | G68: Клиент 15 | I68: 1 | J68: отдел продаж
A69: 2014-12-15 | B69: 2015-02-15 | C69: 570058.71 | D69: 1140117.42 | E69: 1710176.13 | F69: Поступления от продаж | G69: Клиент 7 | I69: 2 | J69: отдел продаж
A70: 2014-12-15 | B70: 2015-02-15 | C70: 421850 | D70: 843700 | E70: 1265550 | F70: Поступления от продаж | G70: Клиент 16 | I70: 2 | J70: отдел продаж
A71: 2014-12-15 | B71: 2015-02-15 | C71: 479012.93 | D71: 958025.86 | E71: 1437038.79 | F71: Поступления от продаж | G71: Клиент 12 | I71: 2 | J71: отдел продаж
A72: 2014-12-15 | B72: 2015-02-15 | C72: 500000 | D72: 1000000 | E72: 1500000 | F72: Поступления от продаж | G72: Клиент 1 | I72: 2 | J72: отдел продаж
A73: 2014-12-15 | B73: 2015-02-15 | C73: 421198.05 | D73: 842396.1 | E73: 1263594.15 | F73: Поступления от продаж | G73: Клиент 3 | I73: 2 | J73: отдел продаж
A74: 2014-12-15 | B74: 2015-03-15 | C74: 400000 | D74: 800000 | E74: 1200000 | F74: Поступления от продаж | G74: Клиент 6 | I74: 3 | J74: отдел продаж
A75: 2014-12-15 | B75: 2015-03-15 | C75: 669159.57 | D75: 1338319.14 | E75: 2007478.71 | F75: Поступления от продаж | G75: Клиент 20 | I75: 3 | J75: отдел продаж
A76: 2014-12-15 | B76: 2015-03-15 | C76: 1000000 | D76: 2000000 | E76: 3000000 | F76: Поступления от продаж | G76: Клиент 3 | I76: 3 | J76: отдел продаж
A77: 2014-12-15 | B77: 2015-03-15 | C77: 1000000 | D77: 2000000 | E77: 3000000 | F77: Поступления от продаж | G77: Клиент 19 | I77: 3 | J77: отдел продаж
A78: 2014-12-15 | B78: 2015-03-15 | C78: 350185.71 | D78: 700371.42 | E78: 1050557.13 | F78: Поступления от продаж | G78: Клиент 4 | I78: 3 | J78: отдел продаж
A79: 2014-12-15 | B79: 2015-04-15 | C79: 400000 | D79: 800000 | E79: 1200000 | F79: Поступления от продаж | G79: Клиент 10 | I79: 4 | J79: отдел продаж
A80: 2014-12-15 | B80: 2015-04-15 | C80: 356832 | D80: 713664 | E80: 1070496 | F80: Поступления от продаж | G80: Клиент 8 | I80: 4 | J80: отдел продаж
A81: 2014-12-15 | B81: 2015-04-15 | C81: 404976 | D81: 809952 | E81: 1214928 | F81: Поступления от продаж | G81: Клиент 7 | I81: 4 | J81: отдел продаж
A82: 2014-12-15 | B82: 2015-04-15 | C82: 312847.5 | D82: 625695 | E82: 938542.5 | F82: Поступления от продаж | G82: Клиент 11 | I82: 4 | J82: отдел продаж
A83: 2014-12-15 | B83: 2015-04-15 | C83: 331344 | D83: 662688 | E83: 994032 | F83: Поступления от продаж | G83: Клиент 5 | I83: 4 | J83: отдел продаж
A84: 2014-12-15 | B84: 2015-05-15 | C84: 329951.6 | D84: 659903.2 | E84: 989854.8 | F84: Поступления от продаж | G84: Клиент 17 | I84: 5 | J84: отдел продаж
A85: 2014-12-15 | B85: 2015-05-15 | C85: 800000 | D85: 1600000 | E85: 2400000 | F85: Поступления от продаж | G85: Клиент 4 | I85: 5 | J85: отдел продаж
A86: 2014-12-15 | B86: 2015-05-15 | C86: 400000 | D86: 800000 | E86: 1200000 | F86: Поступления от продаж | G86: Клиент 11 | I86: 5 | J86: отдел продаж
A87: 2014-12-15 | B87: 2015-05-15 | C87: 424800 | D87: 849600 | E87: 1274400 | F87: Поступления от продаж | G87: Клиент 16 | I87: 5 | J87: отдел продаж
A88: 2014-12-15 | B88: 2015-05-15 | C88: 330763.2 | D88: 661526.4 | E88: 992289.6 | F88: Поступления от продаж | G88: Клиент 2 | I88: 5 | J88: отдел продаж
A89: 2014-12-15 | B89: 2015-06-15 | C89: 1174429.29 | D89: 2348858.58 | E89: 3523287.87 | F89: Поступления от продаж | G89: Клиент 5 | I89: 6 | J89: отдел продаж
A90: 2014-12-15 | B90: 2015-06-15 | C90: 345150 | D90: 690300 | E90: 1035450 | F90: Поступления от продаж | G90: Клиент 15 | I90: 6 | J90: отдел продаж
A91: 2014-12-15 | B91: 2015-06-15 | C91: 399969.02 | D91: 799938.04 | E91: 1199907.06 | F91: Поступления от продаж | G91: Клиент 16 | I91: 6 | J91: отдел продаж
A92: 2014-12-15 | B92: 2015-06-15 | C92: 820105.9 | D92: 1640211.8 | E92: 2460317.7 | F92: Поступления от продаж | G92: Клиент 2 | I92: 6 | J92: отдел продаж
A93: 2014-12-15 | B93: 2015-06-15 | C93: 1174429.29 | D93: 2348858.58 | E93: 3523287.87 | F93: Поступления от продаж | G93: Клиент 5 | I93: 6 | J93: отдел продаж
A94: 2014-12-15 | B94: 2015-07-15 | C94: 433840 | D94: 867680 | E94: 1301520 | F94: Поступления от продаж | G94: Клиент 6 | I94: 7 | J94: отдел продаж
A95: 2014-12-15 | B95: 2015-07-15 | C95: 942267.55 | D95: 1884535.1 | E95: 2826802.65 | F95: Поступления от продаж | G95: Клиент 19 | I95: 7 | J95: отдел продаж
A96: 2014-12-15 | B96: 2015-07-15 | C96: 962036 | D96: 1924072 | E96: 2886108 | F96: Поступления от продаж | G96: Клиент 19 | I96: 7 | J96: отдел продаж
A97: 2014-12-15 | B97: 2015-07-15 | C97: 450796.88 | D97: 901593.76 | E97: 1352390.64 | F97: Поступления от продаж | G97: Клиент 5 | I97: 7 | J97: отдел продаж
A98: 2014-12-15 | B98: 2015-07-15 | C98: 486870 | D98: 973740 | E98: 1460610 | F98: Поступления от продаж | G98: Клиент 10 | I98: 7 | J98: отдел продаж
A99: 2014-12-15 | B99: 2015-08-15 | C99: 343026 | D99: 686052 | E99: 1029078 | F99: Поступления от продаж | G99: Клиент 14 | I99: 8 | J99: отдел продаж
A100: 2014-12-15 | B100: 2015-08-15 | C100: 361375 | D100: 722750 | E100: 1084125 | F100: Поступления от продаж | G100: Клиент 11 | I100: 8 | J100: отдел продаж
A101: 2014-12-15 | B101: 2015-08-15 | C101: 532666.75 | D101: 1065333.5 | E101: 1598000.25 | F101: Поступления от продаж | G101: Клиент 10 | I101: 8 | J101: отдел продаж
A102: 2014-12-15 | B102: 2015-08-15 | C102: 371700 | D102: 743400 | E102: 1115100 | F102: Поступления от продаж | G102: Клиент 1 | I102: 8 | J102: отдел продаж
A103: 2014-12-15 | B103: 2015-08-15 | C103: 625990 | D103: 1251980 | E103: 1877970 | F103: Поступления от продаж | G103: Клиент 15 | I103: 8 | J103: отдел продаж
A104: 2014-12-15 | B104: 2015-09-15 | C104: 399976 | D104: 799952 | E104: 1199928 | F104: Поступления от продаж | G104: Клиент 10 | I104: 9 | J104: отдел продаж
A105: 2014-12-15 | B105: 2015-09-15 | C105: 596183.31 | D105: 1192366.62 | E105: 1788549.93 | F105: Поступления от продаж | G105: Клиент 3 | I105: 9 | J105: отдел продаж
A106: 2014-12-15 | B106: 2015-09-15 | C106: 1391165.46 | D106: 2782330.92 | E106: 4173496.38 | F106: Поступления от продаж | G106: Клиент 6 | I106: 9 | J106: отдел продаж
A107: 2014-12-15 | B107: 2015-09-15 | C107: 309750 | D107: 619500 | E107: 929250 | F107: Поступления от продаж | G107: Клиент 4 | I107: 9 | J107: отдел продаж
A108: 2014-12-15 | B108: 2015-09-15 | C108: 1521563.23 | D108: 3043126.46 | E108: 4564689.69 | F108: Поступления от продаж | G108: Клиент 2 | I108: 9 | J108: отдел продаж
A109: 2014-12-15 | B109: 2015-10-15 | C109: 343603.66 | D109: 687207.32 | E109: 1030810.98 | F109: Поступления от продаж | G109: Клиент 9 | I109: 10 | J109: отдел продаж
A110: 2014-12-15 | B110: 2015-10-15 | C110: 618197.42 | D110: 1236394.84 | E110: 1854592.26 | F110: Поступления от продаж | G110: Клиент 13 | I110: 10 | J110: отдел продаж
A111: 2014-12-15 | B111: 2015-10-15 | C111: 339840 | D111: 679680 | E111: 1019520 | F111: Поступления от продаж | G111: Клиент 2 | I111: 10 | J111: отдел продаж
A112: 2014-12-15 | B112: 2015-10-15 | C112: 305325 | D112: 610650 | E112: 915975 | F112: Поступления от продаж | G112: Клиент 8 | I112: 10 | J112: отдел продаж
A113: 2014-12-15 | B113: 2015-10-15 | C113: 314531.36 | D113: 629062.72 | E113: 943594.08 | F113: Поступления от продаж | G113: Клиент 4 | I113: 10 | J113: отдел продаж
A114: 2014-12-15 | B114: 2015-11-15 | C114: 371700 | D114: 743400 | E114: 1115100 | F114: Поступления от продаж | G114: Клиент 3 | I114: 11 | J114: отдел продаж
A115: 2014-12-15 | B115: 2015-11-15 | C115: 815316 | D115: 1630632 | E115: 2445948 | F115: Поступления от продаж | G115: Клиент 2 | I115: 11 | J115: отдел продаж
A116: 2014-12-15 | B116: 2015-11-15 | C116: 318600 | D116: 637200 | E116: 955800 | F116: Поступления от продаж | G116: Клиент 14 | I116: 11 | J116: отдел продаж
A117: 2014-12-15 | B117: 2015-11-15 | C117: 521022.13 | D117: 1042044.26 | E117: 1563066.39 | F117: Поступления от продаж | G117: Клиент 20 | I117: 11 | J117: отдел продаж
A118: 2014-12-15 | B118: 2015-11-15 | C118: 350187.11 | D118: 700374.22 | E118: 1050561.33 | F118: Поступления от продаж | G118: Клиент 2 | I118: 11 | J118: отдел продаж
A119: 2014-12-15 | B119: 2015-12-15 | C119: 404279.06 | D119: 808558.12 | E119: 1212837.18 | F119: Поступления от продаж | G119: Клиент 11 | I119: 12 | J119: отдел продаж
A120: 2014-12-15 | B120: 2015-12-15 | C120: 1305519.92 | D120: 2611039.84 | E120: 3916559.76 | F120: Поступления от продаж | G120: Клиент 7 | I120: 12 | J120: отдел продаж
A121: 2014-12-15 | B121: 2015-12-15 | C121: 330760.86 | D121: 661521.72 | E121: 992282.58 | F121: Поступления от продаж | G121: Клиент 13 | I121: 12 | J121: отдел продаж
A122: 2014-12-15 | B122: 2015-12-15 | C122: 587018.21 | D122: 1174036.42 | E122: 1761054.63 | F122: Поступления от продаж | G122: Клиент 17 | I122: 12 | J122: отдел продаж
A123: 2014-12-15 | B123: 2015-12-15 | C123: 354086.51 | D123: 708173.02 | E123: 1062259.53 | F123: Поступления от продаж | G123: Клиент 21 | I123: 12 | J123: отдел продаж
A124: 2014-12-15 | B124: 2015-01-31 | C124: -50000 | D124: -60000 | E124: -70000 | F124: Основная заработная плата | G124: Иванов И.И. | I124: 1 | J124: оплата труда
A125: 2014-12-15 | B125: 2015-01-31 | C125: -80000 | D125: -80000 | E125: -80000 | F125: Основная заработная плата | G125: Петров П.П. | I125: 1 | J125: оплата труда
A126: 2014-12-15 | B126: 2015-01-31 | C126: -95000 | D126: -95000 | E126: -98000 | F126: Основная заработная плата | G126: Сидоров С.С. | I126: 1 | J126: оплата труда
A127: 2014-12-15 | B127: 2015-01-31 | C127: -300000 | D127: -500000 | E127: -700000 | F127: Основная заработная плата | G127: Путин В.В. | I127: 1 | J127: оплата труда
A128: 2014-12-15 | B128: 2015-01-31 | C128: -150000 | D128: -175000 | E128: -200000 | F128: Основная заработная плата | G128: Медведев Д.А. | I128: 1 | J128: оплата труда
A129: 2014-12-15 | B129: 2015-01-31 | C129: -100000 | D129: -110000 | E129: -120000 | F129: Основная заработная плата | G129: Шойгу С.К. | I129: 1 | J129: оплата труда
A130: 2014-12-15 | B130: 2015-02-28 | C130: -50000 | D130: -60000 | E130: -70000 | F130: Основная заработная плата | G130: Иванов И.И. | I130: 2 | J130: оплата труда
A131: 2014-12-15 | B131: 2015-02-28 | C131: -80000 | D131: -80000 | E131: -80000 | F131: Основная заработная плата | G131: Петров П.П. | I131: 2 | J131: оплата труда
A132: 2014-12-15 | B132: 2015-02-28 | C132: -95000 | D132: -95000 | E132: -98000 | F132: Основная заработная плата | G132: Сидоров С.С. | I132: 2 | J132: оплата труда
A133: 2014-12-15 | B133: 2015-02-28 | C133: -300000 | D133: -500000 | E133: -700000 | F133: Основная заработная плата | G133: Путин В.В. | I133: 2 | J133: оплата труда
A134: 2014-12-15 | B134: 2015-02-28 | C134: -150000 | D134: -175000 | E134: -200000 | F134: Основная заработная плата | G134: Медведев Д.А. | I134: 2 | J134: оплата труда
A135: 2014-12-15 | B135: 2015-02-28 | C135: -100000 | D135: -110000 | E135: -120000 | F135: Основная заработная плата | G135: Шойгу С.К. | I135: 2 | J135: оплата труда
A136: 2014-12-15 | B136: 2015-03-31 | C136: -50000 | D136: -60000 | E136: -70000 | F136: Основная заработная плата | G136: Иванов И.И. | I136: 3 | J136: оплата труда
A137: 2014-12-15 | B137: 2015-03-31 | C137: -80000 | D137: -80000 | E137: -80000 | F137: Основная заработная плата | G137: Петров П.П. | I137: 3 | J137: оплата труда
A138: 2014-12-15 | B138: 2015-03-31 | C138: -95000 | D138: -95000 | E138: -98000 | F138: Основная заработная плата | G138: Сидоров С.С. | I138: 3 | J138: оплата труда
A139: 2014-12-15 | B139: 2015-03-31 | C139: -300000 | D139: -500000 | E139: -700000 | F139: Основная заработная плата | G139: Путин В.В. | I139: 3 | J139: оплата труда
A140: 2014-12-15 | B140: 2015-03-31 | C140: -150000 | D140: -175000 | E140: -200000 | F140: Основная заработная плата | G140: Медведев Д.А. | I140: 3 | J140: оплата труда
A141: 2014-12-15 | B141: 2015-03-31 | C141: -100000 | D141: -110000 | E141: -120000 | F141: Основная заработная плата | G141: Шойгу С.К. | I141: 3 | J141: оплата труда
A142: 2014-12-15 | B142: 2015-04-30 | C142: -50000 | D142: -60000 | E142: -70000 | F142: Основная заработная плата | G142: Иванов И.И. | I142: 4 | J142: оплата труда
A143: 2014-12-15 | B143: 2015-04-30 | C143: -80000 | D143: -80000 | E143: -80000 | F143: Основная заработная плата | G143: Петров П.П. | I143: 4 | J143: оплата труда
A144: 2014-12-15 | B144: 2015-04-30 | C144: -95000 | D144: -95000 | E144: -98000 | F144: Основная заработная плата | G144: Сидоров С.С. | I144: 4 | J144: оплата труда
A145: 2014-12-15 | B145: 2015-04-30 | C145: -300000 | D145: -500000 | E145: -700000 | F145: Основная заработная плата | G145: Путин В.В. | I145: 4 | J145: оплата труда
A146: 2014-12-15 | B146: 2015-04-30 | C146: -150000 | D146: -175000 | E146: -200000 | F146: Основная заработная плата | G146: Медведев Д.А. | I146: 4 | J146: оплата труда
A147: 2014-12-15 | B147: 2015-04-30 | C147: -100000 | D147: -110000 | E147: -120000 | F147: Основная заработная плата | G147: Шойгу С.К. | I147: 4 | J147: оплата труда
A148: 2014-12-15 | B148: 2015-05-31 | C148: -50000 | D148: -60000 | E148: -70000 | F148: Основная заработная плата | G148: Иванов И.И. | I148: 5 | J148: оплата труда
A149: 2014-12-15 | B149: 2015-05-31 | C149: -80000 | D149: -80000 | E149: -80000 | F149: Основная заработная плата | G149: Петров П.П. | I149: 5 | J149: оплата труда
A150: 2014-12-15 | B150: 2015-05-31 | C150: -95000 | D150: -95000 | E150: -98000 | F150: Основная заработная плата | G150: Сидоров С.С. | I150: 5 | J150: оплата труда
A151: 2014-12-15 | B151: 2015-05-31 | C151: -300000 | D151: -500000 | E151: -700000 | F151: Основная заработная плата | G151: Путин В.В. | I151: 5 | J151: оплата труда
A152: 2014-12-15 | B152: 2015-05-31 | C152: -150000 | D152: -175000 | E152: -200000 | F152: Основная заработная плата | G152: Медведев Д.А. | I152: 5 | J152: оплата труда
A153: 2014-12-15 | B153: 2015-05-31 | C153: -100000 | D153: -110000 | E153: -120000 | F153: Основная заработная плата | G153: Шойгу С.К. | I153: 5 | J153: оплата труда
A154: 2014-12-15 | B154: 2015-06-30 | C154: -50000 | D154: -60000 | E154: -70000 | F154: Основная заработная плата | G154: Иванов И.И. | I154: 6 | J154: оплата труда
A155: 2014-12-15 | B155: 2015-06-30 | C155: -80000 | D155: -80000 | E155: -80000 | F155: Основная заработная плата | G155: Петров П.П. | I155: 6 | J155: оплата труда
A156: 2014-12-15 | B156: 2015-06-30 | C156: -95000 | D156: -95000 | E156: -98000 | F156: Основная заработная плата | G156: Сидоров С.С. | I156: 6 | J156: оплата труда
A157: 2014-12-15 | B157: 2015-06-30 | C157: -300000 | D157: -500000 | E157: -700000 | F157: Основная заработная плата | G157: Путин В.В. | I157: 6 | J157: оплата труда
A158: 2014-12-15 | B158: 2015-06-30 | C158: -150000 | D158: -175000 | E158: -200000 | F158: Основная заработная плата | G158: Медведев Д.А. | I158: 6 | J158: оплата труда
A159: 2014-12-15 | B159: 2015-06-30 | C159: -100000 | D159: -110000 | E159: -120000 | F159: Основная заработная плата | G159: Шойгу С.К. | I159: 6 | J159: оплата труда
A160: 2014-12-15 | B160: 2015-07-31 | C160: -57500 | D160: -69000 | E160: -80500 | F160: Основная заработная плата | G160: Иванов И.И. | I160: 7 | J160: оплата труда
A161: 2014-12-15 | B161: 2015-07-31 | C161: -92000 | D161: -92000 | E161: -92000 | F161: Основная заработная плата | G161: Петров П.П. | I161: 7 | J161: оплата труда
A162: 2014-12-15 | B162: 2015-07-31 | C162: -109250 | D162: -109250 | E162: -112700 | F162: Основная заработная плата | G162: Сидоров С.С. | I162: 7 | J162: оплата труда
A163: 2014-12-15 | B163: 2015-07-31 | C163: -345000 | D163: -575000 | E163: -805000 | F163: Основная заработная плата | G163: Путин В.В. | I163: 7 | J163: оплата труда
A164: 2014-12-15 | B164: 2015-07-31 | C164: -172500 | D164: -201250 | E164: -230000 | F164: Основная заработная плата | G164: Медведев Д.А. | I164: 7 | J164: оплата труда
A165: 2014-12-15 | B165: 2015-07-31 | C165: -115000 | D165: -126500 | E165: -138000 | F165: Основная заработная плата | G165: Шойгу С.К. | I165: 7 | J165: оплата труда
A166: 2014-12-15 | B166: 2015-08-31 | C166: -57500 | D166: -69000 | E166: -80500 | F166: Основная заработная плата | G166: Иванов И.И. | I166: 8 | J166: оплата труда
A167: 2014-12-15 | B167: 2015-08-31 | C167: -92000 | D167: -92000 | E167: -92000 | F167: Основная заработная плата | G167: Петров П.П. | I167: 8 | J167: оплата труда
A168: 2014-12-15 | B168: 2015-08-31 | C168: -109250 | D168: -109250 | E168: -112700 | F168: Основная заработная плата | G168: Сидоров С.С. | I168: 8 | J168: оплата труда
A169: 2014-12-15 | B169: 2015-08-31 | C169: -345000 | D169: -575000 | E169: -805000 | F169: Основная заработная плата | G169: Путин В.В. | I169: 8 | J169: оплата труда
A170: 2014-12-15 | B170: 2015-08-31 | C170: -172500 | D170: -201250 | E170: -230000 | F170: Основная заработная плата | G170: Медведев Д.А. | I170: 8 | J170: оплата труда
A171: 2014-12-15 | B171: 2015-08-31 | C171: -115000 | D171: -126500 | E171: -138000 | F171: Основная заработная плата | G171: Шойгу С.К. | I171: 8 | J171: оплата труда
A172: 2014-12-15 | B172: 2015-09-30 | C172: -57500 | D172: -69000 | E172: -80500 | F172: Основная заработная плата | G172: Иванов И.И. | I172: 9 | J172: оплата труда
A173: 2014-12-15 | B173: 2015-09-30 | C173: -92000 | D173: -92000 | E173: -92000 | F173: Основная заработная плата | G173: Петров П.П. | I173: 9 | J173: оплата труда
A174: 2014-12-15 | B174: 2015-09-30 | C174: -109250 | D174: -109250 | E174: -112700 | F174: Основная заработная плата | G174: Сидоров С.С. | I174: 9 | J174: оплата труда
A175: 2014-12-15 | B175: 2015-09-30 | C175: -345000 | D175: -575000 | E175: -805000 | F175: Основная заработная плата | G175: Путин В.В. | I175: 9 | J175: оплата труда
A176: 2014-12-15 | B176: 2015-09-30 | C176: -172500 | D176: -201250 | E176: -230000 | F176: Основная заработная плата | G176: Медведев Д.А. | I176: 9 | J176: оплата труда
A177: 2014-12-15 | B177: 2015-09-30 | C177: -115000 | D177: -126500 | E177: -138000 | F177: Основная заработная плата | G177: Шойгу С.К. | I177: 9 | J177: оплата труда
A178: 2014-12-15 | B178: 2015-10-31 | C178: -57500 | D178: -69000 | E178: -80500 | F178: Основная заработная плата | G178: Иванов И.И. | I178: 10 | J178: оплата труда
A179: 2014-12-15 | B179: 2015-10-31 | C179: -92000 | D179: -92000 | E179: -92000 | F179: Основная заработная плата | G179: Петров П.П. | I179: 10 | J179: оплата труда
A180: 2014-12-15 | B180: 2015-10-31 | C180: -109250 | D180: -109250 | E180: -112700 | F180: Основная заработная плата | G180: Сидоров С.С. | I180: 10 | J180: оплата труда
A181: 2014-12-15 | B181: 2015-10-31 | C181: -345000 | D181: -575000 | E181: -805000 | F181: Основная заработная плата | G181: Путин В.В. | I181: 10 | J181: оплата труда
A182: 2014-12-15 | B182: 2015-10-31 | C182: -172500 | D182: -201250 | E182: -230000 | F182: Основная заработная плата | G182: Медведев Д.А. | I182: 10 | J182: оплата труда
A183: 2014-12-15 | B183: 2015-10-31 | C183: -115000 | D183: -126500 | E183: -138000 | F183: Основная заработная плата | G183: Шойгу С.К. | I183: 10 | J183: оплата труда
A184: 2014-12-15 | B184: 2015-11-30 | C184: -57500 | D184: -69000 | E184: -80500 | F184: Основная заработная плата | G184: Иванов И.И. | I184: 11 | J184: оплата труда
A185: 2014-12-15 | B185: 2015-11-30 | C185: -92000 | D185: -92000 | E185: -92000 | F185: Основная заработная плата | G185: Петров П.П. | I185: 11 | J185: оплата труда
A186: 2014-12-15 | B186: 2015-11-30 | C186: -109250 | D186: -109250 | E186: -112700 | F186: Основная заработная плата | G186: Сидоров С.С. | I186: 11 | J186: оплата труда
A187: 2014-12-15 | B187: 2015-11-30 | C187: -345000 | D187: -575000 | E187: -805000 | F187: Основная заработная плата | G187: Путин В.В. | I187: 11 | J187: оплата труда
A188: 2014-12-15 | B188: 2015-11-30 | C188: -172500 | D188: -201250 | E188: -230000 | F188: Основная заработная плата | G188: Медведев Д.А. | I188: 11 | J188: оплата труда
A189: 2014-12-15 | B189: 2015-11-30 | C189: -115000 | D189: -126500 | E189: -138000 | F189: Основная заработная плата | G189: Шойгу С.К. | I189: 11 | J189: оплата труда
A190: 2014-12-15 | B190: 2015-12-31 | C190: -57500 | D190: -69000 | E190: -80500 | F190: Основная заработная плата | G190: Иванов И.И. | I190: 12 | J190: оплата труда
A191: 2014-12-15 | B191: 2015-12-31 | C191: -92000 | D191: -92000 | E191: -92000 | F191: Основная заработная плата | G191: Петров П.П. | I191: 12 | J191: оплата труда
A192: 2014-12-15 | B192: 2015-12-31 | C192: -109250 | D192: -109250 | E192: -112700 | F192: Основная заработная плата | G192: Сидоров С.С. | I192: 12 | J192: оплата труда
A193: 2014-12-15 | B193: 2015-12-31 | C193: -345000 | D193: -575000 | E193: -805000 | F193: Основная заработная плата | G193: Путин В.В. | I193: 12 | J193: оплата труда
A194: 2014-12-15 | B194: 2015-12-31 | C194: -172500 | D194: -201250 | E194: -230000 | F194: Основная заработная плата | G194: Медведев Д.А. | I194: 12 | J194: оплата труда
A195: 2014-12-15 | B195: 2015-12-31 | C195: -115000 | D195: -126500 | E195: -138000 | F195: Основная заработная плата | G195: Шойгу С.К. | I195: 12 | J195: оплата труда
A196: 2014-12-15 | B196: 2015-01-15 | C196: 0 | D196: -150000 | E196: -200000 | F196: Премии, бонусы | I196: 1 | J196: оплата труда
A197: 2014-12-15 | B197: 2015-02-15 | C197: 0 | D197: -150000 | E197: -200000 | F197: Премии, бонусы | I197: 2 | J197: оплата труда
A198: 2014-12-15 | B198: 2015-03-15 | C198: 0 | D198: -150000 | E198: -200000 | F198: Премии, бонусы | I198: 3 | J198: оплата труда
A199: 2014-12-15 | B199: 2015-04-15 | C199: -100000 | D199: -150000 | E199: -200000 | F199: Премии, бонусы | I199: 4 | J199: оплата труда
A200: 2014-12-15 | B200: 2015-05-15 | C200: -100000 | D200: -150000 | E200: -200000 | F200: Премии, бонусы | I200: 5 | J200: оплата труда
... 187 more rows

Sheet Бюджеты
A1: Подразделение | B1: Файл бюджета
A2: отдел маркетинга | B2: D:\Webinar\Бюджет отдела маркетинга.xlsx
A3: технический отдел | B3: D:\Webinar\Бюджет технического отдела.xlsx
A4: отдел продаж | B4: D:\Webinar\Бюджет продаж.xlsx
A5: оплата труда | B5: D:\Webinar\Бюджет оплаты труда.xlsx
A6: административный отдел | B6: D:\Webinar\Бюджет административных расходов.xlsx
A7: отдел закупок | B7: D:\Webinar\Бюджет закупок.xlsx
A8: финансовая служба | B8: D:\Webinar\Бюджет налогов.xlsx
A9: финансовая служба | B9: D:\Webinar\Фин. и инвест. бюджет.xlsx
